Workbook

Sheet Start Here
B5: How to use selection pages.
B6: Selection Pages is setup to estimate a single Verasys Job. This sheet is intended to be used by customers that will procure the product through JCI's order management system in AOMS or UST. Click the "Start" Button and complete each page as needed until you reach the final "Bill of Materials" (BOM) page. The BOM page will list out all selected products; once filtered to remove the zero quantities it can be faxed or emailed to place the order. If you have any application questions or selection assitance please contact call the Verasys Hotline at 1-866-663-6105, Mon-Fri 8am - 4pm CST
W36: Released 05/18/18- Version 32 UPG
Y37: Bonelli

Sheet Network
B5: Verasys Network Selection Page
B8: Smart Building Hub
B9: JCI Part Numbers | C9: Required for all new sites! | F9: Qty
B10: LC-SBH200-0 | C10: Verasys Smart Building Hub | F10: 0
B12: Smart Building Hub Accessories | F12: Qty
B13: ACC-PWRKIT-1A24 | C13: Verasys LC-SBH200-0 Power Supply (Recommended!) | F13: 0
B14: ACC-WIFIKIT-0DU | C14: Verasys LC-SBH200-0 USB Wi-Fi Stick | F14: 0
B16: Network Accessories | F16: Qty
B17: 4683-TTM-3F | C17: RS-485 Repeater (Needed if you have more than 50 system bus devices) | F17: 0
B18: MS-BACEOL-0 | C18: End of line Terminator (Used if the SBH100, or VEC controllers are end of line devices on the trunk) | F18: 0
B19: CBL-22/3-FC-PLN | C19: System/Zone Bus Cable 22-3C Shielded Plenum Wire | F19: 0
B20: CBL-22/3-FC-PVC | C20: System/Zone Bus Cable 22-3C Shielded NonPlenum Wire | F20: 0
B21: CBL-22/2P-SAPLN | C21: Sensor Bus Cable 22-2P Shielded Plenum Wire | F21: 0
B22: CBL-22/2P-SAPVC | C22: Sensor Bus Cable 22-2P Shielded NonPlenum Wire | F22: 0
B23: UPSPNL550-0 | C23: 550 VA/330W Power System Battery Backup and Surge Protection | F23: 0

Sheet IOM Device
B5: Verasys IOM Device Page
B8: IOM Device
B9: JCI Part Numbers | C9: Descriptions | D9: Qty
B10: LC-VAC1002-0 | C10: Verasys Input Output Configurable Controller, NOTE! 4 Binary Inputs, 5 Analog Inputs, 9 Binary Outputs per IOM | D10: 0 | F10: 0
B11: PA0000004GC0 | C11: Panel Enclosure for a single IOM device (12 x 16 x 6.5 in, 40 VA) | D11: 0
B12: PA0000001AH0 | C12: Panel Enclosure for two IOM devices (20 x 24 x 6.5 in, 96 VA) | D12: 0
B13: PA0000001EH0 | C13: Panel Enclosure for three IOM devices (24 x 24 x 6.5 in 96 VA) | D13: 0
B15: IOM Accessories: Hardwired Input and Output Devices
B16: JCI Part Numbers | C16: Descriptions | D16: Qty
B17: Y65T42-0 | C17: 120/208/240 to 24V XFR 40VA | D17: 0
B18: TE-68NT-0N00S | C18: Wall temperature sensor, 1k ohm, nickel with temperature occupancy button. | D18: 0
B19: TE-6311M-1 | C19: 8" Duct Sensor Metal Enclosure, Nickel | D19: 0
B20: TE-6313P-1 | C20: Outside Air Sensor, Nickel | D20: 0
B21: HE-68N3-0N00WS | C21: Wall Mount Humidity Transmitter w Temp Sensor (3%) | D21: 0
B22: HE-68P3-0N000 | C22: Outdoor Humidity Sensor (3%) | D22: 0
B23: HE-67N3-0N00P | C23: Duct Humidity Sensor w Temp Sensor (3%) | D23: 0
B24: CD-W00-00-2 | C24: CO2 sensor 0-2000ppm | D24: 0
B25: 2020-T | C25: Door Sensor, Flush Mount Switch, Magnet, Terminals | D25: 0
B26: 2505A | C26: N.O. Closed Loop Type Commercial Door Contact | D26: 0
B27: MK7-B-CR-VTI | C27: Outdoor Light Level Sensor, 0-250 Ft Candles | D27: 0
B28: DPT2090-25G | C28: Pressure Sensor, Gage, 25 PSI, 0-5VDC, 0.25% | D28: 0
B29: TBG16A-600R | C29: Steam Trap Assembly (Pig Tail) | D29: 0
B30: DPT2640-0R1B | C30: Differential Pressure Sensor -1 to 1 in WC, 0-5VDC (Used for Building Pressure) | D30: 0
B31: DPT2640-R25D | C31: Differential Pressure Sensor -.25 to .25 in WC, 0-5VDC (Used for Building Pressure) | D31: 0
B32: A-306-K | C32: Outdoor Static Pressure Sensor (Used for Building Pressure) | D32: 0
B33: SD-01 | C33: Surge Dampener (Used to Dampen Wind Effects on Building Pressure Sensors) | D33: 0
B34: RPS | C34: Stainless Wall plate (for measuring inside for building pressure) | D34: 0
B35: RPS-W | C35: White plastic wall plate (for measuring inside building pressure) | D35: 0
B36: RLD-134A | C36: Refrigerant Leak Detector for R-134A refrigerant. 0-5V, 0-1000PPM | D36: 0
B37: WD-1B | C37: Water Detector SPDT Contact | D37: 0
B38: WD-2-T-10 | C38: Water Detector Tape Style 10ft | D38: 0
B39: WD-2-T-25 | C39: Water Detector Tape Style 25ft | D39: 0
B40: CSDSC-C50100L0 | C40: Current Switch Device Self Calibrating, 100A Max, No Relay | D40: 0
B41: CSDSC-C50100L1 | C41: Current Switch Device, Self Calibrating, 100A Max with 24v Relay (10A) | D41: 0
B42: CSDECM-C35200L0 | C42: Current Switch Device, Manual Calibrating, 200A Max, No Relay | D42: 0
B43: CSDECM-C35200L1 | C43: Current Switch Device, Manual Calibrating, 200A Max with24v Relay (10A) | D43: 0
B44: RIBU1C | C44: Enclosed Relay SPDT (10A), 10-30VAC/DC | D44: 0
B46: IOM Accessories: Hardwired Zone NS Sensors
B47: JCI Part Numbers | C47: Descriptions: Note - Any NS Sensor can be used on the IOM Device | D47: Qty
B48: NS-BTN7003-0 | C48: Net Sensor, 120x80, JCI Logo, No Display, No Setpoint Adjust, Hardwired Terminals, Addressable | D48: 0
B49: NS-BTN7003-2 | C49: Net Sensor, 120x80, No Logo, No Display, No Setpoint Adjust, Hardwired Terminals, Addressable | D49: 0
B50: NS-BHN7003-0 | C50: Net Sensor, 120x80, Logo, No Display, No Setpoint Adjust, Hardwired Terminals, 3% Humidity | D50: 0
B51: NS-BTN7001-0 | C51: Net Sensor, 120x80, JCI Logo, No Display, No Setpoint Adjust, Modular Jack, Address 199 | D51: 0
B52: NS-BTN7001-2 | C52: Net Sensor, 120x80, No Logo, No Display, No Setpoint Adjust, Modular Jack, Address 199 | D52: 0
B54: IOM Accessories: Wireless Zone NS Sensors
B55: JCI Part Numbers | C55: Descriptions | D55: Qty
B56: WRZ-7860-0 | C56: Wireless Receiver, One to Many Sensors REQUIRED IF CONNECTING WIRELESS SENSORS TO VAC1002! | D56: 0
B57: ZFR-CBLEXT-0 | C57: RJ12 Extension Cable 10" for the WRZ-7860-0. (Used to plug into Sensor Bus and an extend outside controller panel). | D57: 0
B58: WRZ-STR0000-0 | C58: Wireless Refrigerator/Freezer Temperature Transmitter | D58: 0
B59: WRZ-RMT10K-0 | C59: Wireless Room Temperature Sensor Transmitter for Remote 10K Temperature Probes | D59: 0
B60: WRZ-TTR0000-0 | C60: Wireless Room Temperature Sensor Transmitter with Battery Level/Signal Strength LED, No Setpoint Adjustment | D60: 0
B61: WRZ-THN0000-0 | C61: Wireless Room Temperature and Humidity Sensor Transmitter with Battery Level/Signal Strength LED | D61: 0

Sheet IOM Device - Energy Meter
B5: Verasys IOM Energy Meter Part Number Creation
B8: Note: Energy Meter Part Numbers are created by the combination of Phases supported, CVT Amps, and CVT Lead Length. EMC meters are the only meters supported on the Verasys IOM. Input the data in the table below and Click the "Create Part Number" Button.
B26: Options | C26: Meter Style | D26: Phase | E26: CVT Amp | F26: CVT Lead Length | G26: Qty
B27: 1. | C27: SENVA-01-EMC | D27: ? | E27: ? | F27: ? | G27: ?
B28: 2. | C28: SENVA-01-EMC | D28: ? | E28: ? | F28: ? | G28: ?
B29: 3. | C29: SENVA-01-EMC | D29: ? | E29: ? | F29: ? | G29: ?
B30: SAMPLE | C30: SENVA-01-EMC | D30: 3N | E30: 08S | F30: 03 | G30: 1
F32: JCI Part Numbers | G32: Qty
F33: ? | G33: 0
F34: ? | G34: 0
F35: ? | G35: 0

Sheet SZ - Smart Equipment
B5: Single Zone Smart Equipment Selection Page
B8: NetStats for Zone Temperature
B9: JCI Part Numbers (Required) | C9: Typically one Zone Temperature sensor is required per single zone RTU, but Verasys can average up to 3 sensors per RTU. | D9: Qty
B10: NS-BTB7003-0 | C10: Net Sensor, 120x80, JCI Logo, LCD Display, Local Setpoint, Terminals (Dial) | D10: 0
B11: NS-BTB7003-2 | C11: Net Sensor, 120x80, No Logo, LCD Display, Local Setpoint, Terminals (Dial) | D11: 0
B12: NS-BTN7003-0 | C12: Net Sensor, 120x80, JCI Logo, No Display, No Setpoint, Terminals | D12: 0
B13: NS-BTN7003-2 | C13: Net Sensor, 120x80, No Logo, No Display, No Setpoint, Terminals | D13: 0
B14: NS-BTP7002-0 | C14: Net Sensor, 120x80, JCI Logo, No Display, Warmer/Cooler Adjustment, Terminals | D14: 0
B15: NS-BTP7002-2 | C15: Net Sensor, 120x80, No Logo, No Display, Warmer/Cooler Adjustment, Terminals | D15: 0
B16: NS-BHR7103-0 | C16: Net Sensor, 120x80, Logo, LCD Display, Local Setpoint, Terminals, 3% Humidity | D16: 0
B17: NS-BHP7001-0 | C17: Net Sensor, 120x80, Logo, No Display, Warmer/Cooler Adjustment, Terminals, 3% Humidity | D17: 0
B18: NS-BTB7F03-0 | C18: Net Sensor, 120x80, Logo, LCD Display, Local Setpoint, Terminals, use with Title 24 FDD for Economizer | D18: 0
B19: NS-BTK7002-0 | C19: Net Sensor, 120x80, JCI Logo, LCD Display, Local Setpoint, Terminals (Up/Down Buttons) | D19: 0
B20: NS-BTK7002-2 | C20: Net Sensor, 120x80, No Logo, LCD Display, Local Setpoint, Terminals (Up/Down Buttons) | D20: 0
B22: Zone CO2 Sensor (Optional) | D22: Qty
B23: NS-BCN7004-0 | C23: BACnet network CO2 sensor 80 mm x 120 mm | D23: 0
B25: Remember to order the units with a BACnet Card! If your unit does not have the card below is the part to order.
B26: Smart Equipment BACnet Card
B27: JCI Part Numbers | D27: Qty
B28: SE-COM1001-0 | C28: Smart Equipment BACnet Communications Card. Required! | D28: 0

Sheet SZ - 3rd Party Equipment
B5: Single Zone Verasys "3rd Party" Standard Equipment
M6: Check Equipment!!!
B8: Wired TEC3000 Thermostats | Verasys Smart Thermostats
B10: JCI Part Number | C10: System Covered | D10: JCI Logo | E10: Htg/Clg Signals | F10: Occupancy Sensor | I10: Qty
B11: TEC3630-00-000 | C11: RTU, Heatpump, Furnace, Unit Heater | D11: Yes | E11: On/Off | F11: No | I11: 0
B12: TEC3631-00-000 | C12: RTU, Heatpump, Furnace, Unit Heater | D12: Yes | E12: On/Off | F12: Yes | I12: 0
B13: TEC3630-01-000 | C13: RTU, Heatpump, Furnace, Unit Heater | D13: No | E13: On/Off | F13: No | I13: 0
B14: TEC3631-01-000 | C14: RTU, Heatpump, Furnace, Unit Heater | D14: No | E14: On/Off | F14: Yes | I14: 0
B16: Verasys Pro Wireless TEC3000 Thermostats | Verasys Smart Wireless Thermostats
B18: JCI Part Number | C18: System Covered | D18: JCI Logo | E18: Htg/Clg Signals | F18: Occupancy Sensor | I18: Qty
B19: TEC3030-00-000 | C19: RTU, Heatpump, Furnace, Unit Heater | D19: Yes | E19: On/Off | F19: No | I19: 0
B20: TEC3031-00-000 | C20: RTU, Heatpump, Furnace, Unit Heater | D20: Yes | E20: On/Off | F20: Yes | I20: 0
B21: TEC3030-01-000 | C21: RTU, Heatpump, Furnace, Unit Heater | D21: No | E21: On/Off | F21: No | I21: 0
B22: TEC3031-01-000 | C22: RTU, Heatpump, Furnace, Unit Heater | D22: No | E22: On/Off | F22: Yes | I22: 0
B24: Verasys Pro Series Wireless Field Bus
B25: JCI Part Number | C25: Product Description
B26: Wireless Coordinator (Required) | I26: Qty
B27: LC-ZFR1825-0 | C27: Wireless Coordinator and mounting base with 110/220 VAC power supply and antenna. | I27: 0
B29: Wireless Repeaters (Optional/Recommended) | C29: Product Description | I29: Qty
B30: LC-ZFR1821-0B | C30: Wireless Pro Repeater Kit with EMT mount, 3ft RJ-12 cable, and 24VAC to 15VDC power supply | I30: 0
B31: LC-ZFR1822-0B | C31: Wireless Pro Repeater Wall Mount Kit, with 10ft RJ-12 cable and 24VAC to 15VDC power supply. | I31: 0
B34: TEC3000 Accessories
B35: Duct Sensor (Optional) | C35: For Supply Air Temperature. Additional diagnostics supported if connected. These are support for the RTU, Furnace, Heatpump Models | D35: Qty
B36: TE-6311M-1 | C36: 8" Duct Sensor Metal Enclosure, Nickel | D36: 0
B38: OA-T Sensor (Optional) | C38: For Outdoor Air Temperature. Note they are only supported on the RTU, Furnace, Heatpump Models | D38: Qty
B39: TE-6313P-1 | C39: Outside Air Sensor, Nickel | D39: 0
B41: Wall Sensor (Optional) | C41: For Remote Sensor | D41: Qty
B42: TE-68NT-0N00S | C42: Wall temperature sensor, 1k ohm, Nickel | D42: 0
B44: Fan Status (Optional) | C44: Fan Status | D44: Qty
B45: CSD-CF0A0-1 | C45: Current switch, Split Core, 0.15 A Fixed Switch Setpoint 0.15 to 200 A Range | D45: 0
B47: Damper Actuator (Optional) | C47: Mixed Air Damper Actuator. If doing economizer control you will NEED to have an outside air temperature sensor above | D47: Qty
B48: M9208-GGA-3 | C48: 70in-lb spring return actuator proportional | D48: 0
B49: M9208-250 | C49: Remote mounting kit with crankarm and damper linkage. Used when actuator is not directly mounted on a shaft. | D49: 0
B51: Wall Plate | C51: To Cover Larger Opening (Optional) | D51: Qty
B52: TEC-WALLPLT | C52: TEC3000 Wall Plate | D52: 0

Sheet MZ- Zone Coordinator
B5: Multi-Zone Zone Coordinators
B8: Zone Coordinators
B9: JCI Part Numbers | C9: Note: Each Zoning Coordinator can control up to 32 Boxes and/or Zones. One Coordinator is required per VAV or COBP RTU. | F9: Qty
B10: LC-VZC100-0 | C10: Verasys Zoning Coordinator for VAV and COBP applications (Loose Board Version) | F10: 0
B11: LC-VZCPNL-0 | C11: Verasys Zoning Coordinator for VAV and COBP applications (Panel Version) | F11: 0
B13: Transformers | C13: Power for all the Zone Coordinators, VAV Boxes and Zone Controllers | F13: Qty
B14: Y65T42-0 | C14: 120/208/240 to 24V XFR 40VA (Power for 2 Controllers) | F14: 0
B15: PSH100A | C15: 120V to 24V XFR, 100VA (Power for 6 Controllers) | F15: 0
B16: PSH300A | C16: 480/277/240/120V to 24V XFR, 3 Circuits 100VA each (Power for 18 Controllers) | F16: 0
B17: PSH500A | C17: 480/277/240/120V to 24V XFR,5 Circuits 100VA each (Power for 30 Controllers) | F17: 0

Sheet MZ- Smart Equipment
B5: Multi-Zone Smart Equipment Page
C9: Select unit with BACnet Card. If the unit does not have a BACnet card add this part.
B10: Smart Equipment BACnet Card | D10: 0
B11: JCI Part Numbers | D11: 0 | F11: Qty
B12: SE-COM1001-0 | C12: Smart Equipment BACnet Communications Card Required! | D12: 0 | F12: 0
D13: 0
D14: 0
D15: 0
D16: 0
D17: 0
D18: 0
D19: 0
D20: 0
D23: 0
D28: 0
G56: 0

Sheet MZ- 3rd Party Units
B5: Multi-Zone "3rd Party" Equipment Controller Selection
B8: 3rd Party RTU Controller
B9: JCI Part Numbers | C9: If you have a Simplicity Smart Equipment Unit this is not needed | F9: Qty
B10: LC-VEC100-0 | C10: Verasys Equipment Controller, 3rd Party RTU (VAV, COPB) | F10: 0
B12: LC-VEC100-0 3rd Party RTU Controller Accessories
B13: Duct Sensors | C13: For Supply Air Temperature mandatory, Return Air Temperature (Optional). | F13: Qty
B14: TE-6311M-1 | C14: 8" Duct Sensor Metal Enclosure, Nickel | F14: 0
B16: Differential Pressure Sensors (Required for VAV Systems) | C16: Note: Duct Static Pressure is measured on Bypass controller for COBP/VVT Systems. These are required only for VAV. | F16: Qty
B17: DPT2640-005D | C17: Low Differential Pressure Transducer 0-5 in WC, 0-5VDC | F17: 0
B18: FTG18A-600R | C18: Duct Static Pressure Probe. Need one per DPT | F18: 0
B20: OA-T Sensor (Optional) | C20: For Outdoor Air Temperature | F20: Qty
B21: TE-6313P-1 | C21: Outside Air Sensor, Nickel | F21: 0
B23: Filter Status (Optional) | C23: Filter Status | F23: Qty
B24: P32AC-2C | C24: Differential Pressure Switch, Single-Pole, Double-Throw (SPDT), 0.05 to 5 in. W.C. | F24: 0
B25: FTG18A-600R | C25: Duct Static Pressure Probe Kit: 4 in. Flanged Sensing Tube | F25: 0
B27: Fan Status (Optional) | C27: Fan Status | F27: Qty
B28: CSD-CF0A0-1 | C28: Current switch, Split Core, 0.15 A Fixed Switch Setpoint 0.15 to 200 A Range | F28: 0
B30: Return CO2 Sensor | C30: Return Air CO2 Sensor (Optional) But Required for Demand Ventilation Control | F30: Qty
B31: CD-P1000-00-00 | C31: Duct Mount CO2 Transmitter 0–10 VDC, 0–2,000 ppm CO2 | F31: 0
B33: Zone Humidity (Optional) | C33: Zone Humidity | F33: Qty
B34: NS-BHN7003-0 | C34: Netstat, 3% Humidity, addressable | F34: 0
B36: Damper Actuator | C36: Mixed Air Damper Actuator (Optional) If doing economizer control you will need to have an outside air temperature sensor | F36: Qty
B37: M9208-GGA-3 | C37: 70in-lb spring return actuator proportional | F37: 0
B38: M9208-250 | C38: Remote mounting kit with crankarm and damper linkage. Used when actuator is not directly mounted on a shaft. | F38: 0

Sheet MZ- VAV Zones
B5: Multi-Zone VAV Controller Selection Page
B8: VAV Controllers
B9: JCI Part Numbers | C9: Pick the model that covers the heating you need. All models can do cooling only. | E9: Qty
B10: LC-ZEC410-1 | C10: Configurable VAV Box Controller, All Fan Types, Stg Box Htg | E10: 0
B11: LC-ZEC410-2 | C11: Configurable VAV Box Controller, All Fan Types, Inc Box Htg | E11: 0
B12: LC-ZEC410-3 | C12: Configurable VAV Box Controller, All Fan Types, Prop(SCR) Box Htg | E12: 0
B14: NetStats for Zone Temperature | E14: Qty
B15: NS-BTB7003-0 | C15: Net Sensor, 120x80, JCI Logo, LCD Display, Local Setpoint, Terminals (Dial) | E15: 0
B16: NS-BTB7003-2 | C16: Net Sensor, 120x80, No Logo, LCD Display, Local Setpoint, Terminals (Dial) | E16: 0
B17: NS-BTN7003-0 | C17: Net Sensor, 120x80, JCI Logo, No Display, No Setpoint, Terminals | E17: 0
B18: NS-BTN7003-2 | C18: Net Sensor, 120x80, No Logo, No Display, No Setpoint, Terminals | E18: 0
B19: NS-BTP7002-0 | C19: Net Sensor, 120x80, JCI Logo, No Display, Warmer/Cooler Adjustment, Terminals | E19: 0
B20: NS-BTP7002-2 | C20: Net Sensor, 120x80, No Logo, No Display, Warmer/Cooler Adjustment, Terminals | E20: 0
B21: NS-BTK7002-0 | C21: Net Sensor, 120x80, JCI Logo, LCD Display, Local Setpoint, Terminals (Up/Down Buttons) | E21: 0
B22: NS-BTK7002-2 | C22: Net Sensor, 120x80, No Logo, LCD Display, Local Setpoint, Terminals (Up/Down Buttons) | E22: 0
B24: Duct Sensors (Recommended) | C24: Discharge Sensors for ZEC Controllers | E24: Qty
B25: TE-631GV-2 | C25: 4" Duct Sensor for VAV Flange Mount, Nickel, 10ft plenum Cable | E25: 0
B27: Zone CO2 Sensor (Optional) | C27: Optional | E27: Qty
B28: NS-BCN7004-0 | C28: BACnet network CO2 sensor 80 mm x 120 mm | E28: 0
B30: Occupancy Lighting Switch (Optional) | C30: Optional Occupancy Switch Controls Lights and Powers Field Relay | E30: Qty
B31: OLS-2100-1 | C31: Occupancy Lighting Switch | E31: 0
B32: RIBU1C | C32: Enclosed relay for OLS-2100-1 sensor | E32: 0
B34: Balance Stat (Optional) | C34: Optional. Network thermostat used by balance contractors to balance the VAV boxes | E34: Qty
B35: NS-ATV7003-0 | C35: VAV Box Balancing Thermostat | E35: 0

Sheet MZ - COBP Zones
B5: Multi-Zone COBP Zone Damper Selection Page
B8: COBP Zone Dampers/Controllers
B9: JCI Part Numbers | F9: Qty
B10: LC-ZEC310-0 | C10: Field Installed, Zone Damper Controller No Damper | F10: 0
B11: RCG04B | C11: 4" Round Zone/Bypass Damper No Controller | F11: 0
B12: RCG06B | C12: 6" Round Zone/Bypass Damper No Controller | F12: 0 | H12: 5 Day Lead-time
B13: RCG07B | C13: 7" Round Zone/Bypass Damper No Controller | F13: 0
B14: RCG08B | C14: 8" Round Zone/Bypass Damper No Controller | F14: 0
B15: RCG09B | C15: 9" Round Zone/Bypass Damper No Controller | F15: 0
B16: RCG10B | C16: 10" Round Zone/Bypass Damper No Controller | F16: 0
B17: RCG11B | C17: 11" Round Zone/Bypass Damper No Controller | F17: 0
B18: RCG12B | C18: 12" Round Zone/Bypass Damper No Controller | F18: 0
B19: RCG13B | C19: 13" Round Zone/Bypass Damper No Controller | F19: 0
B20: RCG14B | C20: 14" Round Zone/Bypass Damper No Controller | F20: 0
B21: RCG15B | C21: 15" Round Zone/Bypass Damper No Controller | F21: 0
B22: RCG16B | C22: 16" Round Zone/Bypass Damper No Controller | F22: 0
B23: RCG17B | C23: 17" Round Zone/Bypass Damper No Controller | F23: 0
B24: RCG18B | C24: 18" Round Zone/Bypass Damper No Controller | F24: 0
B25: RZV06Z | C25: 6" Round Zone Damper LC-ZEC310-0 Controller | F25: 0
B26: RZV07Z | C26: 7" Round Zone Damper LC-ZEC310-0 Controller | F26: 0
B27: RZV08Z | C27: 8" Round Zone Damper LC-ZEC310-0 Controller | F27: 0
B28: RZV09Z | C28: 9" Round Zone Damper LC-ZEC310-0 Controller | F28: 0
B29: RZV10Z | C29: 10" Round Zone Damper LC-ZEC310-0 Controller | F29: 0
B30: RZV11Z | C30: 11" Round Zone Damper LC-ZEC310-0 Controller | F30: 0
B31: RZV12Z | C31: 12" Round Zone Damper LC-ZEC310-0 Controller | F31: 0
B32: RZV13Z | C32: 13" Round Zone Damper LC-ZEC310-0 Controller | F32: 0
B33: RZV14Z | C33: 14" Round Zone Damper LC-ZEC310-0 Controller | F33: 0
B34: RZV15Z | C34: 15" Round Zone Damper LC-ZEC310-0 Controller | F34: 0
B35: RZV16Z | C35: 16" Round Zone Damper LC-ZEC310-0 Controller | F35: 0
B36: RZV17Z | C36: 17" Round Zone Damper LC-ZEC310-0 Controller | F36: 0
B37: RZV18Z | C37: 18" Round Zone Damper LC-ZEC310-0 Controller | F37: 0
C38: Rectangular dampers are supported up to 30"x30". Order dampers separately and connect LC-ZEC310-0
B40: Zone Temperature Sensors Option 1 (Hardwired) | F40: Qty
B41: TE-68NT-0N00S | C41: Wall temperature sensor, 1k ohm, nickel with temperature occupancy button. | F41: 0
B42: TE-68NT-1N00S | C42: Wall temperature sensor, 1k ohm,nickel with warmer/cooler (W/C) adjustment and temperature occupancy pushbutton. | F42: 0
B44: Zone Temperature Sensors Option 2 (NetStats - Recommended) | F44: Qty
B45: NS-BTB7003-0 | C45: Net Sensor, 120x80, JCI Logo, LCD Display, Local Setpoint, Terminals | F45: 0
B46: NS-BTB7003-2 | C46: Net Sensor, 120x80, No Logo, LCD Display, Local Setpoint, Terminals | F46: 0
B47: NS-BTN7003-0 | C47: Net Sensor, 120x80, JCI Logo, No Display, No Setpoint, Terminals | F47: 0
B48: NS-BTN7003-2 | C48: Net Sensor, 120x80, No Logo, No Display, No Setpoint, Terminals | F48: 0
B49: NS-BTP7002-0 | C49: Net Sensor, 120x80, JCI Logo, No Display, Warmer/Cooler Adjustment, Terminals | F49: 0
B50: NS-BTP7002-2 | C50: Net Sensor, 120x80, No Logo, No Display, Warmer/Cooler Adjustment, Terminals | F50: 0
B51: NS-BTK7002-0 | C51: Net Sensor, 120x80, JCI Logo, LCD Display, Local Setpoint, Terminals (Up/Down Buttons) | F51: 0
B52: NS-BTK7002-2 | C52: Net Sensor, 120x80, No Logo, LCD Display, Local Setpoint, Terminals (Up/Down Buttons) | F52: 0
B54: Occupancy Lighting Switch (Optional) | C54: Optional Occupancy Switch Controls Lights and Powers Field Relay | F54: Qty
B55: OLS-2100-1 | C55: Occupancy Lighting Switch | F55: 0
B56: RIBU1C | C56: Enclosed relay for OLS-2100-1 sensor | F56: 0
B58: Zone CO2 Sensor (Optional) | C58: Optional CO2 Sensor | F58: Qty
B59: NS-BCN7004-0 | C59: BACnet network CO2 sensor 80 mm x 120 mm | F59: 0
B61: Second Zone Damper Actuator (Optional) | C61: You will need to buy the actuator and add it to a damper without a ZEC310 | F61: Qty
B62: M9310-HGA-2 | C62: 10NM Torque Non-Spring Return Damper Actuator | F62: 0

Sheet MZ- Bypass Damper
B5: Multi-Zone COBP Bypass Controller Selection Page
B8: Bypass Control
B9: JCI Part Numbers | F9: Qty
B10: LC-BYP200-0 | C10: Field Installed, Bypass Damper Controller - No Damper | F10: 0
B11: RCG06B | C11: 6" Round Zone/Bypass Damper No Controller | F11: 0 | H11: 5 Day Lead-time
B12: RCG07B | C12: 7" Round Zone/Bypass Damper No Controller | F12: 0
B13: RCG08B | C13: 8" Round Zone/Bypass Damper No Controller | F13: 0
B14: RCG09B | C14: 9" Round Zone/Bypass Damper No Controller | F14: 0
B15: RCG10B | C15: 10" Round Zone/Bypass Damper No Controller | F15: 0
B16: RCG11B | C16: 11" Round Zone/Bypass Damper No Controller | F16: 0
B17: RCG12B | C17: 12" Round Zone/Bypass Damper No Controller | F17: 0
B18: RCG13B | C18: 13" Round Zone/Bypass Damper No Controller | F18: 0
B19: RCG14B | C19: 14" Round Zone/Bypass Damper No Controller | F19: 0
B20: RCG15B | C20: 15" Round Zone/Bypass Damper No Controller | F20: 0
B21: RCG16B | C21: 16" Round Zone/Bypass Damper No Controller | F21: 0
B22: RCG17B | C22: 17" Round Zone/Bypass Damper No Controller | F22: 0
B23: RCG18B | C23: 18" Round Zone/Bypass Damper No Controller | F23: 0
B24: RZV06Y | C24: 6" Round Bypass Damper LC-BYP200-0 Controller * | F24: 0 | H24: 15 Day Lead-time
B25: RZV07Y | C25: 7" Round Bypass Damper LC-BYP200-0 Controller * | F25: 0
B26: RZV08Y | C26: 8" Round Bypass Damper LC-BYP200-0 Controller * | F26: 0
B27: RZV09Y | C27: 9" Round Bypass Damper LC-BYP200-0 Controller * | F27: 0
B28: RZV10Y | C28: 10" Round Bypass Damper LC-BYP200-0 Controller * | F28: 0
B29: RZV11Y | C29: 11" Round Bypass Damper LC-BYP200-0 Controller * | F29: 0
B30: RZV12Y | C30: 12" Round Bypass Damper LC-BYP200-0 Controller * | F30: 0
B31: RZV13Y | C31: 13" Round Bypass Damper LC-BYP200-0 Controller * | F31: 0
B32: RZV14Y | C32: 14" Round Bypass Damper LC-BYP200-0 Controller * | F32: 0
B33: RZV15Y | C33: 15" Round Bypass Damper LC-BYP200-0 Controller * | F33: 0
B34: RZV16Y | C34: 16" Round Bypass Damper LC-BYP200-0 Controller * | F34: 0
B35: RZV17Y | C35: 17" Round Bypass Damper LC-BYP200-0 Controller * | F35: 0
B36: RZV18Y | C36: 18" Round Bypass Damper LC-BYP200-0 Controller * | F36: 0
C37: Rectangular dampers are supported up to 30"x30". Order dampers separately and connect LC-ZEC310-0 or LC-BYP200-0
C38: * Bypass Dampers come with Controller but without Differential Pressure Sensors
B40: Differential Pressure Sensor (Required) | C40: 1 each required for each LC-BYP200-0 | F40: Qty
B41: DPT2640-005D | C41: Low Differential Pressure Transducer 0-5 in WC, 0-5VDC | F41: 0
B42: FTG18A-600R | C42: Duct Static Pressure Probe. Need one per DPT | F42: 0
B44: Transformers | F44: Qty
B45: Y65T42-0 | C45: 120/208/240 to 24V XFR 40VA (Power for 2 Boxes) | F45: 0
B48: Second Bypass Damper Actuator | C48: You will need to buy the actuator and add it to a damper without a BYP200 | F48: Qty
B49: M9310-HGA-2 | C49: 10NM Torque Non-Spring Return Damper Actuator | F49: 0

Sheet Adv. Application Controller
B5: Verasys "3rd Party" Advanced Application Controller
B9: LC-VAC-x000 Controllers | Verasys Application Controller
B10: JCI Part Number | C10: Description | G10: Qty
B11: LC-VAC1000-0 | C11: 18 Point 24v, Application Controller with no application loaded | G11: 0
B12: LC-VAC3000-0 | C12: 32 Point 24v, Application Controller with no application loaded | G12: 0 | K12: Check Applications!!!
B14: 18 Point VAC Application Controller Accessories
B15: JCI Part Number | C15: Description
B16: Duct Sensors | C16: Note: For Supply Air Temperature (Required), or Return Air Temperature (Optional). | G16: Qty
B17: TE-6311M-1 (Required) | C17: 8" Duct Sensor Metal Enclosure, Nickel (minimum one Required) | G17: 0
B19: MA-T Sensor (Optional/Required) | C19: Note: If you have proportional heating or cooling and economizer (Required). | G19: Qty
B20: TE-6315M-1 | C20: Outside Air Sensor, Nickel | G20: 0
B22: OA-T Sensor (Optional/Required) | C22: For Outdoor Air Temperature, Required for economizer control. | G22: Qty
B23: TE-6313P-1 | C23: Outside Air Sensor, Nickel | G23: 0
B25: Fan Status (Optional) | C25: Fan Status | G25: Qty
B26: CSDECM-C35200L0 | C26: Current switch, Split Core, 0.15 A Fixed Switch Setpoint 0.15 to 200 A Range | G26: 0
B28: LT-A Sensors (Optional/Required) | C28: Low Temperature Alarm, when you have water coils and economizer (Required). | G28: Qty
B29: A70HA-1C | C29: See below | G29: 0
B30: TE-6001-8 | C30: Need one per A70HA-1C! | G30: 0
B32: OCC-S Sensor (Optional) | C32: Occupancy Sensor. Lighting switch plus relayed used to switch off lights when motion is not sensed. | G32: Qty
B33: OLS-2100-1 | C33: See below | G33: 0
B34: RIBU1C | C34: Need one per OLS-2100-1 | G34: 0
B36: Damper Actuator (Optional) | C36: Mixed Air Damper Actuator (Optional) If doing economizer control you will need to have an outside air temperature sensor | G36: Qty
B37: M9208-GGA-3 | C37: 70in-lb spring return actuator proportional | G37: 0
B38: M9208-250 | C38: Remote mounting kit with crankarm and damper linkage. Used when actuator is not directly mounted on a shaft. | G38: 0
B41: Hardwired Zone Temperature Only Sensor | NS Sensors (Sensor Bus)
B42: JCI Part Numbers (One Required) | C42: Description: Note Minimum One NS Sensor is Required per VAC Application Controller | G42: Qty
B43: NS-BTB7003-0 | C43: Net Sensor, 120x80, JCI Logo, LCD Display, Local Setpoint Adjust, Terminals (Dial) | G43: 0
B44: NS-BTB7003-2 | C44: Net Sensor, 120x80, No Logo, LCD Display, Local Setpoint Adjust, Terminals (Dial) | G44: 0
B45: NS-BTN7003-0 | C45: Net Sensor, 120x80, JCI Logo, No Display, No Setpoint Adjust, Terminals | G45: 0
B46: NS-BTN7003-2 | C46: Net Sensor, 120x80, No Logo, No Display, No Setpoint Adjust, Terminals | G46: 0
B47: NS-BTP7002-0 | C47: Net Sensor, 120x80, JCI Logo, No Display, Warmer/Cooler Adjustment, Terminals | G47: 0
B48: NS-BTP7002-2 | C48: Net Sensor, 120x80, No Logo, No Display, Warmer/Cooler Adjustment, Terminals | G48: 0
B49: NS-BTJ7002-0 | C49: Net Sensor, 120x80, JCI Logo, LCD Display, Local Setpoint Adjust, Terminals (Up/Down Buttons) | G49: 0
B50: NS-BTJ7002-2 | C50: Net Sensor, 120x80, No Logo, LCD Display, Local Setpoint Adjust, Terminals (Up/Down Buttons) | G50: 0
B52: Hardwired Zone Temperature Sensor + Humidity Sensors | NS Sensors (Sensor Bus)
B53: JCI Part Numbers (One Required) | C53: Description: Note Minimum One NS Sensor is Required per VAC Application Controller | G53: Qty
B54: NS-BHR7103-0 | C54: Net Sensor, 120x80, Logo, LCD Display, Local Setpoint Adjust, Terminals, 3% Humidity | G54: 0
B55: NS-BHN7003-0 | C55: Net Sensor, 120x80, Logo, No Display, No Setpoint Adjust, Terminals, 3% Humidity | G55: 0
B56: NS-BHP7003-0 | C56: Net Sensor, 120x80, Logo, No Display, Warmer/Cooler Adjustment, Terminals, 3% Humidity | G56: 0
B57: NS-BHM7103-2 | C57: Net Sensor, 120x80, Logo, LCD Display, Local Setpoint Adjust, Terminals, 3% Humidity, (Up/Down Buttons) | G57: 0
B59: Hardwired Zone Temperature Sensor + FDD Sensor| NS Sensors (Sensor Bus)
B60: JCI Part Numbers (One Required) | C60: Description: Note Minimum One NS Sensor is Required per VAC Application Controller | G60: Qty
B61: NS-BTB7F03-0 | C61: Net Sensor, 120x80, No Logo, LCD Display, Local Setpoint Adjust, Terminals, use with Title 24 FDD for Economizer Alarms | G61: 0
B63: Hardwired Zone Temperature Sensor + CO2| NS Sensors (Sensor Bus)
B64: JCI Part Numbers (One Required) | C64: Description: Note Minimum One NS Sensor is Required per VAC Application Controller | G64: Qty
B65: NS-BCN7004-0 | C65: BACnet network CO2 sensor 80 mm x 120 mm, requires 24VAC Power | G65: 0
B67: Additional Sensors for the 32 Point ONLY VAC Application Controller
B68: JCI Part Number | C68: Description
B69: Duct Sensors | G69: Qty
B70: HE-67N3-0N00P | C70: Duct Humidity Sensor w Temp Sensor (3%) | G70: 0
B71: CD-P1000-00-00 | C71: Duct CO2 Sensor, 0-2000 PPM, 0 - 10 VDC | G71: 0
B73: Filter Status (Optional) | G73: Qty
B74: P32AC-2C | C74: Differential Pressure Switch, Single-Pole, Double-Throw (SPDT), 0.05 to 5 in. W.C. | G74: 0
B75: FTG18A-600R | C75: Duct Static Pressure Probe Kit: 4 in. Flanged Sensing Tube | G75: 0

Sheet Fan Coil Units
B5: Fan Coil Unit Selection Page
B8: Wired TEC300 Thermostats | Verasys Smart FanCoil Thermostats
B9: JCI Part Numbers | C9: System Covered | D9: JCI Logo | E9: Htg/Clg Signals | F9: Occupancy Sensor | G9: Humidity Control | H9: Qty
B10: TEC3610-00-000 | C10: Fan Coil On/Off or Floating Outputs | D10: Yes | E10: On/Off or Floating | F10: No | G10: No | H10: 0
B11: TEC3611-00-000 | C11: Fan Coil On/Off or Floating Outputs | D11: Yes | E11: On/Off or Floating | F11: Yes | G11: No | H11: 0
B12: TEC3612-00-000 | C12: Fan Coil On/Off or Floating Outputs | D12: Yes | E12: On/Off or Floating | F12: No | G12: Yes | H12: 0
B13: TEC3613-00-000 | C13: Fan Coil On/Off or Floating Outputs | D13: Yes | E13: On/Off or Floating | F13: Yes | G13: Yes | H13: 0
B14: TEC3620-00-000 | C14: Fan Coil Proportional Outputs | D14: Yes | E14: 0-10VDC | F14: No | G14: No | H14: 0
B15: TEC3621-00-000 | C15: Fan Coil Proportional Outputs | D15: Yes | E15: 0-10VDC | F15: Yes | G15: No | H15: 0
B16: TEC3622-00-000 | C16: Fan Coil Proportional Outputs | D16: Yes | E16: 0-10VDC | F16: No | G16: Yes | H16: 0
B17: TEC3623-00-000 | C17: Fan Coil Proportional Outputs | D17: Yes | E17: 0-10VDC | F17: Yes | G17: Yes | H17: 0
B18: TEC3610-01-000 | C18: Fan Coil On/Off or Floating Outputs | D18: No | E18: On/Off or Floating | F18: No | G18: No | H18: 0
B19: TEC3611-01-000 | C19: Fan Coil On/Off or Floating Outputs | D19: No | E19: On/Off or Floating | F19: Yes | G19: No | H19: 0
B20: TEC3612-01-000 | C20: Fan Coil On/Off or Floating Outputs | D20: No | E20: On/Off or Floating | F20: No | G20: Yes | H20: 0
B21: TEC3613-01-000 | C21: Fan Coil On/Off or Floating Outputs | D21: No | E21: On/Off or Floating | F21: Yes | G21: Yes | H21: 0
B22: TEC3620-01-000 | C22: Fan Coil Proportional Outputs | D22: No | E22: 0-10VDC | F22: No | G22: No | H22: 0
B23: TEC3621-01-000 | C23: Fan Coil Proportional Outputs | D23: No | E23: 0-10VDC | F23: Yes | G23: No | H23: 0
B24: TEC3622-01-000 | C24: Fan Coil Proportional Outputs | D24: No | E24: 0-10VDC | F24: No | G24: Yes | H24: 0
B25: TEC3623-01-000 | C25: Fan Coil Proportional Outputs | D25: No | E25: 0-10VDC | F25: Yes | G25: Yes | H25: 0
B27: Verasys Pro Wireless TEC3000 Thermostats | Verasys Smart Wireless FanCoil Thermostats
B28: JCI Part Numbers | C28: System Covered | D28: JCI Logo | E28: Htg/Clg Signals | F28: Occupancy Sensor | G28: Humidity Control | H28: Qty
B29: TEC3010-00-000 | C29: Fan Coil On/Off or Floating Outputs | D29: Yes | E29: On/Off or Floating | F29: No | G29: No | H29: 0
B30: TEC3011-00-000 | C30: Fan Coil On/Off or Floating Outputs | D30: Yes | E30: On/Off or Floating | F30: Yes | G30: No | H30: 0
B31: TEC3012-00-000 | C31: Fan Coil On/Off or Floating Outputs | D31: Yes | E31: On/Off or Floating | F31: No | G31: Yes | H31: 0
B32: TEC3013-00-000 | C32: Fan Coil On/Off or Floating Outputs | D32: Yes | E32: On/Off or Floating | F32: Yes | G32: Yes | H32: 0
B33: TEC3020-00-000 | C33: Fan Coil Proportional Outputs | D33: Yes | E33: 0-10VDC | F33: No | G33: No | H33: 0
B34: TEC3021-00-000 | C34: Fan Coil Proportional Outputs | D34: Yes | E34: 0-10VDC | F34: Yes | G34: No | H34: 0
B35: TEC3022-00-000 | C35: Fan Coil Proportional Outputs | D35: Yes | E35: 0-10VDC | F35: No | G35: Yes | H35: 0
B36: TEC3023-00-000 | C36: Fan Coil Proportional Outputs | D36: Yes | E36: 0-10VDC | F36: Yes | G36: Yes | H36: 0
B37: TEC3010-01-000 | C37: Fan Coil On/Off or Floating Outputs | D37: No | E37: On/Off or Floating | F37: No | G37: No | H37: 0
B38: TEC3011-01-000 | C38: Fan Coil On/Off or Floating Outputs | D38: No | E38: On/Off or Floating | F38: Yes | G38: No | H38: 0
B39: TEC3012-01-000 | C39: Fan Coil On/Off or Floating Outputs | D39: No | E39: On/Off or Floating | F39: No | G39: Yes | H39: 0
B40: TEC3013-01-000 | C40: Fan Coil On/Off or Floating Outputs | D40: No | E40: On/Off or Floating | F40: Yes | G40: Yes | H40: 0
B41: TEC3020-01-000 | C41: Fan Coil Proportional Outputs | D41: No | E41: 0-10VDC | F41: No | G41: No | H41: 0
B42: TEC3021-01-000 | C42: Fan Coil Proportional Outputs | D42: No | E42: 0-10VDC | F42: Yes | G42: No | H42: 0
B43: TEC3022-01-000 | C43: Fan Coil Proportional Outputs | D43: No | E43: 0-10VDC | F43: No | G43: Yes | H43: 0
B44: TEC3023-01-000 | C44: Fan Coil Proportional Outputs | D44: No | E44: 0-10VDC | F44: Yes | G44: Yes | H44: 0
B46: Verasys Pro Series Wireless Field Bus
B47: JCI Part Number
B48: Wireless Coordinator (Required) | C48: Product Description | G48: Qty
B49: LC-ZFR1825-0 | C49: Wireless Coordinator and mounting base with 110/220 VAC power supply and antenna. | G49: 0
B51: Wireless Repeaters | C51: Product Description | G51: Qty
B52: LC-ZFR1821-0B | C52: Wireless Pro Repeater Kit with EMT mount, 3ft RJ-12 cable, and 24VAC to 15VDC power supply | G52: 0
B53: LC-ZFR1822-0B | C53: Wireless Pro Repeater Wall Mount Kit, with 10ft RJ-12 cable and 24VAC to 15VDC power supply. | G53: 0
B55: TEC3000 Accessories
B57: Duct Sensor (Optional) | C57: For Supply Air Temperature (Optional). Additional diagnostics supported if connected. These are support for the RTU, Furnace, Heatpump Models | D57: Qty
B58: TE-6311M-1 | C58: 8" Duct Sensor Metal Enclosure, Nickel | D58: 0
B60: Wall Sensor (Optional) | C60: For Remote Sensor (Optional) | D60: Qty
B61: TE-68NT-0N00S | C61: Wall temperature sensor, 1k ohm, Nickel | D61: 0
B63: Fan Status (Optional) | C63: Fan Status (Optional) | D63: Qty
B64: CSD-CF0A0-1 | C64: Current switch, Split Core, 0.15 A Fixed Switch Setpoint 0.15 to 200 A Range | D64: 0
B66: Wall Plate (Optional) | C66: To Cover Larger Opening (Optional) | D66: Qty
B67: TEC-WALLPLT | C67: TEC3000 Wall Plate | D67: 0

Sheet Lighting
B5: Verasys Lighting Controller
B9: LC-VAC1001 Controllers | Verasys Lighting Applications
B10: JCI Part Number | C10: Description | G10: Qty
B11: LC-VAC1001-0 | C11: 18 Point 24v, Application Controller with Lighting Application | G11: 0
B13: Lighting Accessories
B14: JCI Part Number | C14: Description
B15: Light Sensors | G15: Qty
B16: MK7-B-CR-VTI | C16: Outdoor Light Level Sensor, 0-250 Ft Candles | G16: 0
B17: MK7-B-CCF-VTI | C17: Indoor Light Level Sensor, 0-100 Ft Candles | G17: 0
B19: OCC-S Sensor (Optional) | C19: Occupancy Sensor. Lighting switch plus relay used to switch off lights when motion is not sensed. | G19: Qty
B20: OLS-2100-1 | C20: See below | G20: 0
B21: RIBU1C | C21: Need one per OLS-2100-1 | G21: 0

Sheet BOM
A10: This page is a summary of what was selected in the previous pages
A11: Bill of Materials
A12: System | B12: Function | C12: Source 1 Part No | D12: JCI Part No | E12: Description | F12: Qty | G12: Video Tracks
A13: Network | B13: Smart Building Hub | C13: =VLOOKUP(D13,'Source 1 Parts Ref'!A$2:B$239,2,FALSE) -> S1-LC-SBH200-0 | D13: LC-SBH200-0 | E13: Verasys Smart Building Hub | F13: =Network!F10 -> 0 | G13: Video Available!
A14: Network | B14: Smart Building Hub Power | C14: =VLOOKUP(D14,'Source 1 Parts Ref'!A$2:B$239,2,FALSE) ->  | D14: ACC-PWRKIT-1A24 | E14: Verasys LC-SBH200-0 Power Supply | F14: =Network!F13 -> 0
A15: Network | B15: Smart Building Hub WiFi | C15: =VLOOKUP(D15,'Source 1 Parts Ref'!A$2:B$239,2,FALSE) ->  | D15: ACC-WIFIKIT-ODU | E15: Verasys LC-SBH200-0 USB Wi-Fi Stick | F15: =Network!F14 -> 0
A16: Network | B16: BACnet MSTP Repeater | C16: =VLOOKUP(D16,'Source 1 Parts Ref'!A$2:B$239,2,FALSE) -> S1-4683-TTM-3F | D16: 4683-TTM-3F | E16: RS-485 Repeater (Needed if you have more than 50 system bus devices) | F16: =Network!F17 -> 0
A17: Network | B17: BACnet MSTP EOL | C17: =VLOOKUP(D17,'Source 1 Parts Ref'!A$2:B$239,2,FALSE) -> S1-MS-BACEOL-0 | D17: MS-BACEOL-0 | E17: End of line Terminator (Used if the SBH100, or VEC controllers are end of line devices on the trunk) | F17: =Network!F18 -> 0
A18: Network | B18: Communication Wire | C18: =VLOOKUP(D18,'Source 1 Parts Ref'!A$2:B$239,2,FALSE) ->  | D18: CBL-22/3-FC-PLN | E18: System Bus Cable 22-3C Shielded Plenum Wire | F18: =Network!F19 -> 0
A19: Network | B19: Communication Wire | C19: =VLOOKUP(D19,'Source 1 Parts Ref'!A$2:B$239,2,FALSE) ->  | D19: CBL-22/3-FC-PVC | E19: System Bus Cable 22-3C Shielded NonPlenum Wire | F19: =Network!F20 -> 0
A20: Network | B20: Communication Wire | C20: =VLOOKUP(D20,'Source 1 Parts Ref'!A$2:B$239,2,FALSE) ->  | D20: CBL-22/2P-SAPLN | E20: Sensor Bus Cable 22-2P Shielded Plenum Wire | F20: =Network!F21 -> 0
A21: Network | B21: Communication Wire | C21: =VLOOKUP(D21,'Source 1 Parts Ref'!A$2:B$239,2,FALSE) ->  | D21: CBL-22/2P-SAPVC | E21: Sensor Bus Cable 22-2P Shielded NonPlenum Wire | F21: =Network!F22 -> 0
A22: Network | B22: Battery Backup | C22: =VLOOKUP(D22,'Source 1 Parts Ref'!A$2:B$239,2,FALSE) ->  | D22: UPSPNL550-0 | E22: 550 VA/330W Power System Battery Backup and Surge Protection | F22: =Network!F23 -> 0
A23: I/O Module | B23: IOM Device | C23: =VLOOKUP(D23,'Source 1 Parts Ref'!A$2:B$239,2,FALSE) -> S1-LCVAC1002-0 | D23: LC-VAC1002-0 | E23: Verasys IOM Device, 4 BI, 5 AI, 9 BO, 24v | F23: ='IOM Device'!D10 -> 0 | G23: Video Available!
A24: I/O Module | B24: IOM Panel | C24: =VLOOKUP(D24,'Source 1 Parts Ref'!A$2:B$239,2,FALSE) ->  | D24: PA0000004GC0 | E24: Panel Enclosure for a single IOM device (12 x 16 x 6.5 in, 40 VA) | F24: ='IOM Device'!D11 -> 0
A25: I/O Module | B25: IOM Panel | C25: =VLOOKUP(D25,'Source 1 Parts Ref'!A$2:B$239,2,FALSE) ->  | D25: PA0000001AH0 | E25: Panel Enclosure for two IOM devices (20 x 24 x 6.5 in, 96 VA) | F25: ='IOM Device'!D12 -> 0
A26: I/O Module | B26: IOM Panel | C26: =VLOOKUP(D26,'Source 1 Parts Ref'!A$2:B$239,2,FALSE) ->  | D26: PA0000001EH0 | E26: Panel Enclosure for three IOM devices (24 x 24 x 6.5 in 96 VA) | F26: ='IOM Device'!D13 -> 0
A27: I/O Module | B27: IOM Transformer | C27: =VLOOKUP(D27,'Source 1 Parts Ref'!A$2:B$239,2,FALSE) -> S1-Y65T42-0 | D27: Y65T42-0 | E27: 120/208/240 to 24V XFR 40VA | F27: ='IOM Device'!D17 -> 0
A28: I/O Module | B28: I/O | C28: =VLOOKUP(D28,'Source 1 Parts Ref'!A$2:B$239,2,FALSE) -> S1-TE68NT1N00S | D28: TE-68NT-0N00S | E28: Wall temperature sensor, 1k ohm, nickel with temperature occupancy button. | F28: ='IOM Device'!D18 -> 0
A29: I/O Module | B29: I/O | C29: =VLOOKUP(D29,'Source 1 Parts Ref'!A$2:B$239,2,FALSE) -> S1-TE-6311M-1 | D29: TE-6311M-1 | E29: 8" Duct Sensor Metal Enclosure, Nickel | F29: ='IOM Device'!D19 -> 0
A30: I/O Module | B30: I/O | C30: =VLOOKUP(D30,'Source 1 Parts Ref'!A$2:B$239,2,FALSE) -> S1-TE-6313P-1 | D30: TE-6313P-1 | E30: Outside Air Sensor, Nickel | F30: ='IOM Device'!D20 -> 0
A31: I/O Module | B31: I/O | C31: =VLOOKUP(D31,'Source 1 Parts Ref'!A$2:B$239,2,FALSE) -> S1-H68N30N00WS | D31: HE-68N3-0N00WS | E31: Wall Mount Humidity Transmitter w Temp Sensor (3%) | F31: ='IOM Device'!D21 -> 0
A32: I/O Module | B32: I/O | C32: =VLOOKUP(D32,'Source 1 Parts Ref'!A$2:B$239,2,FALSE) -> S1-H68P30N000 | D32: HE-68P3-0N000 | E32: Outdoor Humidity Sensor (3%) | F32: ='IOM Device'!D22 -> 0
A33: I/O Module | B33: I/O | C33: =VLOOKUP(D33,'Source 1 Parts Ref'!A$2:B$239,2,FALSE) -> S1-H67N30N00P | D33: HE-67N3-0N00P | E33: Duct Humidity Sensor w Temp Sensor (3%) | F33: ='IOM Device'!D23 -> 0
A34: I/O Module | B34: I/O | C34: =VLOOKUP(D34,'Source 1 Parts Ref'!A$2:B$239,2,FALSE) -> S1-CDW-00-00-2 | D34: CD-W00-00-2 | E34: CO2 sensor 0-2000ppm | F34: ='IOM Device'!D24 -> 0
A35: I/O Module | B35: I/O | C35: =VLOOKUP(D35,'Source 1 Parts Ref'!A$2:B$239,2,FALSE) ->  | D35: 2020-T | E35: Door Sensor, Flush Mount Switch, Magnet, Terminals | F35: ='IOM Device'!D25 -> 0
A36: I/O Module | B36: I/O | C36: =VLOOKUP(D36,'Source 1 Parts Ref'!A$2:B$239,2,FALSE) ->  | D36: 2505A | E36: N.O. Closed Loop Type Commercial Door Contact | F36: ='IOM Device'!D26 -> 0
A37: I/O Module | B37: I/O | C37: =VLOOKUP(D37,'Source 1 Parts Ref'!A$2:B$239,2,FALSE) ->  | D37: MK7-B-CR-VTI | E37: Outdoor Light Level Sensor, 0-250 Ft Candles | F37: ='IOM Device'!D27 -> 0
A38: I/O Module | B38: I/O | C38: =VLOOKUP(D38,'Source 1 Parts Ref'!A$2:B$239,2,FALSE) -> S1-DPT2090-25G | D38: DPT2090-25G | E38: Pressure Sensor, Gage, 25 PSI, 0-5VDC, 0.25% | F38: ='IOM Device'!D28 -> 0
A39: I/O Module | B39: I/O | C39: =VLOOKUP(D39,'Source 1 Parts Ref'!A$2:B$239,2,FALSE) -> S1-TBG16A-600R | D39: TBG16A-600R | E39: Steam Trap Assembly (Pig Tail) | F39: ='IOM Device'!D29 -> 0
A40: I/O Module | B40: I/O | C40: =VLOOKUP(D40,'Source 1 Parts Ref'!A$2:B$239,2,FALSE) -> S1-DPT26400R1B | D40: DPT2640-0R1B | E40: Differential Pressure Sensor -1 to 1 in WC, 0-5VDC (Used for Building Pressure) | F40: ='IOM Device'!D30 -> 0
A41: I/O Module | B41: I/O | C41: =VLOOKUP(D41,'Source 1 Parts Ref'!A$2:B$239,2,FALSE) -> S1-DPT2640R25D | D41: DPT2640-R25D | E41: Differential Pressure Sensor -.25 to .25 in WC, 0-5VDC (Used for Building Pressure) | F41: ='IOM Device'!D31 -> 0
A42: I/O Module | B42: I/O | C42: =VLOOKUP(D42,'Source 1 Parts Ref'!A$2:B$239,2,FALSE) -> S1-A-306-K | D42: A-306-K | E42: Outdoor Static Pressure Sensor (Used for Building Pressure) | F42: ='IOM Device'!D32 -> 0
A43: I/O Module | B43: I/O | C43: =VLOOKUP(D43,'Source 1 Parts Ref'!A$2:B$239,2,FALSE) -> S1-SD-01 | D43: SD-01 | E43: Surge Dampener (Used to Dampen Wind Effects on Building Pressure Sensors) | F43: ='IOM Device'!D33 -> 0
A44: I/O Module | B44: I/O | C44: =VLOOKUP(D44,'Source 1 Parts Ref'!A$2:B$239,2,FALSE) -> S1-RPS | D44: RPS | E44: Stainless Wall plate (for measuring inside for building pressure) | F44: ='IOM Device'!D34 -> 0
A45: I/O Module | B45: I/O | C45: =VLOOKUP(D45,'Source 1 Parts Ref'!A$2:B$239,2,FALSE) -> S1-RPS-W | D45: RPS-W | E45: White plastic wall plate (for measuring inside building pressure) | F45: ='IOM Device'!D35 -> 0
A46: I/O Module | B46: I/O | C46: =VLOOKUP(D46,'Source 1 Parts Ref'!A$2:B$239,2,FALSE) -> S1-RLD-134A | D46: RLD-134A | E46: Refrigerant Leak Detector for R-134A refrigerant. 0-5V, 0-1000PPM | F46: ='IOM Device'!D36 -> 0
A47: I/O Module | B47: I/O | C47: =VLOOKUP(D47,'Source 1 Parts Ref'!A$2:B$239,2,FALSE) -> S1-WD-1B | D47: WD-1B | E47: Water Detector SPDT Contact | F47: ='IOM Device'!D37 -> 0
A48: I/O Module | B48: I/O | C48: =VLOOKUP(D48,'Source 1 Parts Ref'!A$2:B$239,2,FALSE) -> S1-WD-2-T-10 | D48: WD-2-T-10 | E48: Water Detector Tape Style 10ft | F48: ='IOM Device'!D38 -> 0
A49: I/O Module | B49: I/O | C49: =VLOOKUP(D49,'Source 1 Parts Ref'!A$2:B$239,2,FALSE) -> S1-WD-2-T-25 | D49: WD-2-T-25 | E49: Water Detector Tape Style 25ft | F49: ='IOM Device'!D39 -> 0
A50: I/O Module | B50: I/O | C50: =VLOOKUP(D50,'Source 1 Parts Ref'!A$2:B$239,2,FALSE) -> S1-CSDSCC50100L0 | D50: CSDSC-C50100L0 | E50: Current Switch Device Self Calibrating, 100A Max, No Relay | F50: ='IOM Device'!D40 -> 0
A51: I/O Module | B51: I/O | C51: =VLOOKUP(D51,'Source 1 Parts Ref'!A$2:B$239,2,FALSE) -> S1-CSDSCC50100L1 | D51: CSDSC-C50100L1 | E51: Current Switch Device, Self Calibrating, 100A Max with 24v Relay (10A) | F51: ='IOM Device'!D41 -> 0
A52: I/O Module | B52: I/O | C52: =VLOOKUP(D52,'Source 1 Parts Ref'!A$2:B$239,2,FALSE) -> S1-CSDECMC35200L0 | D52: CSDECM-C35200L0 | E52: Current Switch Device, Manual Calibrating, 200A Max, No Relay | F52: ='IOM Device'!D42 -> 0
A53: I/O Module | B53: I/O | C53: =VLOOKUP(D53,'Source 1 Parts Ref'!A$2:B$239,2,FALSE) -> S1-CSDECMC35200L1 | D53: CSDECM-C35200L1 | E53: Current Switch Device, Manual Calibrating, 200A Max with24v Relay (10A) | F53: ='IOM Device'!D43 -> 0
A54: I/O Module | B54: IOM Relay | C54: =VLOOKUP(D54,'Source 1 Parts Ref'!A$2:B$239,2,FALSE) -> S1-RIBU1C | D54: RIBU1C | E54: Enclosed Relay SPDT (10A), 10-30VAC/DC | F54: ='IOM Device'!D44 -> 0
A55: I/O Module | B55: IOM NS Sensor | C55: =VLOOKUP(D55,'Source 1 Parts Ref'!A$2:B$239,2,FALSE) -> S1-NSBTN7003-0 | D55: NS-BTN7003-0 | E55: Net Sensor, 120x80, JCI Logo, No Display, No Setpoint Adjust, Hardwired Terminals, Addressable | F55: ='IOM Device'!D48 -> 0
A56: I/O Module | B56: IOM NS Sensor | C56: =VLOOKUP(D56,'Source 1 Parts Ref'!A$2:B$239,2,FALSE) -> S1-NSBTN7003-2 | D56: NS-BTN7003-2 | E56: Net Sensor, 120x80, No Logo, No Display, No Setpoint Adjust, Hardwired Terminals, Addressable | F56: ='IOM Device'!D49 -> 0
A57: I/O Module | B57: IOM NS Sensor | C57: =VLOOKUP(D57,'Source 1 Parts Ref'!A$2:B$239,2,FALSE) -> S1-NSBHN7003-0 | D57: NS-BHN7003-0 | E57: Net Sensor, 120x80, Logo, No Display, No Setpoint Adjust, Hardwired Terminals, 3% Humidity | F57: ='IOM Device'!D50 -> 0
A58: I/O Module | B58: IOM NS Sensor | C58: =VLOOKUP(D58,'Source 1 Parts Ref'!A$2:B$239,2,FALSE) ->  | D58: NS-BTN7001-0 | E58: Net Sensor, 120x80, JCI Logo, No Display, No Setpoint Adjust, Modular Jack, Address 199 | F58: ='IOM Device'!D51 -> 0
A59: I/O Module | B59: IOM NS Sensor | C59: =VLOOKUP(D59,'Source 1 Parts Ref'!A$2:B$239,2,FALSE) ->  | D59: NS-BTN7001-2 | E59: Net Sensor, 120x80, No Logo, No Display, No Setpoint Adjust, Modular Jack, Address 199 | F59: ='IOM Device'!D52 -> 0
A60: I/O Module | B60: IOM Wireless Receiver | C60: =VLOOKUP(D60,'Source 1 Parts Ref'!A$2:B$239,2,FALSE) -> S1-WRZ-7860-0 | D60: WRZ-7860-0 | E60: Wireless Receiver, One to Many Sensors | F60: ='IOM Device'!D56 -> 0 | G60: Video Available!
A61: I/O Module | B61: IOM Receiver Wire Extder | C61: =VLOOKUP(D61,'Source 1 Parts Ref'!A$2:B$239,2,FALSE) -> S1-ZFRCBLEXT-0 | D61: ZFR-CBLEXT-0 | E61: RJ12 Extension Cable 10" for the WRZ-7860-0. | F61: ='IOM Device'!D57 -> 0
A62: I/O Module | B62: IOM Wireless Sensor | C62: =VLOOKUP(D62,'Source 1 Parts Ref'!A$2:B$239,2,FALSE) -> S1-WRZSTR00000 | D62: WRZ-STR0000-0 | E62: Wireless Refrigerator/Freezer Temperature Transmitter | F62: ='IOM Device'!D58 -> 0
A63: I/O Module | B63: IOM Wireless Sensor | C63: =VLOOKUP(D63,'Source 1 Parts Ref'!A$2:B$239,2,FALSE) -> S1-WRZRMT10K-0 | D63: WRZ-RMT10K-0 | E63: Wireless Room Temperature Sensor Transmitter for Remote 10K Temperature Probes | F63: ='IOM Device'!D59 -> 0
A64: I/O Module | B64: IOM Wireless Sensor | C64: =VLOOKUP(D64,'Source 1 Parts Ref'!A$2:B$239,2,FALSE) ->  | D64: WRZ-TTR0000-0 | E64: Wireless Room Temperature Sensor Transmitter, No Setpoint Adjustment | F64: ='IOM Device'!D60 -> 0
A65: I/O Module | B65: IOM Wireless Sensor | C65: =VLOOKUP(D65,'Source 1 Parts Ref'!A$2:B$239,2,FALSE) -> S1-WRZTHN00000 | D65: WRZ-THN0000-0 | E65: Wireless Room Temperature and Humidity Sensor Transmitter | F65: ='IOM Device'!D61 -> 0
A66: I/O Module | B66: IOM Energy Meter | C66: =VLOOKUP(D66,'Source 1 Parts Ref'!A$2:B$239,2,FALSE) ->  | D66: ='IOM Device - Energy Meter'!F33 -> ? | E66: =VLOOKUP(D66,'Energy Meters'!A$1:B$38,2,FALSE) ->  | F66: ='IOM Device - Energy Meter'!G33 -> 0 | G66: Video Available!
A67: I/O Module | B67: IOM Energy Meter | C67: =VLOOKUP(D67,'Source 1 Parts Ref'!A$2:B$239,2,FALSE) ->  | D67: ='IOM Device - Energy Meter'!F34 -> ? | E67: =VLOOKUP(D67,'Energy Meters'!A$1:B$38,2,FALSE) ->  | F67: ='IOM Device - Energy Meter'!G34 -> 0 | G67: Video Available!
A68: I/O Module | B68: IOM Energy Meter | C68: =VLOOKUP(D68,'Source 1 Parts Ref'!A$2:B$239,2,FALSE) ->  | D68: ='IOM Device - Energy Meter'!F35 -> ? | E68: =VLOOKUP(D68,'Energy Meters'!A$1:B$38,2,FALSE) ->  | F68: ='IOM Device - Energy Meter'!G35 -> 0 | G68: Video Available!
A69: SZ - Smart Equipment | B69: Zone Temperature | C69: =VLOOKUP(D69,'Source 1 Parts Ref'!A$2:B$239,2,FALSE) -> S1-NSBTB7003-0 | D69: NS-BTB7003-0 | E69: Netstat for Smart Equipment Single Zone Unit | F69: ='SZ - Smart Equipment'!D10 -> 0
A70: SZ - Smart Equipment | B70: Zone Temperature | C70: =VLOOKUP(D70,'Source 1 Parts Ref'!A$2:B$239,2,FALSE) -> S1-NSBTB7003-2 | D70: NS-BTB7003-2 | E70: Netstat for Smart Equipment Single Zone Unit | F70: ='SZ - Smart Equipment'!D11 -> 0
A71: SZ - Smart Equipment | B71: Zone Temperature | C71: =VLOOKUP(D71,'Source 1 Parts Ref'!A$2:B$239,2,FALSE) -> S1-NSBTN7003-0 | D71: NS-BTN7003-0 | E71: Netstat for Smart Equipment Single Zone Unit | F71: ='SZ - Smart Equipment'!D12 -> 0
A72: SZ - Smart Equipment | B72: Zone Temperature | C72: =VLOOKUP(D72,'Source 1 Parts Ref'!A$2:B$239,2,FALSE) -> S1-NSBTN7003-2 | D72: NS-BTN7003-2 | E72: Netstat for Smart Equipment Single Zone Unit | F72: ='SZ - Smart Equipment'!D13 -> 0
A73: SZ - Smart Equipment | B73: Zone Temperature | C73: =VLOOKUP(D73,'Source 1 Parts Ref'!A$2:B$239,2,FALSE) -> S1-NSBTP7002-0 | D73: NS-BTP7002-0 | E73: Netstat for Smart Equipment Single Zone Unit | F73: ='SZ - Smart Equipment'!D14 -> 0
A74: SZ - Smart Equipment | B74: Zone Temperature | C74: =VLOOKUP(D74,'Source 1 Parts Ref'!A$2:B$239,2,FALSE) -> S1-NSBTP7002-2 | D74: NS-BTP7002-2 | E74: Netstat for Smart Equipment Single Zone Unit | F74: ='SZ - Smart Equipment'!D15 -> 0
A75: SZ - Smart Equipment | B75: Zone Temperature | C75: =VLOOKUP(D75,'Source 1 Parts Ref'!A$2:B$239,2,FALSE) -> S1-NSBHR7103-0 | D75: NS-BHR7103-0 | E75: Netstat for Smart Equipment Single Zone Unit | F75: ='SZ - Smart Equipment'!D16 -> 0
A76: SZ - Smart Equipment | B76: Zone Temperature | C76: =VLOOKUP(D76,'Source 1 Parts Ref'!A$2:B$239,2,FALSE) -> S1-NSBHP7001-0 | D76: NS-BHP7001-0 | E76: Netstat for Smart Equipment Single Zone Unit | F76: ='SZ - Smart Equipment'!D17 -> 0
A77: SZ - Smart Equipment | B77: Zone Temperature | C77: =VLOOKUP(D77,'Source 1 Parts Ref'!A$2:B$239,2,FALSE) -> S1-NSBTB7F03-0 | D77: NS-BTB7F03-0 | E77: Netstat for Smart Equipment Single Zone Unit | F77: ='SZ - Smart Equipment'!D18 -> 0
A78: SZ - Smart Equipment | B78: Zone Temperature | C78: =VLOOKUP(D78,'Source 1 Parts Ref'!A$2:B$239,2,FALSE) -> S1-NSBTK7002-0 | D78: NS-BTK7002-0 | E78: Netstat for Smart Equipment Single Zone Unit | F78: ='SZ - Smart Equipment'!D19 -> 0
A79: SZ - Smart Equipment | B79: Zone Temperature | C79: =VLOOKUP(D79,'Source 1 Parts Ref'!A$2:B$239,2,FALSE) -> S1-NSBTK7002-2 | D79: NS-BTK7002-2 | E79: Netstat for Smart Equipment Single Zone Unit | F79: ='SZ - Smart Equipment'!D20 -> 0
A80: SZ - Smart Equipment | B80: CO2 Sensor | C80: =VLOOKUP(D80,'Source 1 Parts Ref'!A$2:B$239,2,FALSE) -> S1-NSBCN7004-0 | D80: NS-BCN7004-0 | E80: BACnet network CO2 sensor 80 mm x 120 mm | F80: ='SZ - Smart Equipment'!D23 -> 0
A81: SZ - Smart Equipment | B81: COMM CARD | C81: =VLOOKUP(D81,'Source 1 Parts Ref'!A$2:B$239,2,FALSE) ->  | D81: SE-COM1001-0 | E81: Smart Equipment BACnet Communications Card | F81: ='SZ - Smart Equipment'!D28 -> 0
A82: SZ - 3rd Party Units | B82: Thermostat | C82: =VLOOKUP(D82,'Source 1 Parts Ref'!A$2:B$239,2,FALSE) -> S1-TEC3630-00 | D82: TEC3630-00-000 | E82: TSTAT, MSTP or N2, RTU/Heat pump with Econ, Logo | F82: ='SZ - 3rd Party Equipment'!I11 -> 0 | G82: Video Available!
A83: SZ - 3rd Party Units | B83: Thermostat | C83: =VLOOKUP(D83,'Source 1 Parts Ref'!A$2:B$239,2,FALSE) -> S1-TEC3631-00 | D83: TEC3631-00-000 | E83: TSTAT, MSTP or N2, RTU/Heat pump with Econ, Occ sensor, Logo | F83: ='SZ - 3rd Party Equipment'!I12 -> 0 | G83: Video Available!
A84: SZ - 3rd Party Units | B84: Thermostat | C84: =VLOOKUP(D84,'Source 1 Parts Ref'!A$2:B$239,2,FALSE) -> S1-TEC3630-01 | D84: TEC3630-01-000 | E84: TSTAT, MSTP or N2, RTU/Heat pump with Econ, No Logo | F84: ='SZ - 3rd Party Equipment'!I13 -> 0 | G84: Video Available!
A85: SZ - 3rd Party Units | B85: Thermostat | C85: =VLOOKUP(D85,'Source 1 Parts Ref'!A$2:B$239,2,FALSE) -> S1-TEC3631-01 | D85: TEC3631-01-000 | E85: TSTAT, MSTP or N2, RTU/Heat pump with Econ, Occ sensor, No Logo | F85: ='SZ - 3rd Party Equipment'!I14 -> 0 | G85: Video Available!
A86: SZ - 3rd Party Units | B86: Wireless Thermostat | C86: =VLOOKUP(D86,'Source 1 Parts Ref'!A$2:B$239,2,FALSE) -> S1-TEC30300000 | D86: TEC3030-00-000 | E86: TSTAT, MSTP or N2, RTU/Heat pump with Econ, Logo | F86: ='SZ - 3rd Party Equipment'!I19 -> 0 | G86: Video Available!
A87: SZ - 3rd Party Units | B87: Wireless Thermostat | C87: =VLOOKUP(D87,'Source 1 Parts Ref'!A$2:B$239,2,FALSE) -> S1-TEC30310000 | D87: TEC3031-00-000 | E87: TSTAT, MSTP or N2, RTU/Heat pump with Econ, Occ sensor, Logo | F87: ='SZ - 3rd Party Equipment'!I20 -> 0 | G87: Video Available!
A88: SZ - 3rd Party Units | B88: Wireless Thermostat | C88: =VLOOKUP(D88,'Source 1 Parts Ref'!A$2:B$239,2,FALSE) -> S1-TEC30300100 | D88: TEC3030-01-000 | E88: TSTAT, MSTP or N2, RTU/Heat pump with Econ, No Logo | F88: ='SZ - 3rd Party Equipment'!I21 -> 0 | G88: Video Available!
A89: SZ - 3rd Party Units | B89: Wireless Thermostat | C89: =VLOOKUP(D89,'Source 1 Parts Ref'!A$2:B$239,2,FALSE) -> S1-TEC30310100 | D89: TEC3031-01-000 | E89: TSTAT, MSTP or N2, RTU/Heat pump with Econ, Occ sensor, No Logo | F89: ='SZ - 3rd Party Equipment'!I22 -> 0 | G89: Video Available!
A90: SZ - 3rd Party Units | B90: Wireless Pro Coordinator | C90: =VLOOKUP(D90,'Source 1 Parts Ref'!A$2:B$239,2,FALSE) -> S1-LCZFR1825-0 | D90: LC-ZFR1825-0 | E90: Wireless Coordinator and mounting base with 110/220 VAC power supply and antenna. | F90: ='SZ - 3rd Party Equipment'!I27 -> 0 | G90: Video Available!
A91: SZ - 3rd Party Units | B91: Wireless Repeater Kit | C91: =VLOOKUP(D91,'Source 1 Parts Ref'!A$2:B$239,2,FALSE) -> S1-LCZFR18210B | D91: LC-ZFR1821-0B | E91: Wireless Pro Repeater Kit with EMT mount, 3ft RJ-12 cable, and 24VAC to 15VDC power supply | F91: ='SZ - 3rd Party Equipment'!I30 -> 0
A92: SZ - 3rd Party Units | B92: Wireless Repeater Kit | C92: =VLOOKUP(D92,'Source 1 Parts Ref'!A$2:B$239,2,FALSE) -> S1-LCZFR18220B | D92: LC-ZFR1822-0B | E92: Wireless Pro Repeater Wall Mount Kit, with 10ft RJ-12 cable and 24VAC to 15VDC power supply. | F92: ='SZ - 3rd Party Equipment'!I31 -> 0
A93: SZ - 3rd Party Units | B93: Supply Temp | C93: =VLOOKUP(D93,'Source 1 Parts Ref'!A$2:B$239,2,FALSE) -> S1-TE-6311M-1 | D93: TE-6311M-1 | E93: 8" Duct Sensor Metal Enclosure, Nickel | F93: ='SZ - 3rd Party Equipment'!D36 -> 0
A94: SZ - 3rd Party Units | B94: Outside Temp | C94: =VLOOKUP(D94,'Source 1 Parts Ref'!A$2:B$239,2,FALSE) -> S1-TE-6313P-1 | D94: TE-6313P-1 | E94: Outside Air Sensor, Nickel | F94: ='SZ - 3rd Party Equipment'!D39 -> 0
A95: SZ - 3rd Party Units | B95: Remote Sensor | C95: =VLOOKUP(D95,'Source 1 Parts Ref'!A$2:B$239,2,FALSE) -> S1-TE68NT1N00S | D95: TE-68NT-0N00S | E95: Wall temperature sensor, 1k ohm, Nickel | F95: ='SZ - 3rd Party Equipment'!D42 -> 0
A96: SZ - 3rd Party Units | B96: Wall plate | C96: =VLOOKUP(D96,'Source 1 Parts Ref'!A$2:B$239,2,FALSE) -> S1-TEC-WALLPLT | D96: TEC-WALLPLT | E96: TEC3000 Wall Plate | F96: ='SZ - 3rd Party Equipment'!D52 -> 0
A97: SZ - 3rd Party Units | B97: Fan Status | C97: =VLOOKUP(D97,'Source 1 Parts Ref'!A$2:B$239,2,FALSE) -> S1-CSD-CF0A0-1 | D97: CSD-CF0A0-1 | E97: Current switch, Split Core, 0.15 A Fixed Switch Setpoint | F97: ='SZ - 3rd Party Equipment'!D45 -> 0
A98: SZ - 3rd Party Units | B98: Damper Actuator | C98: =VLOOKUP(D98,'Source 1 Parts Ref'!A$2:B$239,2,FALSE) -> S1-M9106-GGA-2 | D98: M9208-GGA-3 | E98: 70in-lb spring return actuator proportional | F98: ='SZ - 3rd Party Equipment'!D48 -> 0
A99: SZ - 3rd Party Units | B99: Damper Actuator | C99: =VLOOKUP(D99,'Source 1 Parts Ref'!A$2:B$239,2,FALSE) -> S1-M9208-250 | D99: M9208-250 | E99: Remote mounting kit with crankarm and damper linkage. | F99: ='SZ - 3rd Party Equipment'!D49 -> 0
A100: MZ- Zone Coordinator | B100: Zone Coordinator | C100: =VLOOKUP(D100,'Source 1 Parts Ref'!A$2:B$239,2,FALSE) -> S1-LC-VZC100-0 | D100: LC-VZC100-0 | E100: Verasys Zoning Coordinator for VAV and COBP applications | F100: ='MZ- Zone Coordinator'!F10 -> 0 | G100: Video Available!
A101: MZ- Zone Coordinator | B101: Zone Coordinator | C101: =VLOOKUP(D101,'Source 1 Parts Ref'!A$2:B$239,2,FALSE) -> S1-LC-VZCPNL-0 | D101: LC-VZCPNL-0 | E101: Verasys Zoning Coordinator for VAV and COBP applications (Panel Version) | F101: ='MZ- Zone Coordinator'!F11 -> 0 | G101: Video Available!
A102: MZ- Zone Coordinator | B102: Zone Power | C102: =VLOOKUP(D102,'Source 1 Parts Ref'!A$2:B$239,2,FALSE) -> S1-Y65T42-0 | D102: Y65T42-0 | E102: 120/208/240 to 24V XFR 40VA (Power for 2 Boxes) | F102: ='MZ- Zone Coordinator'!F14 -> 0
A103: MZ- Zone Coordinator | B103: Zone Power | C103: =VLOOKUP(D103,'Source 1 Parts Ref'!A$2:B$239,2,FALSE) -> S1-PSH100A | D103: PSH100A | E103: 120V to 24V XFR, 100VA (Power for 6 Boxes) | F103: ='MZ- Zone Coordinator'!F15 -> 0
A104: MZ- Zone Coordinator | B104: Zone Power | C104: =VLOOKUP(D104,'Source 1 Parts Ref'!A$2:B$239,2,FALSE) -> S1-PSH300A | D104: PSH300A | E104: 480/277/240/120V to 24V XFR, 3 Circuits 100VA each (Power for 18 Boxes) | F104: ='MZ- Zone Coordinator'!F16 -> 0
A105: MZ- Zone Coordinator | B105: Zone Power | C105: =VLOOKUP(D105,'Source 1 Parts Ref'!A$2:B$239,2,FALSE) -> S1-PSH500A | D105: PSH500A | E105: 480/277/240/120V to 24V XFR,5 Circuits 100VA each (Power for 30 Boxes) | F105: ='MZ- Zone Coordinator'!F17 -> 0
A106: MZ - Smart Equipment | B106: COMM CARD | C106: =VLOOKUP(D106,'Source 1 Parts Ref'!A$2:B$239,2,FALSE) ->  | D106: SE-COM1001-0 | E106: Smart Equipment BACnet Communications Card | F106: ='MZ- Smart Equipment'!F12 -> 0
A107: MZ- 3rd Party Units | B107: 3rd Party Controller | C107: =VLOOKUP(D107,'Source 1 Parts Ref'!A$2:B$239,2,FALSE) -> S1-LC-VEC100-0 | D107: LC-VEC100-0 | E107: 3rd Party RTU (VAV, COPB) | F107: ='MZ- 3rd Party Units'!F10 -> 0 | G107: Video Available!
A108: MZ- 3rd Party Units | B108: Duct Sensors | C108: =VLOOKUP(D108,'Source 1 Parts Ref'!A$2:B$239,2,FALSE) -> S1-TE-6311M-1 | D108: TE-6311M-1 | E108: 8" Duct Sensor Metal Enclosure, Nickel | F108: ='MZ- 3rd Party Units'!F14 -> 0
A109: MZ- 3rd Party Units | B109: Static Pressure Sensor | C109: =VLOOKUP(D109,'Source 1 Parts Ref'!A$2:B$239,2,FALSE) -> S1-DPT2640005D | D109: DPT2640-005D | E109: Low Differential Pressure Transducer 0-5 in WC, 0-5VDC | F109: ='MZ- 3rd Party Units'!F17 -> 0
A110: MZ- 3rd Party Units | B110: Static Pressure Probe | C110: =VLOOKUP(D110,'Source 1 Parts Ref'!A$2:B$239,2,FALSE) -> S1-FTG18A-600R | D110: FTG18A-600R | E110: Duct Static Pressure Probe (Need 1 Per Sensor) | F110: ='MZ- 3rd Party Units'!F18 -> 0
A111: MZ- 3rd Party Units | B111: Outside Temp | C111: =VLOOKUP(D111,'Source 1 Parts Ref'!A$2:B$239,2,FALSE) -> S1-TE-6313P-1 | D111: TE-6313P-1 | E111: Outside Air Sensor, Nickel | F111: ='MZ- 3rd Party Units'!F21 -> 0
A112: MZ- 3rd Party Units | B112: Filter Status | C112: =VLOOKUP(D112,'Source 1 Parts Ref'!A$2:B$239,2,FALSE) -> S1-P32AC-2C | D112: P32AC-2C | E112: Differential Pressure Switch, Single-Pole, Double-Throw (SPDT) | F112: ='MZ- 3rd Party Units'!F24 -> 0
A113: MZ- 3rd Party Units | B113: Filter Status | C113: =VLOOKUP(D113,'Source 1 Parts Ref'!A$2:B$239,2,FALSE) -> S1-FTG18A-600R | D113: FTG18A-600R | E113: Duct Static Pressure Probe Kit: 4 in. Flanged Sensing Tube | F113: ='MZ- 3rd Party Units'!F25 -> 0
A114: MZ- 3rd Party Units | B114: Fan Status | C114: =VLOOKUP(D114,'Source 1 Parts Ref'!A$2:B$239,2,FALSE) -> S1-CSD-CF0A0-1 | D114: CSD-CF0A0-1 | E114: Current switch, Split Core, 0.15 A Fixed Switch Setpoint | F114: ='MZ- 3rd Party Units'!F28 -> 0
A115: MZ- 3rd Party Units | B115: Return CO2 Sensor | C115: =VLOOKUP(D115,'Source 1 Parts Ref'!A$2:B$239,2,FALSE) ->  | D115: CD-P1000-00-00 | E115: Duct Mount CO2 Transmitter 0–10 VDC, 0–2,000 ppm CO2 | F115: ='MZ- 3rd Party Units'!F31 -> 0
A116: MZ- 3rd Party Units | B116: Zone Humidity | C116: =VLOOKUP(D116,'Source 1 Parts Ref'!A$2:B$239,2,FALSE) -> S1-NSBHN7003-0 | D116: NS-BHN7003-0 | E116: Netstat, 3% Humidity, addressable | F116: ='MZ- 3rd Party Units'!F34 -> 0
A117: MZ- 3rd Party Units | B117: Damper Actuator | C117: =VLOOKUP(D117,'Source 1 Parts Ref'!A$2:B$239,2,FALSE) -> S1-M9106-GGA-2 | D117: M9208-GGA-3 | E117: 70in-lb spring return actuator proportional | F117: ='MZ- 3rd Party Units'!F37 -> 0
A118: MZ- 3rd Party Units | B118: Damper Actuator | C118: =VLOOKUP(D118,'Source 1 Parts Ref'!A$2:B$239,2,FALSE) -> S1-M9208-250 | D118: M9208-250 | E118: Remote mounting kit with crankarm and damper linkage. | F118: ='MZ- 3rd Party Units'!F38 -> 0
A119: MZ- VAV Zones | B119: Controller | C119: =VLOOKUP(D119,'Source 1 Parts Ref'!A$2:B$239,2,FALSE) -> S1-LC-ZEC410-1 | D119: LC-ZEC410-1 | E119: Configurable VAV Box Controller, All Fan Types, Stg Box Htg | F119: ='MZ- VAV Zones'!E10 -> 0 | G119: Video Available!
A120: MZ- VAV Zones | B120: Controller | C120: =VLOOKUP(D120,'Source 1 Parts Ref'!A$2:B$239,2,FALSE) -> S1-LC-ZEC410-2 | D120: LC-ZEC410-2 | E120: Configurable VAV Box Controller, All Fan Types, Inc Box Htg | F120: ='MZ- VAV Zones'!E11 -> 0 | G120: Video Available!
A121: MZ- VAV Zones | B121: Controller | C121: =VLOOKUP(D121,'Source 1 Parts Ref'!A$2:B$239,2,FALSE) -> S1-LC-ZEC410-3 | D121: LC-ZEC410-3 | E121: Configurable VAV Box Controller, All Fan Types, Prop(SCR) Box Htg | F121: ='MZ- VAV Zones'!E12 -> 0 | G121: Video Available!
A122: MZ- VAV Zones | B122: Zone Temperature | C122: =VLOOKUP(D122,'Source 1 Parts Ref'!A$2:B$239,2,FALSE) -> S1-NSBTB7003-0 | D122: NS-BTB7003-0 | E122: Net Sensor, 120x80, JCI Logo, Local Setpoint, Terminals | F122: ='MZ- VAV Zones'!E15 -> 0
A123: MZ- VAV Zones | B123: Zone Temperature | C123: =VLOOKUP(D123,'Source 1 Parts Ref'!A$2:B$239,2,FALSE) -> S1-NSBTB7003-2 | D123: NS-BTB7003-2 | E123: Net Sensor, 120x80, No Logo, Local Setpoint, Terminals | F123: ='MZ- VAV Zones'!E16 -> 0
A124: MZ- VAV Zones | B124: Zone Temperature | C124: =VLOOKUP(D124,'Source 1 Parts Ref'!A$2:B$239,2,FALSE) -> S1-NSBTN7003-0 | D124: NS-BTN7003-0 | E124: Net Sensor, 120x80, JCI Logo, No Setpoint, Terminals | F124: ='MZ- VAV Zones'!E17 -> 0
A125: MZ- VAV Zones | B125: Zone Temperature | C125: =VLOOKUP(D125,'Source 1 Parts Ref'!A$2:B$239,2,FALSE) -> S1-NSBTN7003-2 | D125: NS-BTN7003-2 | E125: Net Sensor, 120x80, No Logo, No Setpoint, Terminals | F125: ='MZ- VAV Zones'!E18 -> 0
A126: MZ- VAV Zones | B126: Zone Temperature | C126: =VLOOKUP(D126,'Source 1 Parts Ref'!A$2:B$239,2,FALSE) -> S1-NSBTP7002-0 | D126: NS-BTP7002-0 | E126: Net Sensor, 120x80, JCI Logo, Warmer/Cooler Adjustment, Terminals | F126: ='MZ- VAV Zones'!E19 -> 0
A127: MZ- VAV Zones | B127: Zone Temperature | C127: =VLOOKUP(D127,'Source 1 Parts Ref'!A$2:B$239,2,FALSE) -> S1-NSBTP7002-2 | D127: NS-BTP7002-2 | E127: Net Sensor, 120x80, No Logo, Warmer/Cooler Adjustment, Terminals | F127: ='MZ- VAV Zones'!E20 -> 0
A128: MZ- VAV Zones | B128: Zone Temperature | C128: =VLOOKUP(D128,'Source 1 Parts Ref'!A$2:B$239,2,FALSE) -> S1-NSBTK7002-0 | D128: NS-BTK7002-0 | E128: Netstat for Smart Equipment Single Zone Unit | F128: ='MZ- VAV Zones'!E21 -> 0
A129: MZ- VAV Zones | B129: Zone Temperature | C129: =VLOOKUP(D129,'Source 1 Parts Ref'!A$2:B$239,2,FALSE) -> S1-NSBTK7002-2 | D129: NS-BTK7002-2 | E129: Netstat for Smart Equipment Single Zone Unit | F129: ='MZ- VAV Zones'!E22 -> 0
A130: MZ- VAV Zones | B130: Discharge Temp | C130: =VLOOKUP(D130,'Source 1 Parts Ref'!A$2:B$239,2,FALSE) -> S1-TE631GV-2 | D130: TE-631GV-2 | E130: 4" Duct Sensor for VAV Flange Mount, Nickel, 10ft plenum Cable | F130: ='MZ- VAV Zones'!E25 -> 0
A131: MZ- VAV Zones | B131: CO2 Sensor | C131: =VLOOKUP(D131,'Source 1 Parts Ref'!A$2:B$239,2,FALSE) -> S1-NSBCN7004-0 | D131: NS-BCN7004-0 | E131: BACnet network CO2 sensor 80 mm x 120 mm | F131: ='MZ- VAV Zones'!E28 -> 0
A132: MZ- VAV Zones | B132: Occupancy Lighting | C132: =VLOOKUP(D132,'Source 1 Parts Ref'!A$2:B$239,2,FALSE) -> S1-OLS-2100-1 | D132: OLS-2100-1 | E132: Occupancy Lighting Switch | F132: ='MZ- VAV Zones'!E31 -> 0
A133: MZ- VAV Zones | B133: Occupancy Lighting | C133: =VLOOKUP(D133,'Source 1 Parts Ref'!A$2:B$239,2,FALSE) -> S1-RIBU1C | D133: RIBU1C | E133: Enclosed relay for OLS-2100-1 sensor | F133: ='MZ- VAV Zones'!E32 -> 0
A134: MZ- VAV Zones | B134: Balancing | C134: =VLOOKUP(D134,'Source 1 Parts Ref'!A$2:B$239,2,FALSE) -> S1-NSATV7003-0 | D134: NS-ATV7003-0 | E134: VAV Box Balancing Thermostat | F134: ='MZ- VAV Zones'!E35 -> 0
A135: MZ - COBP Zones | B135: Zone Temperature | C135: =VLOOKUP(D135,'Source 1 Parts Ref'!A$2:B$239,2,FALSE) -> S1-NSBTB7003-0 | D135: NS-BTB7003-0 | E135: Net Sensor, 120x80, JCI Logo, Local Setpoint, Terminals | F135: ='MZ - COBP Zones'!F45 -> 0
A136: MZ - COBP Zones | B136: Zone Temperature | C136: =VLOOKUP(D136,'Source 1 Parts Ref'!A$2:B$239,2,FALSE) -> S1-NSBTB7003-2 | D136: NS-BTB7003-2 | E136: Net Sensor, 120x80, No Logo, Local Setpoint, Terminals | F136: ='MZ - COBP Zones'!F46 -> 0
A137: MZ - COBP Zones | B137: Zone Temperature | C137: =VLOOKUP(D137,'Source 1 Parts Ref'!A$2:B$239,2,FALSE) -> S1-NSBTN7003-0 | D137: NS-BTN7003-0 | E137: Net Sensor, 120x80, JCI Logo, No Setpoint, Terminals | F137: ='MZ - COBP Zones'!F47 -> 0
A138: MZ - COBP Zones | B138: Zone Temperature | C138: =VLOOKUP(D138,'Source 1 Parts Ref'!A$2:B$239,2,FALSE) -> S1-NSBTN7003-2 | D138: NS-BTN7003-2 | E138: Net Sensor, 120x80, No Logo, No Setpoint, Terminals | F138: ='MZ - COBP Zones'!F48 -> 0
A139: MZ - COBP Zones | B139: Zone Temperature | C139: =VLOOKUP(D139,'Source 1 Parts Ref'!A$2:B$239,2,FALSE) -> S1-NSBTP7002-0 | D139: NS-BTP7002-0 | E139: Net Sensor, 120x80, JCI Logo, Warmer/Cooler Adjustment, Terminals | F139: ='MZ - COBP Zones'!F49 -> 0
A140: MZ - COBP Zones | B140: Zone Temperature | C140: =VLOOKUP(D140,'Source 1 Parts Ref'!A$2:B$239,2,FALSE) -> S1-NSBTP7002-2 | D140: NS-BTP7002-2 | E140: Net Sensor, 120x80, No Logo, Warmer/Cooler Adjustment, Terminals | F140: ='MZ - COBP Zones'!F50 -> 0
A141: MZ - COBP Zones | B141: Zone Temperature | C141: =VLOOKUP(D141,'Source 1 Parts Ref'!A$2:B$239,2,FALSE) -> S1-NSBTK7002-0 | D141: NS-BTK7002-0 | E141: Netstat for Smart Equipment Single Zone Unit | F141: ='MZ - COBP Zones'!F51 -> 0
A142: MZ - COBP Zones | B142: Zone Temperature | C142: =VLOOKUP(D142,'Source 1 Parts Ref'!A$2:B$239,2,FALSE) -> S1-NSBTK7002-2 | D142: NS-BTK7002-2 | E142: Netstat for Smart Equipment Single Zone Unit | F142: ='MZ - COBP Zones'!F52 -> 0
A143: MZ - COBP Zones | B143: Zone Temperature | C143: =VLOOKUP(D143,'Source 1 Parts Ref'!A$2:B$239,2,FALSE) -> S1-TE68NT1N00S | D143: TE-68NT-0N00S | E143: Wall temperature sensor, 1k ohm, nickel with temperature occupancy button. | F143: ='MZ - COBP Zones'!F41 -> 0
A144: MZ - COBP Zones | B144: Zone Temperature | C144: =VLOOKUP(D144,'Source 1 Parts Ref'!A$2:B$239,2,FALSE) -> S1-TE68NT1N00S | D144: TE-68NT-1N00S | E144: Wall temperature sensor, 1k ohm,nickel with warmer/cooler (W/C) adjustment and temperature occupancy pushbutton. | F144: ='MZ - COBP Zones'!F42 -> 0
A145: MZ - COBP Zones | B145: CO2 Sensor | C145: =VLOOKUP(D145,'Source 1 Parts Ref'!A$2:B$239,2,FALSE) -> S1-NSBCN7004-0 | D145: NS-BCN7004-0 | E145: BACnet network CO2 sensor 80 mm x 120 mm | F145: ='MZ - COBP Zones'!F59 -> 0
A146: MZ - COBP Zones | B146: Controller | C146: =VLOOKUP(D146,'Source 1 Parts Ref'!A$2:B$239,2,FALSE) -> S1-LC-ZEC310-0 | D146: LC-ZEC310-0 | E146: Field Installed, Zone Damper Controller No Damper | F146: ='MZ - COBP Zones'!F10 -> 0 | G146: Video Available!
A147: MZ - COBP Zones | B147: Zone Damper | C147: =VLOOKUP(D147,'Source 1 Parts Ref'!A$2:B$239,2,FALSE) ->  | D147: RCG04B | E147: 4" Round Zone/Bypass Damper No Controller | F147: ='MZ - COBP Zones'!F11 -> 0
A148: MZ - COBP Zones | B148: Zone Damper | C148: =VLOOKUP(D148,'Source 1 Parts Ref'!A$2:B$239,2,FALSE) ->  | D148: RCG06B | E148: 6" Round Zone/Bypass Damper No Controller | F148: ='MZ - COBP Zones'!F12 -> 0
A149: MZ - COBP Zones | B149: Zone Damper | C149: =VLOOKUP(D149,'Source 1 Parts Ref'!A$2:B$239,2,FALSE) ->  | D149: RCG07B | E149: 7" Round Zone/Bypass Damper No Controller | F149: ='MZ - COBP Zones'!F13 -> 0
A150: MZ - COBP Zones | B150: Zone Damper | C150: =VLOOKUP(D150,'Source 1 Parts Ref'!A$2:B$239,2,FALSE) ->  | D150: RCG08B | E150: 8" Round Zone/Bypass Damper No Controller | F150: ='MZ - COBP Zones'!F14 -> 0
A151: MZ - COBP Zones | B151: Zone Damper | C151: =VLOOKUP(D151,'Source 1 Parts Ref'!A$2:B$239,2,FALSE) ->  | D151: RCG09B | E151: 9" Round Zone/Bypass Damper No Controller | F151: ='MZ - COBP Zones'!F15 -> 0
A152: MZ - COBP Zones | B152: Zone Damper | C152: =VLOOKUP(D152,'Source 1 Parts Ref'!A$2:B$239,2,FALSE) ->  | D152: RCG10B | E152: 10" Round Zone/Bypass Damper No Controller | F152: ='MZ - COBP Zones'!F16 -> 0
A153: MZ - COBP Zones | B153: Zone Damper | C153: =VLOOKUP(D153,'Source 1 Parts Ref'!A$2:B$239,2,FALSE) ->  | D153: RCG11B | E153: 11" Round Zone/Bypass Damper No Controller | F153: ='MZ - COBP Zones'!F17 -> 0
A154: MZ - COBP Zones | B154: Zone Damper | C154: =VLOOKUP(D154,'Source 1 Parts Ref'!A$2:B$239,2,FALSE) ->  | D154: RCG12B | E154: 12" Round Zone/Bypass Damper No Controller | F154: ='MZ - COBP Zones'!F18 -> 0
A155: MZ - COBP Zones | B155: Zone Damper | C155: =VLOOKUP(D155,'Source 1 Parts Ref'!A$2:B$239,2,FALSE) ->  | D155: RCG13B | E155: 13" Round Zone/Bypass Damper No Controller | F155: ='MZ - COBP Zones'!F19 -> 0
A156: MZ - COBP Zones | B156: Zone Damper | C156: =VLOOKUP(D156,'Source 1 Parts Ref'!A$2:B$239,2,FALSE) ->  | D156: RCG14B | E156: 14" Round Zone/Bypass Damper No Controller | F156: ='MZ - COBP Zones'!F20 -> 0
A157: MZ - COBP Zones | B157: Zone Damper | C157: =VLOOKUP(D157,'Source 1 Parts Ref'!A$2:B$239,2,FALSE) ->  | D157: RCG15B | E157: 15" Round Zone/Bypass Damper No Controller | F157: ='MZ - COBP Zones'!F21 -> 0
A158: MZ - COBP Zones | B158: Zone Damper | C158: =VLOOKUP(D158,'Source 1 Parts Ref'!A$2:B$239,2,FALSE) ->  | D158: RCG16B | E158: 16" Round Zone/Bypass Damper No Controller | F158: ='MZ - COBP Zones'!F22 -> 0
A159: MZ - COBP Zones | B159: Zone Damper | C159: =VLOOKUP(D159,'Source 1 Parts Ref'!A$2:B$239,2,FALSE) ->  | D159: RCG17B | E159: 17" Round Zone/Bypass Damper No Controller | F159: ='MZ - COBP Zones'!F23 -> 0
A160: MZ - COBP Zones | B160: Zone Damper | C160: =VLOOKUP(D160,'Source 1 Parts Ref'!A$2:B$239,2,FALSE) ->  | D160: RCG18B | E160: 18" Round Zone/Bypass Damper No Controller | F160: ='MZ - COBP Zones'!F24 -> 0
A161: MZ - COBP Zones | B161: Zone Damper/Controller | C161: =VLOOKUP(D161,'Source 1 Parts Ref'!A$2:B$239,2,FALSE) -> S1-RZV06Z | D161: RZV06Z | E161: 6" Round Zone Damper LC-ZEC310-0 Controller | F161: ='MZ - COBP Zones'!F25 -> 0 | G161: Video Available!
A162: MZ - COBP Zones | B162: Zone Damper/Controller | C162: =VLOOKUP(D162,'Source 1 Parts Ref'!A$2:B$239,2,FALSE) -> S1-RZV07Z | D162: RZV07Z | E162: 7" Round Zone Damper LC-ZEC310-0 Controller | F162: ='MZ - COBP Zones'!F26 -> 0 | G162: Video Available!
A163: MZ - COBP Zones | B163: Zone Damper/Controller | C163: =VLOOKUP(D163,'Source 1 Parts Ref'!A$2:B$239,2,FALSE) -> S1-RZV08Z | D163: RZV08Z | E163: 8" Round Zone Damper LC-ZEC310-0 Controller | F163: ='MZ - COBP Zones'!F27 -> 0 | G163: Video Available!
A164: MZ - COBP Zones | B164: Zone Damper/Controller | C164: =VLOOKUP(D164,'Source 1 Parts Ref'!A$2:B$239,2,FALSE) -> S1-RZV09Z | D164: RZV09Z | E164: 9" Round Zone Damper LC-ZEC310-0 Controller | F164: ='MZ - COBP Zones'!F28 -> 0 | G164: Video Available!
A165: MZ - COBP Zones | B165: Zone Damper/Controller | C165: =VLOOKUP(D165,'Source 1 Parts Ref'!A$2:B$239,2,FALSE) -> S1-RZV10Z | D165: RZV10Z | E165: 10" Round Zone Damper LC-ZEC310-0 Controller | F165: ='MZ - COBP Zones'!F29 -> 0 | G165: Video Available!
A166: MZ - COBP Zones | B166: Zone Damper/Controller | C166: =VLOOKUP(D166,'Source 1 Parts Ref'!A$2:B$239,2,FALSE) -> S1-RZV11Z | D166: RZV11Z | E166: 11" Round Zone Damper LC-ZEC310-0 Controller | F166: ='MZ - COBP Zones'!F30 -> 0 | G166: Video Available!
A167: MZ - COBP Zones | B167: Zone Damper/Controller | C167: =VLOOKUP(D167,'Source 1 Parts Ref'!A$2:B$239,2,FALSE) -> S1-RZV12Z | D167: RZV12Z | E167: 12" Round Zone Damper LC-ZEC310-0 Controller | F167: ='MZ - COBP Zones'!F31 -> 0 | G167: Video Available!
A168: MZ - COBP Zones | B168: Zone Damper/Controller | C168: =VLOOKUP(D168,'Source 1 Parts Ref'!A$2:B$239,2,FALSE) -> S1-RZV13Z | D168: RZV13Z | E168: 13" Round Zone Damper LC-ZEC310-0 Controller | F168: ='MZ - COBP Zones'!F32 -> 0 | G168: Video Available!
A169: MZ - COBP Zones | B169: Zone Damper/Controller | C169: =VLOOKUP(D169,'Source 1 Parts Ref'!A$2:B$239,2,FALSE) -> S1-RZV14Z | D169: RZV14Z | E169: 14" Round Zone Damper LC-ZEC310-0 Controller | F169: ='MZ - COBP Zones'!F33 -> 0 | G169: Video Available!
A170: MZ - COBP Zones | B170: Zone Damper/Controller | C170: =VLOOKUP(D170,'Source 1 Parts Ref'!A$2:B$239,2,FALSE) -> S1-RZV15Z | D170: RZV15Z | E170: 15" Round Zone Damper LC-ZEC310-0 Controller | F170: ='MZ - COBP Zones'!F34 -> 0 | G170: Video Available!
A171: MZ - COBP Zones | B171: Zone Damper/Controller | C171: =VLOOKUP(D171,'Source 1 Parts Ref'!A$2:B$239,2,FALSE) -> S1-RZV16Z | D171: RZV16Z | E171: 16" Round Zone Damper LC-ZEC310-0 Controller | F171: ='MZ - COBP Zones'!F35 -> 0 | G171: Video Available!
A172: MZ - COBP Zones | B172: Zone Damper/Controller | C172: =VLOOKUP(D172,'Source 1 Parts Ref'!A$2:B$239,2,FALSE) -> S1-RZV17Z | D172: RZV17Z | E172: 17" Round Zone Damper LC-ZEC310-0 Controller | F172: ='MZ - COBP Zones'!F36 -> 0 | G172: Video Available!
A173: MZ - COBP Zones | B173: Zone Damper/Controller | C173: =VLOOKUP(D173,'Source 1 Parts Ref'!A$2:B$239,2,FALSE) -> S1-RZV18Z | D173: RZV18Z | E173: 18" Round Zone Damper LC-ZEC310-0 Controller | F173: ='MZ - COBP Zones'!F37 -> 0 | G173: Video Available!
A174: MZ - COBP Zones | B174: Occupancy Lighting | C174: =VLOOKUP(D174,'Source 1 Parts Ref'!A$2:B$239,2,FALSE) -> S1-OLS-2100-1 | D174: OLS-2100-1 | E174: Occupancy Lighting Switch | F174: ='MZ - COBP Zones'!F55 -> 0
A175: MZ - COBP Zones | B175: Occupancy Lighting | C175: =VLOOKUP(D175,'Source 1 Parts Ref'!A$2:B$239,2,FALSE) -> S1-RIBU1C | D175: RIBU1C | E175: Enclosed relay for OLS-2100-1 sensor | F175: ='MZ - COBP Zones'!F56 -> 0
A176: MZ - COBP Zones | B176: Second Zone Damper | C176: =VLOOKUP(D176,'Source 1 Parts Ref'!A$2:B$239,2,FALSE) ->  | D176: M9310-HGA-2 | E176: 10NM Torque Non-Spring Return Damper Actuator | F176: ='MZ - COBP Zones'!F62 -> 0
A177: MZ- Bypass Damper | B177: Controller | C177: =VLOOKUP(D177,'Source 1 Parts Ref'!A$2:B$239,2,FALSE) -> S1-LC-BYP200-0 | D177: LC-BYP200-0 | E177: Field Installed, Bypass Damper Controller No Damper | F177: ='MZ- Bypass Damper'!F10 -> 0 | G177: Video Available!
A178: MZ- Bypass Damper | B178: Bypass Damper | C178: =VLOOKUP(D178,'Source 1 Parts Ref'!A$2:B$239,2,FALSE) ->  | D178: RCG06B | E178: 6" Round Zone/Bypass Damper No Controller | F178: ='MZ- Bypass Damper'!F11 -> 0
A179: MZ- Bypass Damper | B179: Bypass Damper | C179: =VLOOKUP(D179,'Source 1 Parts Ref'!A$2:B$239,2,FALSE) ->  | D179: RCG07B | E179: 7" Round Zone/Bypass Damper No Controller | F179: ='MZ- Bypass Damper'!F12 -> 0
A180: MZ- Bypass Damper | B180: Bypass Damper | C180: =VLOOKUP(D180,'Source 1 Parts Ref'!A$2:B$239,2,FALSE) ->  | D180: RCG08B | E180: 8" Round Zone/Bypass Damper No Controller | F180: ='MZ- Bypass Damper'!F13 -> 0
A181: MZ- Bypass Damper | B181: Bypass Damper | C181: =VLOOKUP(D181,'Source 1 Parts Ref'!A$2:B$239,2,FALSE) ->  | D181: RCG09B | E181: 9" Round Zone/Bypass Damper No Controller | F181: ='MZ- Bypass Damper'!F14 -> 0
A182: MZ- Bypass Damper | B182: Bypass Damper | C182: =VLOOKUP(D182,'Source 1 Parts Ref'!A$2:B$239,2,FALSE) ->  | D182: RCG10B | E182: 10" Round Zone/Bypass Damper No Controller | F182: ='MZ- Bypass Damper'!F15 -> 0
A183: MZ- Bypass Damper | B183: Bypass Damper | C183: =VLOOKUP(D183,'Source 1 Parts Ref'!A$2:B$239,2,FALSE) ->  | D183: RCG11B | E183: 11" Round Zone/Bypass Damper No Controller | F183: ='MZ- Bypass Damper'!F16 -> 0
A184: MZ- Bypass Damper | B184: Bypass Damper | C184: =VLOOKUP(D184,'Source 1 Parts Ref'!A$2:B$239,2,FALSE) ->  | D184: RCG12B | E184: 12" Round Zone/Bypass Damper No Controller | F184: ='MZ- Bypass Damper'!F17 -> 0
A185: MZ- Bypass Damper | B185: Bypass Damper | C185: =VLOOKUP(D185,'Source 1 Parts Ref'!A$2:B$239,2,FALSE) ->  | D185: RCG13B | E185: 13" Round Zone/Bypass Damper No Controller | F185: ='MZ- Bypass Damper'!F18 -> 0
A186: MZ- Bypass Damper | B186: Bypass Damper | C186: =VLOOKUP(D186,'Source 1 Parts Ref'!A$2:B$239,2,FALSE) ->  | D186: RCG14B | E186: 14" Round Zone/Bypass Damper No Controller | F186: ='MZ- Bypass Damper'!F19 -> 0
A187: MZ- Bypass Damper | B187: Bypass Damper | C187: =VLOOKUP(D187,'Source 1 Parts Ref'!A$2:B$239,2,FALSE) ->  | D187: RCG15B | E187: 15" Round Zone/Bypass Damper No Controller | F187: ='MZ- Bypass Damper'!F20 -> 0
A188: MZ- Bypass Damper | B188: Bypass Damper | C188: =VLOOKUP(D188,'Source 1 Parts Ref'!A$2:B$239,2,FALSE) ->  | D188: RCG16B | E188: 16" Round Zone/Bypass Damper No Controller | F188: ='MZ- Bypass Damper'!F21 -> 0
A189: MZ- Bypass Damper | B189: Bypass Damper | C189: =VLOOKUP(D189,'Source 1 Parts Ref'!A$2:B$239,2,FALSE) ->  | D189: RCG17B | E189: 17" Round Zone/Bypass Damper No Controller | F189: ='MZ- Bypass Damper'!F22 -> 0
A190: MZ- Bypass Damper | B190: Bypass Damper | C190: =VLOOKUP(D190,'Source 1 Parts Ref'!A$2:B$239,2,FALSE) ->  | D190: RCG18B | E190: 18" Round Zone/Bypass Damper No Controller | F190: ='MZ- Bypass Damper'!F23 -> 0
A191: MZ- Bypass Damper | B191: Bypass Damper/Controller | C191: =VLOOKUP(D191,'Source 1 Parts Ref'!A$2:B$239,2,FALSE) -> S1-RZV06Y | D191: RZV06Y | E191: 6" Round Bypass Damper LC-BYP200-0 Controller | F191: ='MZ- Bypass Damper'!F24 -> 0 | G191: Video Available!
A192: MZ- Bypass Damper | B192: Bypass Damper/Controller | C192: =VLOOKUP(D192,'Source 1 Parts Ref'!A$2:B$239,2,FALSE) -> S1-RZV07Y | D192: RZV07Y | E192: 7" Round Bypass Damper LC-BYP200-0 Controller | F192: ='MZ- Bypass Damper'!F25 -> 0 | G192: Video Available!
A193: MZ- Bypass Damper | B193: Bypass Damper/Controller | C193: =VLOOKUP(D193,'Source 1 Parts Ref'!A$2:B$239,2,FALSE) -> S1-RZV08Y | D193: RZV08Y | E193: 8" Round Bypass Damper LC-BYP200-0 Controller | F193: ='MZ- Bypass Damper'!F26 -> 0 | G193: Video Available!
A194: MZ- Bypass Damper | B194: Bypass Damper/Controller | C194: =VLOOKUP(D194,'Source 1 Parts Ref'!A$2:B$239,2,FALSE) -> S1-RZV09Y | D194: RZV09Y | E194: 9" Round Bypass Damper LC-BYP200-0 Controller | F194: ='MZ- Bypass Damper'!F27 -> 0 | G194: Video Available!
A195: MZ- Bypass Damper | B195: Bypass Damper/Controller | C195: =VLOOKUP(D195,'Source 1 Parts Ref'!A$2:B$239,2,FALSE) -> S1-RZV10Y | D195: RZV10Y | E195: 10" Round Bypass Damper LC-BYP200-0 Controller | F195: ='MZ- Bypass Damper'!F28 -> 0 | G195: Video Available!
A196: MZ- Bypass Damper | B196: Bypass Damper/Controller | C196: =VLOOKUP(D196,'Source 1 Parts Ref'!A$2:B$239,2,FALSE) -> S1-RZV11Y | D196: RZV11Y | E196: 11" Round Bypass Damper LC-BYP200-0 Controller | F196: ='MZ- Bypass Damper'!F29 -> 0 | G196: Video Available!
A197: MZ- Bypass Damper | B197: Bypass Damper/Controller | C197: =VLOOKUP(D197,'Source 1 Parts Ref'!A$2:B$239,2,FALSE) -> S1-RZV12Y | D197: RZV12Y | E197: 12" Round Bypass Damper LC-BYP200-0 Controller | F197: ='MZ- Bypass Damper'!F30 -> 0 | G197: Video Available!
A198: MZ- Bypass Damper | B198: Bypass Damper/Controller | C198: =VLOOKUP(D198,'Source 1 Parts Ref'!A$2:B$239,2,FALSE) -> S1-RZV13Y | D198: RZV13Y | E198: 13" Round Bypass Damper LC-BYP200-0 Controller | F198: ='MZ- Bypass Damper'!F31 -> 0 | G198: Video Available!
A199: MZ- Bypass Damper | B199: Bypass Damper/Controller | C199: =VLOOKUP(D199,'Source 1 Parts Ref'!A$2:B$239,2,FALSE) -> S1-RZV14Y | D199: RZV14Y | E199: 14" Round Bypass Damper LC-BYP200-0 Controller | F199: ='MZ- Bypass Damper'!F32 -> 0 | G199: Video Available!
A200: MZ- Bypass Damper | B200: Bypass Damper/Controller | C200: =VLOOKUP(D200,'Source 1 Parts Ref'!A$2:B$239,2,FALSE) -> S1-RZV15Y | D200: RZV15Y | E200: 15" Round Bypass Damper LC-BYP200-0 Controller | F200: ='MZ- Bypass Damper'!F33 -> 0 | G200: Video Available!
A201: MZ- Bypass Damper | B201: Bypass Damper/Controller | C201: =VLOOKUP(D201,'Source 1 Parts Ref'!A$2:B$239,2,FALSE) -> S1-RZV16Y | D201: RZV16Y | E201: 16" Round Bypass Damper LC-BYP200-0 Controller | F201: ='MZ- Bypass Damper'!F34 -> 0 | G201: Video Available!
A202: MZ- Bypass Damper | B202: Bypass Damper/Controller | C202: =VLOOKUP(D202,'Source 1 Parts Ref'!A$2:B$239,2,FALSE) -> S1-RZV17Y | D202: RZV17Y | E202: 17" Round Bypass Damper LC-BYP200-0 Controller | F202: ='MZ- Bypass Damper'!F35 -> 0 | G202: Video Available!
A203: MZ- Bypass Damper | B203: Bypass Damper/Controller | C203: =VLOOKUP(D203,'Source 1 Parts Ref'!A$2:B$239,2,FALSE) -> S1-RZV18Y | D203: RZV18Y | E203: 18" Round Bypass Damper LC-BYP200-0 Controller | F203: ='MZ- Bypass Damper'!F36 -> 0 | G203: Video Available!
A204: MZ- Bypass Damper | B204: Static Pressure Sensor | C204: =VLOOKUP(D204,'Source 1 Parts Ref'!A$2:B$239,2,FALSE) -> S1-DPT2640005D | D204: DPT2640-005D | E204: Low Differential Pressure Transducer 0-5 in WC, 0-5VDC | F204: ='MZ- Bypass Damper'!F41 -> 0
A205: MZ- Bypass Damper | B205: Static Pressure Probe | C205: =VLOOKUP(D205,'Source 1 Parts Ref'!A$2:B$239,2,FALSE) -> S1-FTG18A-600R | D205: FTG18A-600R | E205: Duct Static Pressure Probe (Need 1 Per Sensor) | F205: ='MZ- Bypass Damper'!F42 -> 0
A206: MZ- Bypass Damper | B206: Bypass Power | C206: =VLOOKUP(D206,'Source 1 Parts Ref'!A$2:B$239,2,FALSE) -> S1-Y65T42-0 | D206: Y65T42-0 | E206: 120/208/240 to 24V XFR 40VA (Power for 2 Boxes) | F206: ='MZ- Bypass Damper'!F45 -> 0
A207: MZ- Bypass Damper | B207: Second Bypass Damper | C207: =VLOOKUP(D207,'Source 1 Parts Ref'!A$2:B$239,2,FALSE) ->  | D207: M9310-HGA-2 | E207: 10NM Torque Non-Spring Return Damper Actuator | F207: ='MZ- Bypass Damper'!F49 -> 0
A208: Fan Coil Units | B208: Thermostat | C208: =VLOOKUP(D208,'Source 1 Parts Ref'!A$2:B$239,2,FALSE) -> S1-TEC3610-00 | D208: TEC3610-00-000 | E208: TSTAT, MSTP or N2, FCU/VVT, On/Off or floating, Logo | F208: ='Fan Coil Units'!H10 -> 0
A209: Fan Coil Units | B209: Thermostat | C209: =VLOOKUP(D209,'Source 1 Parts Ref'!A$2:B$239,2,FALSE) -> S1-TEC3611-00 | D209: TEC3611-00-000 | E209: TSTAT, MSTP or N2, FCU/VVT, On/Off or floating, Occ sensor, Logo | F209: ='Fan Coil Units'!H11 -> 0
... 72 more rows

Sheet Pricing (hidden)
E12: List Grand Total: | G12: =SUM(G16:G281) -> 0
A14: Bill of Materials
A15: System | B15: Function | D15: JCI Part No | E15: List Price | F15: Qty | G15: Total (List * Qty) USD
A16: Network | B16: Smart Building Hub | D16: LC-SBH200-0 | E16: =VLOOKUP(D16,'AOMS List Price'!A$2:B$243,2, FALSE) -> 1853.49 | F16: =BOM!F13 -> 0 | G16: =E16*F16 -> 0
A17: Network | B17: Smart Building Hub Power | D17: ACC-PWRKIT-1A24 | E17: =VLOOKUP(D17,'AOMS List Price'!A$2:B$243,2, FALSE) -> 154.36 | F17: =BOM!F14 -> 0 | G17: =E17*F17 -> 0
A18: Network | B18: Smart Building Hub WiFi | D18: ACC-WIFIKIT-ODU | E18: =VLOOKUP(D18,'AOMS List Price'!A$2:B$243,2, FALSE) -> 178.68 | F18: =BOM!F15 -> 0 | G18: 0
A19: Network | B19: BACnet MSTP Repeater | D19: 4683-TTM-3F | E19: =VLOOKUP(D19,'AOMS List Price'!A$2:B$243,2, FALSE) -> 872.96 | F19: =BOM!F16 -> 0 | G19: 0
A20: Network | B20: BACnet MSTP EOL | D20: MS-BACEOL-0 | E20: =VLOOKUP(D20,'AOMS List Price'!A$2:B$243,2, FALSE) -> 115.21 | F20: =BOM!F17 -> 0 | G20: 0
A21: Network | B21: Communication Wire | D21: CBL-22/3-FC-PLN | E21: =VLOOKUP(D21,'AOMS List Price'!A$2:B$243,2, FALSE) -> 0.3 | F21: =BOM!F18 -> 0 | G21: 0
A22: Network | B22: Communication Wire | D22: CBL-22/3-FC-PVC | E22: =VLOOKUP(D22,'AOMS List Price'!A$2:B$243,2, FALSE) -> 0.36 | F22: =BOM!F19 -> 0 | G22: 0
A23: Network | B23: Communication Wire | D23: CBL-22/2P-SAPLN | E23: =VLOOKUP(D23,'AOMS List Price'!A$2:B$243,2, FALSE) -> 0.68 | F23: =BOM!F20 -> 0 | G23: 0
A24: Network | B24: Communication Wire | D24: CBL-22/2P-SAPVC | E24: =VLOOKUP(D24,'AOMS List Price'!A$2:B$243,2, FALSE) -> 0.56 | F24: =BOM!F21 -> 0 | G24: 0
A25: Network | B25: Battery Backup | D25: UPSPNL550-0 | E25: =VLOOKUP(D25,'AOMS List Price'!A$2:B$243,2, FALSE) -> 930.32 | F25: =BOM!F22 -> 0 | G25: 0
A26: I/O Module | B26: IOM Device | D26: LC-VAC1002-0 | E26: =VLOOKUP(D26,'AOMS List Price'!A$2:B$243,2, FALSE) -> 665.3 | F26: =BOM!F23 -> 0 | G26: 0
A27: I/O Module | B27: IOM Panel | D27: PA0000004GC0 | E27: =VLOOKUP(D27,'AOMS List Price'!A$2:B$243,2, FALSE) -> 773.22 | F27: =BOM!F24 -> 0 | G27: 0
A28: I/O Module | B28: IOM Panel | D28: PA0000001AH0 | E28: =VLOOKUP(D28,'AOMS List Price'!A$2:B$243,2, FALSE) -> 806.43 | F28: =BOM!F25 -> 0 | G28: 0
A29: I/O Module | B29: IOM Panel | D29: PA0000001EH0 | E29: =VLOOKUP(D29,'AOMS List Price'!A$2:B$243,2, FALSE) -> 879.77 | F29: =BOM!F26 -> 0 | G29: 0
A30: I/O Module | B30: IOM Transformer | D30: Y65T42-0 | E30: =VLOOKUP(D30,'AOMS List Price'!A$2:B$243,2, FALSE) -> 76.63 | F30: =BOM!F27 -> 0 | G30: 0
A31: I/O Module | B31: I/O | D31: TE-68NT-0N00S | E31: =VLOOKUP(D31,'AOMS List Price'!A$2:B$243,2, FALSE) -> 95.95 | F31: =BOM!F28 -> 0 | G31: 0
A32: I/O Module | B32: I/O | D32: TE-6311M-1 | E32: =VLOOKUP(D32,'AOMS List Price'!A$2:B$243,2, FALSE) -> 35.63 | F32: =BOM!F29 -> 0 | G32: 0
A33: I/O Module | B33: I/O | D33: TE-6313P-1 | E33: =VLOOKUP(D33,'AOMS List Price'!A$2:B$243,2, FALSE) -> 51.47 | F33: =BOM!F30 -> 0 | G33: 0
A34: I/O Module | B34: I/O | D34: HE-68N3-0N00WS | E34: =VLOOKUP(D34,'AOMS List Price'!A$2:B$243,2, FALSE) -> 523.74 | F34: =BOM!F31 -> 0 | G34: 0
A35: I/O Module | B35: I/O | D35: HE-68P3-0N000 | E35: =VLOOKUP(D35,'AOMS List Price'!A$2:B$243,2, FALSE) -> 1378.11 | F35: =BOM!F32 -> 0 | G35: 0
A36: I/O Module | B36: I/O | D36: HE-67N3-0N00P | E36: =VLOOKUP(D36,'AOMS List Price'!A$2:B$243,2, FALSE) -> 469.4 | F36: =BOM!F33 -> 0 | G36: 0
A37: I/O Module | B37: I/O | D37: CD-W00-00-2 | E37: =VLOOKUP(D37,'AOMS List Price'!A$2:B$243,2, FALSE) -> 515 | F37: =BOM!F34 -> 0 | G37: 0
A38: I/O Module | B38: I/O | D38: 2020-T | E38: =VLOOKUP(D38,'AOMS List Price'!A$2:B$243,2, FALSE) -> 9.39 | F38: =BOM!F35 -> 0 | G38: 0
A39: I/O Module | B39: I/O | D39: 2505A | E39: =VLOOKUP(D39,'AOMS List Price'!A$2:B$243,2, FALSE) -> 91.37 | F39: =BOM!F36 -> 0 | G39: 0
A40: I/O Module | B40: I/O | D40: MK7-B-CR-VTI | E40: =VLOOKUP(D40,'AOMS List Price'!A$2:B$243,2, FALSE) -> 551.61 | F40: =BOM!F37 -> 0 | G40: 0
A41: I/O Module | B41: I/O | D41: DPT2090-25G | E41: =VLOOKUP(D41,'AOMS List Price'!A$2:B$243,2, FALSE) -> 356 | F41: =BOM!F38 -> 0 | G41: 0
A42: I/O Module | B42: I/O | D42: TBG16A-600R | E42: =VLOOKUP(D42,'AOMS List Price'!A$2:B$243,2, FALSE) -> 50.51 | F42: =BOM!F39 -> 0 | G42: 0
A43: I/O Module | B43: I/O | D43: DPT2640-0R1B | E43: =VLOOKUP(D43,'AOMS List Price'!A$2:B$243,2, FALSE) -> 333.24 | F43: =BOM!F40 -> 0 | G43: 0
A44: I/O Module | B44: I/O | D44: DPT2640-R25D | E44: =VLOOKUP(D44,'AOMS List Price'!A$2:B$243,2, FALSE) -> 333.24 | F44: =BOM!F41 -> 0 | G44: 0
A45: I/O Module | B45: I/O | D45: A-306-K | E45: =VLOOKUP(D45,'AOMS List Price'!A$2:B$243,2, FALSE) -> 119.68 | F45: =BOM!F42 -> 0 | G45: 0
A46: I/O Module | B46: I/O | D46: SD-01 | E46: =VLOOKUP(D46,'AOMS List Price'!A$2:B$243,2, FALSE) -> 101.85 | F46: =BOM!F43 -> 0 | G46: 0
A47: I/O Module | B47: I/O | D47: RPS | E47: =VLOOKUP(D47,'AOMS List Price'!A$2:B$243,2, FALSE) -> 39.92 | F47: =BOM!F44 -> 0 | G47: 0
A48: I/O Module | B48: I/O | D48: RPS-W | E48: =VLOOKUP(D48,'AOMS List Price'!A$2:B$243,2, FALSE) -> 27.88 | F48: =BOM!F45 -> 0 | G48: 0
A49: I/O Module | B49: I/O | D49: RLD-134A | E49: =VLOOKUP(D49,'AOMS List Price'!A$2:B$243,2, FALSE) -> 2260.52 | F49: =BOM!F46 -> 0 | G49: 0
A50: I/O Module | B50: I/O | D50: WD-1B | E50: =VLOOKUP(D50,'AOMS List Price'!A$2:B$243,2, FALSE) -> 231.6 | F50: =BOM!F47 -> 0 | G50: 0
A51: I/O Module | B51: I/O | D51: WD-2-T-10 | E51: =VLOOKUP(D51,'AOMS List Price'!A$2:B$243,2, FALSE) -> 543.8 | F51: =BOM!F48 -> 0 | G51: 0
A52: I/O Module | B52: I/O | D52: WD-2-T-25 | E52: =VLOOKUP(D52,'AOMS List Price'!A$2:B$243,2, FALSE) -> 839.6 | F52: =BOM!F49 -> 0 | G52: 0
A53: I/O Module | B53: I/O | D53: CSDSC-C50100L0 | E53: =VLOOKUP(D53,'AOMS List Price'!A$2:B$243,2, FALSE) -> 116.2 | F53: =BOM!F50 -> 0 | G53: 0
A54: I/O Module | B54: I/O | D54: CSDSC-C50100L1 | E54: =VLOOKUP(D54,'AOMS List Price'!A$2:B$243,2, FALSE) -> 185.77 | F54: =BOM!F51 -> 0 | G54: 0
A55: I/O Module | B55: I/O | D55: CSDECM-C35200L0 | E55: =VLOOKUP(D55,'AOMS List Price'!A$2:B$243,2, FALSE) -> 81.41 | F55: =BOM!F52 -> 0 | G55: 0
A56: I/O Module | B56: I/O | D56: CSDECM-C35200L1 | E56: =VLOOKUP(D56,'AOMS List Price'!A$2:B$243,2, FALSE) -> 150.99 | F56: =BOM!F53 -> 0 | G56: 0
A57: I/O Module | B57: IOM Relay | D57: RIBU1C | E57: =VLOOKUP(D57,'AOMS List Price'!A$2:B$243,2, FALSE) -> 30.52 | F57: =BOM!F54 -> 0 | G57: 0
A58: I/O Module | B58: IOM NS Sensor | D58: NS-BTN7003-0 | E58: =VLOOKUP(D58,'AOMS List Price'!A$2:B$243,2, FALSE) -> 147.05 | F58: =BOM!F55 -> 0 | G58: 0
A59: I/O Module | B59: IOM NS Sensor | D59: NS-BTN7003-2 | E59: =VLOOKUP(D59,'AOMS List Price'!A$2:B$243,2, FALSE) -> 147.05 | F59: =BOM!F56 -> 0 | G59: 0
A60: I/O Module | B60: IOM NS Sensor | D60: NS-BHN7003-0 | E60: =VLOOKUP(D60,'AOMS List Price'!A$2:B$243,2, FALSE) -> 515.21 | F60: =BOM!F57 -> 0 | G60: 0
A61: I/O Module | B61: IOM NS Sensor | D61: NS-BTN7001-0 | E61: =VLOOKUP(D61,'AOMS List Price'!A$2:B$243,2, FALSE) -> 148.51 | F61: =BOM!F58 -> 0 | G61: 0
A62: I/O Module | B62: IOM NS Sensor | D62: NS-BTN7001-2 | E62: =VLOOKUP(D62,'AOMS List Price'!A$2:B$243,2, FALSE) -> 148.51 | F62: =BOM!F59 -> 0 | G62: 0
A63: I/O Module | B63: IOM Wireless Receiver | D63: WRZ-7860-0 | E63: =VLOOKUP(D63,'AOMS List Price'!A$2:B$243,2, FALSE) -> 237.68 | F63: =BOM!F60 -> 0 | G63: 0
A64: I/O Module | B64: IOM Receiver Wire Extder | D64: ZFR-CBLEXT-0 | E64: =VLOOKUP(D64,'AOMS List Price'!A$2:B$243,2, FALSE) -> 77.73 | F64: =BOM!F61 -> 0 | G64: 0
A65: I/O Module | B65: IOM Wireless Sensor | D65: WRZ-STR0000-0 | E65: =VLOOKUP(D65,'AOMS List Price'!A$2:B$243,2, FALSE) -> 923.02 | F65: =BOM!F62 -> 0 | G65: 0
A66: I/O Module | B66: IOM Wireless Sensor | D66: WRZ-RMT10K-0 | E66: =VLOOKUP(D66,'AOMS List Price'!A$2:B$243,2, FALSE) -> 778.9 | F66: =BOM!F63 -> 0 | G66: 0
A67: I/O Module | B67: IOM Wireless Sensor | D67: WRZ-TTR0000-0 | E67: =VLOOKUP(D67,'AOMS List Price'!A$2:B$243,2, FALSE) -> 267.78 | F67: =BOM!F64 -> 0 | G67: 0
A68: I/O Module | B68: IOM Wireless Sensor | D68: WRZ-THN0000-0 | E68: =VLOOKUP(D68,'AOMS List Price'!A$2:B$243,2, FALSE) -> 410.04 | F68: =BOM!F65 -> 0 | G68: 0
A69: I/O Module | B69: IOM Energy Meter | D69: ='IOM Device - Energy Meter'!F33 -> ? | E69: =VLOOKUP(D69,'AOMS List Price'!A$2:B$243,2, FALSE) ->  | F69: =BOM!F66 -> 0 | G69: =_xlfn.IFNA(E69*F69,0) -> 0
A70: I/O Module | B70: IOM Energy Meter | D70: ='IOM Device - Energy Meter'!F34 -> ? | E70: =VLOOKUP(D70,'AOMS List Price'!A$2:B$243,2, FALSE) ->  | F70: =BOM!F67 -> 0 | G70: =_xlfn.IFNA(E70*F70,0) -> 0
A71: I/O Module | B71: IOM Energy Meter | D71: ='IOM Device - Energy Meter'!F35 -> ? | E71: =VLOOKUP(D71,'AOMS List Price'!A$2:B$243,2, FALSE) ->  | F71: =BOM!F68 -> 0 | G71: 0
A72: SZ - Smart Equipment | B72: Zone Temperature | D72: NS-BTB7003-0 | E72: =VLOOKUP(D72,'AOMS List Price'!A$2:B$243,2, FALSE) -> 189.94 | F72: =BOM!F69 -> 0 | G72: 0
A73: SZ - Smart Equipment | B73: Zone Temperature | D73: NS-BTB7003-2 | E73: =VLOOKUP(D73,'AOMS List Price'!A$2:B$243,2, FALSE) -> 189.94 | F73: =BOM!F70 -> 0 | G73: 0
A74: SZ - Smart Equipment | B74: Zone Temperature | D74: NS-BTN7003-0 | E74: =VLOOKUP(D74,'AOMS List Price'!A$2:B$243,2, FALSE) -> 147.05 | F74: =BOM!F71 -> 0 | G74: 0
A75: SZ - Smart Equipment | B75: Zone Temperature | D75: NS-BTN7003-2 | E75: =VLOOKUP(D75,'AOMS List Price'!A$2:B$243,2, FALSE) -> 147.05 | F75: =BOM!F72 -> 0 | G75: 0
A76: SZ - Smart Equipment | B76: Zone Temperature | D76: NS-BTP7002-0 | E76: =VLOOKUP(D76,'AOMS List Price'!A$2:B$243,2, FALSE) -> 156.21 | F76: =BOM!F73 -> 0 | G76: 0
A77: SZ - Smart Equipment | B77: Zone Temperature | D77: NS-BTP7002-2 | E77: =VLOOKUP(D77,'AOMS List Price'!A$2:B$243,2, FALSE) -> 156.21 | F77: =BOM!F74 -> 0 | G77: 0
A78: SZ - Smart Equipment | B78: Zone Temperature | D78: NS-BHR7103-0 | E78: =VLOOKUP(D78,'AOMS List Price'!A$2:B$243,2, FALSE) -> 693.51 | F78: =BOM!F75 -> 0 | G78: 0
A79: SZ - Smart Equipment | B79: Zone Temperature | D79: NS-BHP7001-0 | E79: =VLOOKUP(D79,'AOMS List Price'!A$2:B$243,2, FALSE) -> 539.24 | F79: =BOM!F76 -> 0 | G79: 0
A80: SZ - Smart Equipment | B80: Zone Temperature | D80: NS-BTB7F03-0 | E80: =VLOOKUP(D80,'AOMS List Price'!A$2:B$243,2, FALSE) -> 227.93 | F80: =BOM!F77 -> 0 | G80: 0
A81: SZ - Smart Equipment | B81: Zone Temperature | D81: NS-BTK7002-0 | E81: =VLOOKUP(D81,'AOMS List Price'!A$2:B$243,2, FALSE) -> 206 | F81: =BOM!F78 -> 0 | G81: =E81*F81 -> 0
A82: SZ - Smart Equipment | B82: Zone Temperature | D82: NS-BTK7002-2 | E82: =VLOOKUP(D82,'AOMS List Price'!A$2:B$243,2, FALSE) -> 206 | F82: =BOM!F79 -> 0 | G82: 0
A83: SZ - Smart Equipment | B83: CO2 Sensor | D83: NS-BCN7004-0 | E83: =VLOOKUP(D83,'AOMS List Price'!A$2:B$243,2, FALSE) -> 1156.49 | F83: =BOM!F80 -> 0 | G83: 0
A84: SZ - Smart Equipment | B84: COMM CARD | D84: SE-COM1001-0 | E84: =VLOOKUP(D84,'AOMS List Price'!A$2:B$243,2, FALSE) -> 177.79 | F84: =BOM!F81 -> 0 | G84: 0
A85: SZ - 3rd Party Units | B85: Thermostat | D85: TEC3630-00-000 | E85: =VLOOKUP(D85,'AOMS List Price'!A$2:B$243,2, FALSE) -> 685.26 | F85: =BOM!F82 -> 0 | G85: 0
A86: SZ - 3rd Party Units | B86: Thermostat | D86: TEC3631-00-000 | E86: =VLOOKUP(D86,'AOMS List Price'!A$2:B$243,2, FALSE) -> 761.22 | F86: =BOM!F83 -> 0 | G86: 0
A87: SZ - 3rd Party Units | B87: Thermostat | D87: TEC3630-01-000 | E87: =VLOOKUP(D87,'AOMS List Price'!A$2:B$243,2, FALSE) -> 685.26 | F87: =BOM!F84 -> 0 | G87: 0
A88: SZ - 3rd Party Units | B88: Thermostat | D88: TEC3631-01-000 | E88: =VLOOKUP(D88,'AOMS List Price'!A$2:B$243,2, FALSE) -> 761.22 | F88: =BOM!F85 -> 0 | G88: 0
A89: SZ - 3rd Party Units | B89: Wireless Thermostat | D89: TEC3030-00-000 | E89: =VLOOKUP(D89,'AOMS List Price'!A$2:B$243,2, FALSE) -> 592.44 | F89: =BOM!F86 -> 0 | G89: 0
A90: SZ - 3rd Party Units | B90: Wireless Thermostat | D90: TEC3031-00-000 | E90: =VLOOKUP(D90,'AOMS List Price'!A$2:B$243,2, FALSE) -> 761.22 | F90: =BOM!F87 -> 0 | G90: 0
A91: SZ - 3rd Party Units | B91: Wireless Thermostat | D91: TEC3030-01-000 | E91: =VLOOKUP(D91,'AOMS List Price'!A$2:B$243,2, FALSE) -> 592.44 | F91: =BOM!F88 -> 0 | G91: 0
A92: SZ - 3rd Party Units | B92: Wireless Thermostat | D92: TEC3031-01-000 | E92: =VLOOKUP(D92,'AOMS List Price'!A$2:B$243,2, FALSE) -> 761.22 | F92: =BOM!F89 -> 0 | G92: 0
A93: SZ - 3rd Party Units | B93: Wireless Pro Coordinator | D93: LC-ZFR1825-0 | E93: =VLOOKUP(D93,'AOMS List Price'!A$2:B$243,2, FALSE) -> 470.06 | F93: =BOM!F90 -> 0 | G93: 0
A94: SZ - 3rd Party Units | B94: Wireless Repeater Kit | D94: LC-ZFR1821-0B | E94: =VLOOKUP(D94,'AOMS List Price'!A$2:B$243,2, FALSE) -> 205.35 | F94: =BOM!F91 -> 0 | G94: 0
A95: SZ - 3rd Party Units | B95: Wireless Repeater Kit | D95: LC-ZFR1822-0B | E95: =VLOOKUP(D95,'AOMS List Price'!A$2:B$243,2, FALSE) -> 222.42 | F95: =BOM!F92 -> 0 | G95: 0
A96: SZ - 3rd Party Units | B96: Supply Temp | D96: TE-6311M-1 | E96: =VLOOKUP(D96,'AOMS List Price'!A$2:B$243,2, FALSE) -> 35.63 | F96: =BOM!F93 -> 0 | G96: 0
A97: SZ - 3rd Party Units | B97: Outside Temp | D97: TE-6313P-1 | E97: =VLOOKUP(D97,'AOMS List Price'!A$2:B$243,2, FALSE) -> 51.47 | F97: =BOM!F94 -> 0 | G97: 0
A98: SZ - 3rd Party Units | B98: Remote Sensor | D98: TE-68NT-0N00S | E98: =VLOOKUP(D98,'AOMS List Price'!A$2:B$243,2, FALSE) -> 95.95 | F98: =BOM!F95 -> 0 | G98: 0
A99: SZ - 3rd Party Units | B99: Wall plate | D99: TEC-WALLPLT | E99: =VLOOKUP(D99,'AOMS List Price'!A$2:B$243,2, FALSE) -> 10.71 | F99: =BOM!F96 -> 0 | G99: 0
A100: SZ - 3rd Party Units | B100: Fan Status | D100: CSD-CF0A0-1 | E100: =VLOOKUP(D100,'AOMS List Price'!A$2:B$243,2, FALSE) -> 84.07 | F100: =BOM!F97 -> 0 | G100: 0
A101: SZ - 3rd Party Units | B101: Damper Actuator | D101: M9208-GGA-3 | E101: =VLOOKUP(D101,'AOMS List Price'!A$2:B$243,2, FALSE) -> 493.34 | F101: =BOM!F98 -> 0 | G101: 0
A102: SZ - 3rd Party Units | B102: Damper Actuator | D102: M9208-250 | E102: =VLOOKUP(D102,'AOMS List Price'!A$2:B$243,2, FALSE) -> 131.12 | F102: =BOM!F99 -> 0 | G102: 0
A103: MZ- Zone Coordinator | B103: Zone Coordinator | D103: LC-VZC100-0 | E103: =VLOOKUP(D103,'AOMS List Price'!A$2:B$243,2, FALSE) -> 590.8 | F103: =BOM!F100 -> 0 | G103: 0
A104: MZ- Zone Coordinator | B104: Zone Coordinator | D104: LC-VZCPNL-0 | E104: =VLOOKUP(D104,'AOMS List Price'!A$2:B$243,2, FALSE) -> 1139.89 | F104: =BOM!F101 -> 0 | G104: 0
A105: MZ- Zone Coordinator | B105: Zone Power | D105: Y65T42-0 | E105: =VLOOKUP(D105,'AOMS List Price'!A$2:B$243,2, FALSE) -> 76.63 | F105: =BOM!F102 -> 0 | G105: 0
A106: MZ- Zone Coordinator | B106: Zone Power | D106: PSH100A | E106: =VLOOKUP(D106,'AOMS List Price'!A$2:B$243,2, FALSE) -> 173.2 | F106: =BOM!F103 -> 0 | G106: 0
A107: MZ- Zone Coordinator | B107: Zone Power | D107: PSH300A | E107: =VLOOKUP(D107,'AOMS List Price'!A$2:B$243,2, FALSE) -> 592.04 | F107: =BOM!F104 -> 0 | G107: 0
A108: MZ- Zone Coordinator | B108: Zone Power | D108: PSH500A | E108: =VLOOKUP(D108,'AOMS List Price'!A$2:B$243,2, FALSE) -> 799.4 | F108: =BOM!F105 -> 0 | G108: 0
A109: MZ - Smart Equipment | B109: COMM CARD | D109: SE-COM1001-0 | E109: =VLOOKUP(D109,'AOMS List Price'!A$2:B$243,2, FALSE) -> 177.79 | F109: =BOM!F106 -> 0 | G109: 0
A110: MZ- 3rd Party Units | B110: 3rd Party Controller | D110: LC-VEC100-0 | E110: =VLOOKUP(D110,'AOMS List Price'!A$2:B$243,2, FALSE) -> 698.56 | F110: =BOM!F107 -> 0 | G110: 0
A111: MZ- 3rd Party Units | B111: Duct Sensors | D111: TE-6311M-1 | E111: =VLOOKUP(D111,'AOMS List Price'!A$2:B$243,2, FALSE) -> 35.63 | F111: =BOM!F108 -> 0 | G111: 0
A112: MZ- 3rd Party Units | B112: Static Pressure Sensor | D112: DPT2640-005D | E112: =VLOOKUP(D112,'AOMS List Price'!A$2:B$243,2, FALSE) -> 333.24 | F112: =BOM!F109 -> 0 | G112: 0
A113: MZ- 3rd Party Units | B113: Static Pressure Probe | D113: FTG18A-600R | E113: =VLOOKUP(D113,'AOMS List Price'!A$2:B$243,2, FALSE) -> 37.38 | F113: =BOM!F110 -> 0 | G113: 0
A114: MZ- 3rd Party Units | B114: Outside Temp | D114: TE-6313P-1 | E114: =VLOOKUP(D114,'AOMS List Price'!A$2:B$243,2, FALSE) -> 51.47 | F114: =BOM!F111 -> 0 | G114: 0
A115: MZ- 3rd Party Units | B115: Filter Status | D115: P32AC-2C | E115: =VLOOKUP(D115,'AOMS List Price'!A$2:B$243,2, FALSE) -> 159.03 | F115: =BOM!F112 -> 0 | G115: 0
A116: MZ- 3rd Party Units | B116: Filter Status | D116: FTG18A-600R | E116: =VLOOKUP(D116,'AOMS List Price'!A$2:B$243,2, FALSE) -> 37.38 | F116: =BOM!F113 -> 0 | G116: 0
A117: MZ- 3rd Party Units | B117: Fan Status | D117: CSD-CF0A0-1 | E117: =VLOOKUP(D117,'AOMS List Price'!A$2:B$243,2, FALSE) -> 84.07 | F117: =BOM!F114 -> 0 | G117: 0
A118: MZ- 3rd Party Units | B118: Return CO2 Sensor | D118: CD-P1000-00-00 | E118: =VLOOKUP(D118,'AOMS List Price'!A$2:B$243,2, FALSE) -> 1158.92 | F118: =BOM!F115 -> 0 | G118: 0
A119: MZ- 3rd Party Units | B119: Zone Humidity | D119: NS-BHN7003-0 | E119: =VLOOKUP(D119,'AOMS List Price'!A$2:B$243,2, FALSE) -> 515.21 | F119: =BOM!F116 -> 0 | G119: 0
A120: MZ- 3rd Party Units | B120: Damper Actuator | D120: M9208-GGA-3 | E120: =VLOOKUP(D120,'AOMS List Price'!A$2:B$243,2, FALSE) -> 493.34 | F120: =BOM!F117 -> 0 | G120: 0
A121: MZ- 3rd Party Units | B121: Damper Actuator | D121: M9208-250 | E121: =VLOOKUP(D121,'AOMS List Price'!A$2:B$243,2, FALSE) -> 131.12 | F121: =BOM!F118 -> 0 | G121: 0
A122: MZ- VAV Zones | B122: Controller | D122: LC-ZEC410-1 | E122: =VLOOKUP(D122,'AOMS List Price'!A$2:B$243,2, FALSE) -> 583.73 | F122: =BOM!F119 -> 0 | G122: 0
A123: MZ- VAV Zones | B123: Controller | D123: LC-ZEC410-2 | E123: =VLOOKUP(D123,'AOMS List Price'!A$2:B$243,2, FALSE) -> 583.73 | F123: =BOM!F120 -> 0 | G123: 0
A124: MZ- VAV Zones | B124: Controller | D124: LC-ZEC410-3 | E124: =VLOOKUP(D124,'AOMS List Price'!A$2:B$243,2, FALSE) -> 583.73 | F124: =BOM!F121 -> 0 | G124: 0
A125: MZ- VAV Zones | B125: Zone Temperature | D125: NS-BTB7003-0 | E125: =VLOOKUP(D125,'AOMS List Price'!A$2:B$243,2, FALSE) -> 189.94 | F125: =BOM!F122 -> 0 | G125: 0
A126: MZ- VAV Zones | B126: Zone Temperature | D126: NS-BTB7003-2 | E126: =VLOOKUP(D126,'AOMS List Price'!A$2:B$243,2, FALSE) -> 189.94 | F126: =BOM!F123 -> 0 | G126: 0
A127: MZ- VAV Zones | B127: Zone Temperature | D127: NS-BTN7003-0 | E127: =VLOOKUP(D127,'AOMS List Price'!A$2:B$243,2, FALSE) -> 147.05 | F127: =BOM!F124 -> 0 | G127: 0
A128: MZ- VAV Zones | B128: Zone Temperature | D128: NS-BTN7003-2 | E128: =VLOOKUP(D128,'AOMS List Price'!A$2:B$243,2, FALSE) -> 147.05 | F128: =BOM!F125 -> 0 | G128: 0
A129: MZ- VAV Zones | B129: Zone Temperature | D129: NS-BTP7002-0 | E129: =VLOOKUP(D129,'AOMS List Price'!A$2:B$243,2, FALSE) -> 156.21 | F129: =BOM!F126 -> 0 | G129: 0
A130: MZ- VAV Zones | B130: Zone Temperature | D130: NS-BTP7002-2 | E130: =VLOOKUP(D130,'AOMS List Price'!A$2:B$243,2, FALSE) -> 156.21 | F130: =BOM!F127 -> 0 | G130: 0
A131: MZ- VAV Zones | B131: Zone Temperature | D131: NS-BTK7002-0 | E131: =VLOOKUP(D131,'AOMS List Price'!A$2:B$243,2, FALSE) -> 206 | F131: =BOM!F128 -> 0 | G131: 0
A132: MZ- VAV Zones | B132: Zone Temperature | D132: NS-BTK7002-2 | E132: =VLOOKUP(D132,'AOMS List Price'!A$2:B$243,2, FALSE) -> 206 | F132: =BOM!F129 -> 0 | G132: 0
A133: MZ- VAV Zones | B133: Discharge Temp | D133: TE-631GV-2 | E133: =VLOOKUP(D133,'AOMS List Price'!A$2:B$243,2, FALSE) -> 35.61 | F133: =BOM!F130 -> 0 | G133: 0
A134: MZ- VAV Zones | B134: CO2 Sensor | D134: NS-BCN7004-0 | E134: =VLOOKUP(D134,'AOMS List Price'!A$2:B$243,2, FALSE) -> 1156.49 | F134: =BOM!F131 -> 0 | G134: 0
A135: MZ- VAV Zones | B135: Occupancy Lighting | D135: OLS-2100-1 | E135: =VLOOKUP(D135,'AOMS List Price'!A$2:B$243,2, FALSE) -> 367.69 | F135: =BOM!F132 -> 0 | G135: 0
A136: MZ- VAV Zones | B136: Occupancy Lighting | D136: RIBU1C | E136: =VLOOKUP(D136,'AOMS List Price'!A$2:B$243,2, FALSE) -> 30.52 | F136: =BOM!F133 -> 0 | G136: 0
A137: MZ- VAV Zones | B137: Balancing | D137: NS-ATV7003-0 | E137: =VLOOKUP(D137,'AOMS List Price'!A$2:B$243,2, FALSE) -> 245.07 | F137: =BOM!F134 -> 0 | G137: 0
A138: MZ - COBP Zones | B138: Zone Temperature | D138: NS-BTB7003-0 | E138: =VLOOKUP(D138,'AOMS List Price'!A$2:B$243,2, FALSE) -> 189.94 | F138: =BOM!F135 -> 0 | G138: 0
A139: MZ - COBP Zones | B139: Zone Temperature | D139: NS-BTB7003-2 | E139: =VLOOKUP(D139,'AOMS List Price'!A$2:B$243,2, FALSE) -> 189.94 | F139: =BOM!F136 -> 0 | G139: 0
A140: MZ - COBP Zones | B140: Zone Temperature | D140: NS-BTN7003-0 | E140: =VLOOKUP(D140,'AOMS List Price'!A$2:B$243,2, FALSE) -> 147.05 | F140: =BOM!F137 -> 0 | G140: 0
A141: MZ - COBP Zones | B141: Zone Temperature | D141: NS-BTN7003-2 | E141: =VLOOKUP(D141,'AOMS List Price'!A$2:B$243,2, FALSE) -> 147.05 | F141: =BOM!F138 -> 0 | G141: 0
A142: MZ - COBP Zones | B142: Zone Temperature | D142: NS-BTP7002-0 | E142: =VLOOKUP(D142,'AOMS List Price'!A$2:B$243,2, FALSE) -> 156.21 | F142: =BOM!F139 -> 0 | G142: 0
A143: MZ - COBP Zones | B143: Zone Temperature | D143: NS-BTP7002-2 | E143: =VLOOKUP(D143,'AOMS List Price'!A$2:B$243,2, FALSE) -> 156.21 | F143: =BOM!F140 -> 0 | G143: 0
A144: MZ - COBP Zones | B144: Zone Temperature | D144: NS-BTK7002-0 | E144: =VLOOKUP(D144,'AOMS List Price'!A$2:B$243,2, FALSE) -> 206 | F144: =BOM!F141 -> 0 | G144: 0
A145: MZ - COBP Zones | B145: Zone Temperature | D145: NS-BTK7002-2 | E145: =VLOOKUP(D145,'AOMS List Price'!A$2:B$243,2, FALSE) -> 206 | F145: =BOM!F142 -> 0 | G145: =E145*F145 -> 0
A146: MZ - COBP Zones | B146: Zone Temperature | D146: TE-68NT-0N00S | E146: =VLOOKUP(D146,'AOMS List Price'!A$2:B$243,2, FALSE) -> 95.95 | F146: =BOM!F143 -> 0 | G146: 0
A147: MZ - COBP Zones | B147: Zone Temperature | D147: TE-68NT-1N00S | E147: =VLOOKUP(D147,'AOMS List Price'!A$2:B$243,2, FALSE) -> 107.01 | F147: =BOM!F144 -> 0 | G147: 0
A148: MZ - COBP Zones | B148: CO2 Sensor | D148: NS-BCN7004-0 | E148: =VLOOKUP(D148,'AOMS List Price'!A$2:B$243,2, FALSE) -> 1156.49 | F148: =BOM!F145 -> 0 | G148: 0
A149: MZ - COBP Zones | B149: Controller | D149: LC-ZEC310-0 | E149: =VLOOKUP(D149,'AOMS List Price'!A$2:B$243,2, FALSE) -> 564.74 | F149: =BOM!F146 -> 0 | G149: 0
A150: MZ - COBP Zones | B150: Zone Damper | D150: RCG04B | E150: =VLOOKUP(D150,'AOMS List Price'!A$2:B$243,2, FALSE) -> 189.5148 | F150: =BOM!F147 -> 0 | G150: 0
A151: MZ - COBP Zones | B151: Zone Damper | D151: RCG06B | E151: =VLOOKUP(D151,'AOMS List Price'!A$2:B$243,2, FALSE) -> 191.8458 | F151: =BOM!F148 -> 0 | G151: 0
A152: MZ - COBP Zones | B152: Zone Damper | D152: RCG07B | E152: =VLOOKUP(D152,'AOMS List Price'!A$2:B$243,2, FALSE) -> 196.5518 | F152: =BOM!F149 -> 0 | G152: 0
A153: MZ - COBP Zones | B153: Zone Damper | D153: RCG08B | E153: =VLOOKUP(D153,'AOMS List Price'!A$2:B$243,2, FALSE) -> 201.2139 | F153: =BOM!F150 -> 0 | G153: 0
A154: MZ - COBP Zones | B154: Zone Damper | D154: RCG09B | E154: =VLOOKUP(D154,'AOMS List Price'!A$2:B$243,2, FALSE) -> 205.92 | F154: =BOM!F151 -> 0 | G154: 0
A155: MZ - COBP Zones | B155: Zone Damper | D155: RCG10B | E155: =VLOOKUP(D155,'AOMS List Price'!A$2:B$243,2, FALSE) -> 208.2059 | F155: =BOM!F152 -> 0 | G155: 0
A156: MZ - COBP Zones | B156: Zone Damper | D156: RCG11B | E156: =VLOOKUP(D156,'AOMS List Price'!A$2:B$243,2, FALSE) -> 219.95 | F156: =BOM!F153 -> 0 | G156: 0
A157: MZ - COBP Zones | B157: Zone Damper | D157: RCG12B | E157: =VLOOKUP(D157,'AOMS List Price'!A$2:B$243,2, FALSE) -> 226.9427 | F157: =BOM!F154 -> 0 | G157: 0
A158: MZ - COBP Zones | B158: Zone Damper | D158: RCG13B | E158: =VLOOKUP(D158,'AOMS List Price'!A$2:B$243,2, FALSE) -> 238.6418 | F158: =BOM!F155 -> 0 | G158: 0
A159: MZ - COBP Zones | B159: Zone Damper | D159: RCG14B | E159: =VLOOKUP(D159,'AOMS List Price'!A$2:B$243,2, FALSE) -> 255.047 | F159: =BOM!F156 -> 0 | G159: 0
A160: MZ - COBP Zones | B160: Zone Damper | D160: RCG15B | E160: =VLOOKUP(D160,'AOMS List Price'!A$2:B$243,2, FALSE) -> 259.7088 | F160: =BOM!F157 -> 0 | G160: 0
A161: MZ - COBP Zones | B161: Zone Damper | D161: RCG16B | E161: =VLOOKUP(D161,'AOMS List Price'!A$2:B$243,2, FALSE) -> 269.077 | F161: =BOM!F158 -> 0 | G161: 0
A162: MZ - COBP Zones | B162: Zone Damper | D162: RCG17B | E162: =VLOOKUP(D162,'AOMS List Price'!A$2:B$243,2, FALSE) -> 320.5348 | F162: =BOM!F159 -> 0 | G162: 0
A163: MZ - COBP Zones | B163: Zone Damper | D163: RCG18B | E163: =VLOOKUP(D163,'AOMS List Price'!A$2:B$243,2, FALSE) -> 341.6018 | F163: =BOM!F160 -> 0 | G163: 0
A164: MZ - COBP Zones | B164: Zone Damper/Controller | D164: RZV06Z | E164: =VLOOKUP(D164,'AOMS List Price'!A$2:B$243,2, FALSE) -> 774.14 | F164: =BOM!F161 -> 0 | G164: 0
A165: MZ - COBP Zones | B165: Zone Damper/Controller | D165: RZV07Z | E165: =VLOOKUP(D165,'AOMS List Price'!A$2:B$243,2, FALSE) -> 786.97 | F165: =BOM!F162 -> 0 | G165: 0
A166: MZ - COBP Zones | B166: Zone Damper/Controller | D166: RZV08Z | E166: =VLOOKUP(D166,'AOMS List Price'!A$2:B$243,2, FALSE) -> 786.97 | F166: =BOM!F163 -> 0 | G166: 0
A167: MZ - COBP Zones | B167: Zone Damper/Controller | D167: RZV09Z | E167: =VLOOKUP(D167,'AOMS List Price'!A$2:B$243,2, FALSE) -> 796.62 | F167: =BOM!F164 -> 0 | G167: 0
A168: MZ - COBP Zones | B168: Zone Damper/Controller | D168: RZV10Z | E168: =VLOOKUP(D168,'AOMS List Price'!A$2:B$243,2, FALSE) -> 796.62 | F168: =BOM!F165 -> 0 | G168: 0
A169: MZ - COBP Zones | B169: Zone Damper/Controller | D169: RZV11Z | E169: =VLOOKUP(D169,'AOMS List Price'!A$2:B$243,2, FALSE) -> 822.32 | F169: =BOM!F166 -> 0 | G169: 0
A170: MZ - COBP Zones | B170: Zone Damper/Controller | D170: RZV12Z | E170: =VLOOKUP(D170,'AOMS List Price'!A$2:B$243,2, FALSE) -> 822.32 | F170: =BOM!F167 -> 0 | G170: 0
A171: MZ - COBP Zones | B171: Zone Damper/Controller | D171: RZV13Z | E171: =VLOOKUP(D171,'AOMS List Price'!A$2:B$243,2, FALSE) -> 860.86 | F171: =BOM!F168 -> 0 | G171: 0
A172: MZ - COBP Zones | B172: Zone Damper/Controller | D172: RZV14Z | E172: =VLOOKUP(D172,'AOMS List Price'!A$2:B$243,2, FALSE) -> 860.86 | F172: =BOM!F169 -> 0 | G172: 0
A173: MZ - COBP Zones | B173: Zone Damper/Controller | D173: RZV15Z | E173: =VLOOKUP(D173,'AOMS List Price'!A$2:B$243,2, FALSE) -> 880.1 | F173: =BOM!F170 -> 0 | G173: 0
A174: MZ - COBP Zones | B174: Zone Damper/Controller | D174: RZV16Z | E174: =VLOOKUP(D174,'AOMS List Price'!A$2:B$243,2, FALSE) -> 880.1 | F174: =BOM!F171 -> 0 | G174: 0
A175: MZ - COBP Zones | B175: Zone Damper/Controller | D175: RZV17Z | E175: =VLOOKUP(D175,'AOMS List Price'!A$2:B$243,2, FALSE) -> 979.7 | F175: =BOM!F172 -> 0 | G175: 0
A176: MZ - COBP Zones | B176: Zone Damper/Controller | D176: RZV18Z | E176: =VLOOKUP(D176,'AOMS List Price'!A$2:B$243,2, FALSE) -> 979.7 | F176: =BOM!F173 -> 0 | G176: 0
A177: MZ - COBP Zones | B177: Occupancy Lighting | D177: OLS-2100-1 | E177: =VLOOKUP(D177,'AOMS List Price'!A$2:B$243,2, FALSE) -> 367.69 | F177: =BOM!F174 -> 0 | G177: 0
A178: MZ - COBP Zones | B178: Occupancy Lighting | D178: RIBU1C | E178: =VLOOKUP(D178,'AOMS List Price'!A$2:B$243,2, FALSE) -> 30.52 | F178: =BOM!F175 -> 0 | G178: 0
A179: MZ - COBP Zones | B179: Second Zone Damper | D179: M9310-HGA-2 | E179: =VLOOKUP(D179,'AOMS List Price'!A$2:B$243,2, FALSE) -> 366.24 | F179: =BOM!F176 -> 0 | G179: 0
A180: MZ- Bypass Damper | B180: Controller | D180: LC-BYP200-0 | E180: =VLOOKUP(D180,'AOMS List Price'!A$2:B$243,2, FALSE) -> 604.27 | F180: =BOM!F177 -> 0 | G180: 0
A181: MZ- Bypass Damper | B181: Bypass Damper | D181: RCG06B | E181: =VLOOKUP(D181,'AOMS List Price'!A$2:B$243,2, FALSE) -> 191.8458 | F181: =BOM!F178 -> 0 | G181: 0
A182: MZ- Bypass Damper | B182: Bypass Damper | D182: RCG07B | E182: =VLOOKUP(D182,'AOMS List Price'!A$2:B$243,2, FALSE) -> 196.5518 | F182: =BOM!F179 -> 0 | G182: 0
A183: MZ- Bypass Damper | B183: Bypass Damper | D183: RCG08B | E183: =VLOOKUP(D183,'AOMS List Price'!A$2:B$243,2, FALSE) -> 201.2139 | F183: =BOM!F180 -> 0 | G183: 0
A184: MZ- Bypass Damper | B184: Bypass Damper | D184: RCG09B | E184: =VLOOKUP(D184,'AOMS List Price'!A$2:B$243,2, FALSE) -> 205.92 | F184: =BOM!F181 -> 0 | G184: 0
A185: MZ- Bypass Damper | B185: Bypass Damper | D185: RCG10B | E185: =VLOOKUP(D185,'AOMS List Price'!A$2:B$243,2, FALSE) -> 208.2059 | F185: =BOM!F182 -> 0 | G185: 0
A186: MZ- Bypass Damper | B186: Bypass Damper | D186: RCG11B | E186: =VLOOKUP(D186,'AOMS List Price'!A$2:B$243,2, FALSE) -> 219.95 | F186: =BOM!F183 -> 0 | G186: 0
A187: MZ- Bypass Damper | B187: Bypass Damper | D187: RCG12B | E187: =VLOOKUP(D187,'AOMS List Price'!A$2:B$243,2, FALSE) -> 226.9427 | F187: =BOM!F184 -> 0 | G187: 0
A188: MZ- Bypass Damper | B188: Bypass Damper | D188: RCG13B | E188: =VLOOKUP(D188,'AOMS List Price'!A$2:B$243,2, FALSE) -> 238.6418 | F188: =BOM!F185 -> 0 | G188: 0
A189: MZ- Bypass Damper | B189: Bypass Damper | D189: RCG14B | E189: =VLOOKUP(D189,'AOMS List Price'!A$2:B$243,2, FALSE) -> 255.047 | F189: =BOM!F186 -> 0 | G189: 0
A190: MZ- Bypass Damper | B190: Bypass Damper | D190: RCG15B | E190: =VLOOKUP(D190,'AOMS List Price'!A$2:B$243,2, FALSE) -> 259.7088 | F190: =BOM!F187 -> 0 | G190: 0
A191: MZ- Bypass Damper | B191: Bypass Damper | D191: RCG16B | E191: =VLOOKUP(D191,'AOMS List Price'!A$2:B$243,2, FALSE) -> 269.077 | F191: =BOM!F188 -> 0 | G191: 0
A192: MZ- Bypass Damper | B192: Bypass Damper | D192: RCG17B | E192: =VLOOKUP(D192,'AOMS List Price'!A$2:B$243,2, FALSE) -> 320.5348 | F192: =BOM!F189 -> 0 | G192: 0
A193: MZ- Bypass Damper | B193: Bypass Damper | D193: RCG18B | E193: =VLOOKUP(D193,'AOMS List Price'!A$2:B$243,2, FALSE) -> 341.6018 | F193: =BOM!F190 -> 0 | G193: 0
A194: MZ- Bypass Damper | B194: Bypass Damper/Controller | D194: RZV06Y | E194: =VLOOKUP(D194,'AOMS List Price'!A$2:B$243,2, FALSE) -> 749.24 | F194: =BOM!F191 -> 0 | G194: 0
A195: MZ- Bypass Damper | B195: Bypass Damper/Controller | D195: RZV07Y | E195: =VLOOKUP(D195,'AOMS List Price'!A$2:B$243,2, FALSE) -> 762.07 | F195: =BOM!F192 -> 0 | G195: 0
A196: MZ- Bypass Damper | B196: Bypass Damper/Controller | D196: RZV08Y | E196: =VLOOKUP(D196,'AOMS List Price'!A$2:B$243,2, FALSE) -> 762.07 | F196: =BOM!F193 -> 0 | G196: 0
A197: MZ- Bypass Damper | B197: Bypass Damper/Controller | D197: RZV09Y | E197: =VLOOKUP(D197,'AOMS List Price'!A$2:B$243,2, FALSE) -> 771.72 | F197: =BOM!F194 -> 0 | G197: 0
A198: MZ- Bypass Damper | B198: Bypass Damper/Controller | D198: RZV10Y | E198: =VLOOKUP(D198,'AOMS List Price'!A$2:B$243,2, FALSE) -> 771.72 | F198: =BOM!F195 -> 0 | G198: 0
A199: MZ- Bypass Damper | B199: Bypass Damper/Controller | D199: RZV11Y | E199: =VLOOKUP(D199,'AOMS List Price'!A$2:B$243,2, FALSE) -> 797.42 | F199: =BOM!F196 -> 0 | G199: 0
A200: MZ- Bypass Damper | B200: Bypass Damper/Controller | D200: RZV12Y | E200: =VLOOKUP(D200,'AOMS List Price'!A$2:B$243,2, FALSE) -> 797.42 | F200: =BOM!F197 -> 0 | G200: 0
A201: MZ- Bypass Damper | B201: Bypass Damper/Controller | D201: RZV13Y | E201: =VLOOKUP(D201,'AOMS List Price'!A$2:B$243,2, FALSE) -> 835.96 | F201: =BOM!F198 -> 0 | G201: 0
A202: MZ- Bypass Damper | B202: Bypass Damper/Controller | D202: RZV14Y | E202: =VLOOKUP(D202,'AOMS List Price'!A$2:B$243,2, FALSE) -> 835.96 | F202: =BOM!F199 -> 0 | G202: 0
A203: MZ- Bypass Damper | B203: Bypass Damper/Controller | D203: RZV15Y | E203: =VLOOKUP(D203,'AOMS List Price'!A$2:B$243,2, FALSE) -> 855.25 | F203: =BOM!F200 -> 0 | G203: 0
A204: MZ- Bypass Damper | B204: Bypass Damper/Controller | D204: RZV16Y | E204: =VLOOKUP(D204,'AOMS List Price'!A$2:B$243,2, FALSE) -> 855.25 | F204: =BOM!F201 -> 0 | G204: 0
A205: MZ- Bypass Damper | B205: Bypass Damper/Controller | D205: RZV17Y | E205: =VLOOKUP(D205,'AOMS List Price'!A$2:B$243,2, FALSE) -> 954.79 | F205: =BOM!F202 -> 0 | G205: 0
A206: MZ- Bypass Damper | B206: Bypass Damper/Controller | D206: RZV18Y | E206: =VLOOKUP(D206,'AOMS List Price'!A$2:B$243,2, FALSE) -> 954.79 | F206: =BOM!F203 -> 0 | G206: 0
A207: MZ- Bypass Damper | B207: Static Pressure Sensor | D207: DPT2640-005D | E207: =VLOOKUP(D207,'AOMS List Price'!A$2:B$243,2, FALSE) -> 333.24 | F207: =BOM!F204 -> 0 | G207: 0
A208: MZ- Bypass Damper | B208: Static Pressure Probe | D208: FTG18A-600R | E208: =VLOOKUP(D208,'AOMS List Price'!A$2:B$243,2, FALSE) -> 37.38 | F208: =BOM!F205 -> 0 | G208: 0
A209: MZ- Bypass Damper | B209: Bypass Power | D209: Y65T42-0 | E209: =VLOOKUP(D209,'AOMS List Price'!A$2:B$243,2, FALSE) -> 76.63 | F209: =BOM!F206 -> 0 | G209: =E209*F209 -> 0
A210: MZ- Bypass Damper | B210: Second Bypass Damper | D210: M9310-HGA-2 | E210: =VLOOKUP(D210,'AOMS List Price'!A$2:B$243,2, FALSE) -> 366.24 | F210: =BOM!F207 -> 0 | G210: 0
A211: Fan Coil Units | B211: Thermostat | D211: TEC3610-00-000 | E211: =VLOOKUP(D211,'AOMS List Price'!A$2:B$243,2, FALSE) -> 661.12 | F211: =BOM!F208 -> 0 | G211: 0
A212: Fan Coil Units | B212: Thermostat | D212: TEC3611-00-000 | E212: =VLOOKUP(D212,'AOMS List Price'!A$2:B$243,2, FALSE) -> 737.08 | F212: =BOM!F209 -> 0 | G212: 0
... 72 more rows

Sheet Learning Videos
B10: System | C10: Device(s) | D10: Video Description (Click the Titles!) | E10: Should You Watch?
B11: Network | C11: Smart Building Hub | D11: Smart Building Hub Hardware SBH200 | E11: =IF(BOM!F$13=1,"Yes","No") -> No
B12: Network | C12: Smart Building Hub | D12: How to set Schedules in Verasys | E12: =IF(BOM!F$13=1,"Yes","No") -> No
B13: Network | C13: Smart Building Hub | D13: How to setup new users and setup email and texting | E13: =IF(BOM!F$13=1,"Yes","No") -> No
B14: Network | C14: Smart Building Hub | D14: Smart building Hub Alarm Notification | E14: =IF(BOM!F$13=1,"Yes","No") -> No
B15: Network | C15: Smart Building Hub | D15: How to setup Smart Building hub ethernet and internet settings | E15: =IF(BOM!F$13=1,"Yes","No") -> No
B16: Network | C16: Smart Building Hub | D16: How to upgrade software on the Smart Building Hub | E16: =IF(BOM!F$13=1,"Yes","No") -> No
B17: Network | C17: Smart Building Hub | D17: Smart Building Audit Log | E17: =IF(BOM!F$13=1,"Yes","No") -> No
B18: SZ- Single Zone | C18: Smart Equipment | D18: Smart Equipment Hardware and Network Setup | E18: =IF(SUM(BOM!F69:F81)>0,"Yes","No") -> No
B19: SZ- Single Zone | C19: Smart Equipment | D19: Smart Equipment Setup in Verasys | E19: =IF(SUM(BOM!F70:F82)>0,"Yes","No") -> No
B20: SZ- Single Zone | C20: Smart Equipment | D20: Smart Equipment Unit Setup for Net Sensors | E20: =IF(SUM(BOM!F71:F83)>0,"Yes","No") -> No
B21: SZ - Single Zone | C21: TEC Thermostat | D21: TEC3000 Hardware and Network Setup | E21: =IF(SUM(BOM!F82:F99)>0,"Yes","No") -> No
B22: MZ- COBP or VAV | C22: Zone Coordinator | D22: Zone Coordinator Hardware | E22: =IF(SUM(BOM!F$100:F$101)>0,"Yes","No") -> No
B23: MZ- COBP | C23: Zone Coordinator | D23: How to setup a Zone Coordinator for Change over bypass | E23: =IF(OR(BOM!F177>0,SUM(BOM!F191:F203)>0),"Yes","No") -> No
B24: MZ- VAV | C24: Zone Coordinator | D24: How to setup a Zone Coordinator for VAV | E24: =IF(AND(SUM(BOM!F$119:F$121)>0,SUM(BOM!F$161:F$173)=0,BOM!F$146=0),"Yes","No") -> No
B25: MZ- COBP | C25: Zone COBP Controllers | D25: Zone Controller and Bypass Controller Hardware | E25: =IF(OR(BOM!F177>0,SUM(BOM!F191:F203)>0),"Yes","No") -> No
B26: MZ- COBP | C26: Zone COBP Controllers | D26: How to setup a ZEC310 zone controller | E26: =IF(OR(BOM!F177>0,SUM(BOM!F191:F203)>0),"Yes","No") -> No
B27: MZ- COBP or VAV | C27: VAV Box Controllers | D27: ZEC410 Controller Setup through Verasys | E27: =IF(SUM(BOM!F$119:F$121)>0,"Yes","No") -> No
B28: MZ- COBP or VAV | C28: Smart Equipment | D28: Smart Equipment Setup in Verasys | E28: =IF(SUM(BOM!F$100:F$101)>BOM!F$107,"Maybe","No") -> No
B29: MZ- COBP or VAV | C29: 3rd Party Equipment | D29: VEC100 Controller Hardware and Network Setup | E29: =IF(BOM!F$107>0,"Yes","No") -> No
B30: MZ- COBP or VAV | C30: 3rd Party Equipment | D30: VEC100 Controller Setup through Verasys | E30: =IF(BOM!F$107>0,"Yes","No") -> No
B31: IOM Device | C31: VAC Controller | D31: VAC Controller Family Hardware | E31: =IF(AND(BOM!F$23>0,SUM(BOM!F$247:F$248)>0),"Yes","No") -> No
B32: IOM Device | C32: IOM Device | D32: VAC1002 Input Output Configuration | E32: =IF(AND(BOM!F$23>0,SUM(BOM!F$247:F$248)>0),"Yes","No") -> No
B33: IOM Device | C33: Wireless NS | D33: VAC1002 Connecting to Wireless One to One Sensors | E33: =IF(BOM!F$60>0,"Yes","No") -> No
B34: IOM Device | C34: Energy Meter | D34: VAC1002 Connecting to an Energy Meter | E34: =IF(SUM(BOM!F$66:F$68)>0,"Yes","No") -> No
B35: Lighting | C35: VAC Controller | D35: VAC Controller Family Hardware | E35: =IF(AND(BOM!F$23>0,SUM(BOM!F$247:F$248)>0),"Yes","No") -> No
B36: Lighting | C36: Lighting Controller | D36: VAC1001 Lighting Controller Configuration | E36: =IF(BOM!F$277>0,"Yes","No") -> No
B37: Wireless | C37: Wireless ZFR | D37: Verasys Wireless Pro System Layout-Estimating | E37: =IF(SUM(BOM!F$90:F$92)>0,"Yes","No") -> No
B38: Wireless | C38: Wireless ZFR | D38: Verasys Wireless Pro System Troubleshooting | E38: =IF(SUM(BOM!F$90:F$92)>0,"Yes","No") -> No

Sheet Smart Building Hub Videos (hidden)
B6: Audience | C6: Video Description
B7: Installers | C7: How to setup new users and setup email and texting
C8: How to setup Smart Building hub ethernet and internet settings
C9: How to upgrade software on the Smart Building Hub
C10: Smart Building Hub SBH200 Connecting for the First Time
C11: Smart Building Hub Hardware SBH200
C12: How to set Schedules in Verasys
C13: Smart building Hub Alarm Notification
B15: Trouble Shooting | C15: Smart building Hub Alarm Notification
C16: Smart Building Hub SBH200 Factory Reset

Sheet VAC100x Controllers Videos (hidden)
B6: Audience | C6: Video Description
B7: Installers | C7: VAC1002 Connecting to an Energy Meter
C8: VAC Controller Family Hardware
C9: VAC1002 Connecting to Wireless One to One Sensors
C10: VAC1001 Lighting Controller Configuration
C11: VAC1002 Input Output Configuration

Sheet Energy Meters (hidden)
A1: SENVA-01-EMC-3N-03S-03 | B1: ENERGY METER KIT, COMMS TYPE, 3 CVT, NO FUSE, 300A, 9 IN CIRCUM., 3FT LEAD
A2: SENVA-01-EMC-3N-03S-10 | B2: ENERGY METER KIT, COMMS TYPE, 3 CVT, NO FUSE, 300A, 9 IN CIRCUM. 10FT LEAD
A3: SENVA-01-EMC-3N-08S-03 | B3: ENERGY METER KIT, COMMS TYPE, 3 CVT, NO FUSE, 800A, 9 IN CIRCUM., 3FT LEAD
A4: SENVA-01-EMC-3N-08S-10 | B4: ENERGY METER KIT, COMMS TYPE, 3 CVT, NO FUSE, 800A, 9 IN CIRCUM. 10FT LEAD
A5: SENVA-01-EMC-3N-08M-03 | B5: ENERGY METER KIT, COMMS TYPE, 3 CVT, NO FUSE, 800A, 15IN CIRCUM., 3FT LEAD
A6: SENVA-01-EMC-3N-08M-10 | B6: ENERGY METER KIT, COMMS TYPE, 3 CVT, NO FUSE, 800A, 15IN CIRCUM. 10FT LEAD
A7: SENVA-01-EMC-3N-15S-03 | B7: ENERGY METER KIT, COMMS TYPE, 3 CVT, NO FUSE, 1500A, 9 IN CIRCUM., 3FT LEAD
A8: SENVA-01-EMC-3N-15S-10 | B8: ENERGY METER KIT, COMMS TYPE, 3 CVT, NO FUSE, 1500A, 9 IN CIRCUM. 10FT LEAD
A9: SENVA-01-EMC-3N-15M-03 | B9: ENERGY METER KIT, COMMS TYPE, 3 CVT, NO FUSE, 1500A, 15IN CIRCUM. 3FT LEAD
A10: SENVA-01-EMC-3N-15M-10 | B10: ENERGY METER KIT, COMMS TYPE, 3 CVT, NO FUSE, 1500A, 15IN CIRCUM.10FT LEAD
A11: SENVA-01-EMC-3N-24M-03 | B11: ENERGY METER KIT, COMMS TYPE, 3 CVT, NO FUSE, 2400A, 15IN CIRCUM. 3FT LEAD
A12: SENVA-01-EMC-3N-24M-10 | B12: ENERGY METER KIT, COMMS TYPE, 3 CVT, NO FUSE, 2400A, 15IN CIRCUM.10FT LEAD
A13: SENVA-01-EMC-3N-24L-03 | B13: ENERGY METER KIT, COMMS TYPE, 3 CVT, NO FUSE, 2400A, 24IN CIRCUM. 3FT LEAD
A14: SENVA-01-EMC-3N-24L-10 | B14: ENERGY METER KIT, COMMS TYPE, 3 CVT, NO FUSE, 2400A, 24IN CIRCUM.10FT LEAD
A15: SENVA-01-EMC-3N-60G-03 | B15: ENERGY METER KIT, COMMS TYPE, 3 CVT, NO FUSE, 6000A, 36IN CIRCUM. 3FT LEAD
A16: SENVA-01-EMC-3N-60G-10 | B16: ENERGY METER KIT, COMMS TYPE, 3 CVT, NO FUSE, 6000A, 36IN CIRCUM.10FT LEAD
A17: SENVA-01-EMC-2N-03S-03 | B17: ENERGY METER KIT, COMMS TYPE, 2 CVT, NO FUSE, 300A, 9 IN CIRCUM., 3FT LEAD
A18: SENVA-01-EMC-2N-03S-10 | B18: ENERGY METER KIT, COMMS TYPE, 2 CVT, NO FUSE, 300A, 9 IN CIRCUM., 10FT LEAD
A19: SENVA-01-EMC-2N-08S-03 | B19: ENERGY METER KIT, COMMS TYPE, 2 CVT, NO FUSE, 800A, 9 IN CIRCUM., 3FT LEAD
A20: SENVA-01-EMC-2N-08S-10 | B20: ENERGY METER KIT, COMMS TYPE, 2 CVT, NO FUSE, 800A, 9 IN CIRCUM., 10FT LEAD
A21: SENVA-01-EMC-2N-08M-03 | B21: ENERGY METER KIT, COMMS TYPE, 2 CVT, NO FUSE, 800A, 15IN CIRCUM., 3FT LEAD
A22: SENVA-01-EMC-2N-08M-10 | B22: ENERGY METER KIT, COMMS TYPE, 2 CVT, NO FUSE, 800A, 15IN CIRCUM. 10FT LEAD
A23: SENVA-01-EMC-2N-15S-03 | B23: INVALID PART NUMBER - CVT AMP Exceeds 800 Amps
A24: SENVA-01-EMC-2N-15S-10 | B24: INVALID PART NUMBER - CVT AMP Exceeds 800 Amps
A25: SENVA-01-EMC-2N-15M-03 | B25: INVALID PART NUMBER - CVT AMP Exceeds 800 Amps
A26: SENVA-01-EMC-2N-15M-10 | B26: INVALID PART NUMBER - CVT AMP Exceeds 800 Amps
A27: SENVA-01-EMC-2N-24M-03 | B27: INVALID PART NUMBER - CVT AMP Exceeds 800 Amps
A28: SENVA-01-EMC-2N-24M-10 | B28: INVALID PART NUMBER - CVT AMP Exceeds 800 Amps
A29: SENVA-01-EMC-2N-24L-03 | B29: INVALID PART NUMBER - CVT AMP Exceeds 800 Amps
A30: SENVA-01-EMC-2N-24L-10 | B30: INVALID PART NUMBER - CVT AMP Exceeds 800 Amps
A31: SENVA-01-EMC-2N-60G-03 | B31: INVALID PART NUMBER - CVT AMP Exceeds 800 Amps
A32: SENVA-01-EMC-2N-60G-10 | B32: INVALID PART NUMBER - CVT AMP Exceeds 800 Amps
A33: SENVA-01-EMC-3N-3S-03 | B33: INVALID PART NUMBER - CVT AMP INPUT WRONG!!!
A34: SENVA-01-EMC-3N-3S-10 | B34: INVALID PART NUMBER - CVT AMP INPUT WRONG!!!
A35: SENVA-01-EMC-3N-8S-03 | B35: INVALID PART NUMBER - CVT AMP INPUT WRONG!!!
A36: SENVA-01-EMC-3N-8S-10 | B36: INVALID PART NUMBER - CVT AMP INPUT WRONG!!!
A37: SENVA-01-EMC-3N-8M-03 | B37: INVALID PART NUMBER - CVT AMP INPUT WRONG!!!
A38: SENVA-01-EMC-3N-8M-10 | B38: INVALID PART NUMBER - CVT AMP INPUT WRONG!!!

Sheet AOMS List Price (hidden)
A1: JCI Part Number | B1: AOMS List Price
A2: RCG18B | B2: 341.6018
A3: RCG17B | B3: 320.5348
A4: RCG16B | B4: 269.077
A5: RCG15B | B5: 259.7088
A6: RCG14B | B6: 255.047
A7: RCG13B | B7: 238.6418
A8: RCG12B | B8: 226.9427
A9: RCG11B | B9: 219.95
A10: RCG10B | B10: 208.2059
A11: RCG09B | B11: 205.92
A12: RCG08B | B12: 201.2139
A13: RCG07B | B13: 196.5518
A14: RCG06B | B14: 191.8458
A15: RCG04B | B15: 189.5148
A16: LC-VAC3000-0 | B16: N/A
A17: LC-SBH200-0 | B17: 1853.49
A18: LC-VAC1000-0 | B18: 665.3
A19: LC-VAC1001-0 | B19: 665.3
A20: LC-VAC1002-0 | B20: 665.3
A21: LC-ZFR1825-0 | B21: 470.06
A22: LC-ZFR1822-0B | B22: 222.42
A23: LC-ZFR1821-0B | B23: 205.35
A24: EMC-3N-03S-03 | B24: 1958.955224
A25: EMC-3N-03S-10 | B25: 2212.112514
A26: EMC-3N-08S-03 | B26: 1958.955224
A27: EMC-3N-08S-10 | B27: 2212.112514
A28: EMC-3N-08M-03 | B28: 2175.947187
A29: EMC-3N-08M-10 | B29: 2429.104478
A30: EMC-3N-15S-03 | B30: 1958.955224
A31: EMC-3N-15S-10 | B31: 2212.112514
A32: EMC-3N-15M-03 | B32: 2175.947187
A33: EMC-3N-15M-10 | B33: 2429.104478
A34: EMC-3N-24M-03 | B34: 2175.947187
A35: EMC-3N-24M-10 | B35: 2429.104478
A36: EMC-3N-24L-03 | B36: 2483.352468
A37: EMC-3N-24L-10 | B37: 2754.592423
A38: EMC-3N-60G-03 | B38: 2881.171068
A39: EMC-3N-60G-10 | B39: 3152.411022
A40: EMC-2N-03S-03 | B40: 1506.888634
A41: EMC-2N-03S-10 | B41: 1675.660161
A42: EMC-2N-08S-03 | B42: 1506.888634
A43: EMC-2N-08S-10 | B43: 1675.660161
A44: EMC-2N-08M-03 | B44: 1651.549943
A45: EMC-2N-08M-10 | B45: 1820.32147
A46: RLD-134A | B46: 2260.52
A47: WRZ-STR0000-0 | B47: 923.02
A48: WD-2-T-25 | B48: 839.6
A49: WRZ-RMT10K-0 | B49: 778.9
A50: WD-2-T-10 | B50: 543.8
A51: WRZ-THN0000-0 | B51: 410.04
A52: DPT2090-25G | B52: 356
A53: DPT2640-0R1B | B53: 333.24
A54: DPT2640-R25D | B54: 333.24
A55: WRZ-7860-0 | B55: 237.68
A56: WD-1B | B56: 231.6
A57: CSDSC-C50100L1 | B57: 185.77
A58: CSDECM-C35200L1 | B58: 150.99
A59: A-306-K | B59: 119.68
A60: CSDSC-C50100L0 | B60: 116.2
A61: SD-01 | B61: 101.85
A62: CSDECM-C35200L0 | B62: 81.41
A63: ZFR-CBLEXT-0 | B63: 77.73
A64: TBG16A-600R | B64: 50.51
A65: RPS | B65: 39.92
A66: RPS-W | B66: 27.88
A67: TEC3023-00-000 | B67: 899.98
A68: TEC3023-01-000 | B68: 899.98
A69: 4683-TTM-3F | B69: 872.96
A70: TEC3012-00-000 | B70: 842.07
A71: TEC3012-01-000 | B71: 842.07
A72: TEC3013-00-000 | B72: 823.72
A73: TEC3013-01-000 | B73: 823.72
A74: TEC3022-00-000 | B74: 820.41
A75: TEC3022-01-000 | B75: 820.41
A76: TEC3021-00-000 | B76: 813.34
A77: TEC3021-01-000 | B77: 813.34
A78: TEC3031-00-000 | B78: 761.22
A79: TEC3031-01-000 | B79: 761.22
A80: TEC3011-00-000 | B80: 737.08
A81: TEC3011-01-000 | B81: 737.08
A82: TEC3020-00-000 | B82: 716.98
A83: TEC3020-01-000 | B83: 716.98
A84: TEC3010-00-000 | B84: 661.12
A85: TEC3010-01-000 | B85: 661.12
A86: TEC3030-00-000 | B86: 592.44
A87: TEC3030-01-000 | B87: 592.44
A88: NS-BTK7002-0 | B88: 206
A89: NS-BTK7002-2 | B89: 206
A90: MS-BACEOL-0 | B90: 115.21
A91: HE-68P3-0N000 | B91: 1378.11
A92: CD-P1000-00-00 | B92: 1158.92
A93: NS-BCN7004-0 | B93: 1156.49
A94: LC-VZCPNL-0 | B94: 1139.89
A95: RZV17Z | B95: 979.7
A96: RZV18Z | B96: 979.7
A97: RZV17Y | B97: 954.79
A98: RZV18Y | B98: 954.79
A99: UPSPNL550-0 | B99: 930.32
A100: TEC3623-00-000 | B100: 899.98
A101: TEC3623-01-000 | B101: 899.98
A102: RZV15Z | B102: 880.1
A103: RZV16Z | B103: 880.1
A104: RZV13Z | B104: 860.86
A105: RZV14Z | B105: 860.86
A106: RZV15Y | B106: 855.25
A107: RZV16Y | B107: 855.25
A108: RZV13Y | B108: 835.96
A109: RZV14Y | B109: 835.96
A110: TEC3613-00-000 | B110: 823.72
A111: TEC3613-01-000 | B111: 823.72
A112: RZV11Z | B112: 822.32
A113: RZV12Z | B113: 822.32
A114: TEC3622-00-000 | B114: 820.41
A115: TEC3622-01-000 | B115: 820.41
A116: TEC3621-00-000 | B116: 813.34
A117: TEC3621-01-000 | B117: 813.34
A118: PSH500A | B118: 799.4
A119: RZV11Y | B119: 797.42
A120: RZV12Y | B120: 797.42
A121: RZV09Z | B121: 796.62
A122: RZV10Z | B122: 796.62
A123: RZV07Z | B123: 786.97
A124: RZV08Z | B124: 786.97
A125: RZV06Z | B125: 774.14
A126: RZV09Y | B126: 771.72
A127: RZV10Y | B127: 771.72
A128: RZV07Y | B128: 762.07
A129: RZV08Y | B129: 762.07
A130: TEC3631-00-000 | B130: 761.22
A131: TEC3631-01-000 | B131: 761.22
A132: RZV06Y | B132: 749.24
A133: TEC3612-00-000 | B133: 744.15
A134: TEC3612-01-000 | B134: 744.15
A135: TEC3620-00-000 | B135: 737.38
A136: TEC3620-01-000 | B136: 737.38
A137: TEC3611-00-000 | B137: 737.08
A138: TEC3611-01-000 | B138: 737.08
A139: NS-BHP7003-0 | B139: 710.15
A140: LC-VEC100-0 | B140: 698.56
A141: NS-BHR7103-0 | B141: 693.51
A142: NS-BHM7103-2 | B142: 693.19
A143: TEC3630-00-000 | B143: 685.26
A144: TEC3630-01-000 | B144: 685.26
A145: MK7-B-CCF-VTI | B145: 673.38
A146: TEC3610-00-000 | B146: 661.12
A147: TEC3610-01-000 | B147: 661.12
A148: LC-BYP200-0 | B148: 604.27
A149: PSH300A | B149: 592.04
A150: LC-VZC100-0 | B150: 590.8
A151: LC-ZEC410-1 | B151: 583.73
A152: LC-ZEC410-2 | B152: 583.73
A153: LC-ZEC410-3 | B153: 583.73
A154: LC-ZEC310-0 | B154: 564.74
A155: MK7-B-CR-VTI | B155: 551.61
A156: NS-BHP7001-0 | B156: 539.24
A157: HE-68N3-0N00WS | B157: 523.74
A158: NS-BHN7003-0 | B158: 515.21
A159: CD-W00-00-2 | B159: 515
A160: M9208-GGA-3 | B160: 493.34
A161: HE-67N3-0N00P | B161: 469.4
A162: A70HA-1C | B162: 376.93
A163: OLS-2100-1 | B163: 367.69
A164: M9310-HGA-2 | B164: 366.24
A165: DPT2640-005D | B165: 333.24
A166: WRZ-TTR0000-0 | B166: 267.78
A167: NS-ATV7003-0 | B167: 245.07
A168: NS-BTB7F03-0 | B168: 227.93
A169: NS-BTJ7002-0 | B169: 190.55
A170: NS-BTJ7002-2 | B170: 190.55
A171: NS-BTB7003-0 | B171: 189.94
A172: NS-BTB7003-2 | B172: 189.94
A173: ACC-WIFIKIT-ODU | B173: 178.68
A174: SE-COM1001-0 | B174: 177.79
A175: PSH100A | B175: 173.2
A176: P32AC-2C | B176: 159.03
A177: TE-6315M-1 | B177: 158.72
A178: NS-BTP7002-0 | B178: 156.21
A179: NS-BTP7002-2 | B179: 156.21
A180: ACC-PWRKIT-1A24 | B180: 154.36
A181: NS-BTN7001-0 | B181: 148.51
A182: NS-BTN7001-2 | B182: 148.51
A183: NS-BTN7003-0 | B183: 147.05
A184: NS-BTN7003-2 | B184: 147.05
A185: M9208-250 | B185: 131.12
A186: TE-68NT-1N00S | B186: 107.01
A187: TE-68NT-0N00S | B187: 95.95
A188: 2505A | B188: 91.37
A189: CSD-CF0A0-1 | B189: 84.07
A190: Y65T42-0 | B190: 76.63
A191: TE-6313P-1 | B191: 51.47
A192: FTG18A-600R | B192: 37.38
A193: TE-6311M-1 | B193: 35.63
A194: TE-631GV-2 | B194: 35.61
A195: RIBU1C | B195: 30.52
A196: TE-6001-8 | B196: 12.62
A197: TEC-WALLPLT | B197: 10.71
A198: 2020-T | B198: 9.39
A199: CBL-22/3-FC-PVC | B199: 0.36
A200: CBL-22/3-FC-PLN | B200: 0.3
... 43 more rows

Sheet Source 1 Parts Ref (hidden)
A1: JCI Part No | B1: Source 1 Part No
A2: LC-SBH100-1 | B2: S1-LC-SBH100-1
A3: LC-IOM100-0 | B3: S1-LC-IOM100-0
A4: Y65T42-0 | B4: S1-Y65T42-0
A5: TE-68NT-0N00S | B5: S1-TE68NT1N00S
A6: TE-6311M-1 | B6: S1-TE-6311M-1
A7: TE-6313P-1 | B7: S1-TE-6313P-1
A8: HE-68N3-0N00WS | B8: S1-H68N30N00WS
A9: HE-68P3-0N000 | B9: S1-H68P30N000
A10: HE-67N3-0N00P | B10: S1-H67N30N00P
A11: CD-W00-00-2 | B11: S1-CDW-00-00-2
A12: NS-BTB7003-0 | B12: S1-NSBTB7003-0
A13: NS-BTB7003-2 | B13: S1-NSBTB7003-2
A14: NS-BTN7003-0 | B14: S1-NSBTN7003-0
A15: NS-BTN7003-2 | B15: S1-NSBTN7003-2
A16: NS-BTP7002-0 | B16: S1-NSBTP7002-0
A17: NS-BTP7002-2 | B17: S1-NSBTP7002-2
A18: NS-BHR7103-0 | B18: S1-NSBHR7103-0
A19: NS-BHP7001-0 | B19: S1-NSBHP7001-0
A20: NS-BTB7F03-0 | B20: S1-NSBTB7F03-0
A21: NS-BCN7004-0 | B21: S1-NSBCN7004-0
A22: TEC3630-00-000 | B22: S1-TEC3630-00
A23: TEC3631-00-000 | B23: S1-TEC3631-00
A24: TEC3630-01-000 | B24: S1-TEC3630-01
A25: TEC3631-01-000 | B25: S1-TEC3631-01
A26: TE-6311M-1 | B26: S1-TE-6311M-1
A27: TE-6313P-1 | B27: S1-TE-6313P-1
A28: TE-68NT-0N00S | B28: S1-T68NT0N00S
A29: TEC-WALLPLT | B29: S1-TEC-WALLPLT
A30: CSD-CF0A0-1 | B30: S1-CSD-CF0A0-1
A31: M9208-GGA-3 | B31: S1-M9106-GGA-2
A32: M9208-250 | B32: S1-M9208-250
A33: LC-VZC100-0 | B33: S1-LC-VZC100-0
A34: LC-VZCPNL-0 | B34: S1-LC-VZCPNL-0
A35: Y65T42-0 | B35: S1-Y65T42-0
A36: PSH100A | B36: S1-PSH100A
A37: PSH300A | B37: S1-PSH300A
A38: PSH500A | B38: S1-PSH500A
A39: LC-VEC100-0 | B39: S1-LC-VEC100-0
A40: TE-6311M-1 | B40: S1-TE-6311M-1
A41: DPT2640-005D | B41: S1-DPT2640005D
A42: FTG18A-600R | B42: S1-FTG18A-600R
A43: TE-6313P-1 | B43: S1-TE-6313P-1
A44: P32AC-2C | B44: S1-P32AC-2C
A45: FTG18A-600R | B45: S1-FTG18A-600R
A46: CSD-CF0A0-1 | B46: S1-CSD-CF0A0-1
A47: CD-P00-00-0
A48: NS-BHN7003-0 | B48: S1-NSBHN7003-0
A49: M9208-GGA-3 | B49: S1-M9106-GGA-2
A50: M9208-250 | B50: S1-M9208-250
A51: LC-ZEC410-1 | B51: S1-LC-ZEC410-1
A52: LC-ZEC410-2 | B52: S1-LC-ZEC410-2
A53: LC-ZEC410-3 | B53: S1-LC-ZEC410-3
A54: NS-BTB7003-0 | B54: S1-NSBTB7003-0
A55: NS-BTB7003-2 | B55: S1-NSBTB7003-2
A56: NS-BTN7003-0 | B56: S1-NSBTN7003-0
A57: NS-BTN7003-2 | B57: S1-NSBTN7003-2
A58: NS-BTP7002-0 | B58: S1-NSBTP7002-0
A59: NS-BTP7002-2 | B59: S1-NSBTP7002-2
A60: TE-631GV-2 | B60: S1-TE631GV-2
A61: NS-BCN7004-0 | B61: S1-NSBCN7004-0
A62: OLS-2100-1 | B62: S1-OLS-2100-1
A63: RIBU1C | B63: S1-RIBU1C
A64: NS-ATV7003-0 | B64: S1-NSATV7003-0
A65: NS-BTB7003-0 | B65: S1-NSBTB7003-0
A66: NS-BTB7003-2 | B66: S1-NSBTB7003-2
A67: NS-BTN7003-0 | B67: S1-NSBTN7003-0
A68: NS-BTN7003-2 | B68: S1-NSBTN7003-2
A69: NS-BTP7002-0 | B69: S1-NSBTP7002-0
A70: NS-BTP7002-2 | B70: S1-NSBTP7002-2
A71: TE-68NT-0N00S | B71: S1-T68NT0N00S
A72: TE-68NT-1N00S | B72: S1-TE68NT1N00S
A73: NS-BCN7004-0 | B73: S1-M9106-GGA-2
A74: LC-ZEC310-0 | B74: S1-LC-ZEC310-0
A75: RZG06B | B75: S1-RZG06B
A76: RZG07B | B76: S1-RZG07B
A77: RZG08B | B77: S1-RZG08B
A78: RZG09B | B78: S1-RZG09B
A79: RZG10B | B79: S1-RZG10B
A80: RZG11B | B80: S1-RZG11B
A81: RZG12B | B81: S1-RZG12B
A82: RZG13B | B82: S1-RZG13B
A83: RZG14B | B83: S1-RZG14B
A84: RZG15B | B84: S1-RZG15B
A85: RZG16B | B85: S1-RZG16B
A86: RZG17B | B86: S1-RZG17B
A87: RZG18B | B87: S1-RZG18B
A88: RZV06Z | B88: S1-RZV06Z
A89: RZV07Z | B89: S1-RZV07Z
A90: RZV08Z | B90: S1-RZV08Z
A91: RZV09Z | B91: S1-RZV09Z
A92: RZV10Z | B92: S1-RZV10Z
A93: RZV11Z | B93: S1-RZV11Z
A94: RZV12Z | B94: S1-RZV12Z
A95: RZV13Z | B95: S1-RZV13Z
A96: RZV14Z | B96: S1-RZV14Z
A97: RZV15Z | B97: S1-RZV15Z
A98: RZV16Z | B98: S1-RZV16Z
A99: RZV17Z | B99: S1-RZV17Z
A100: RZV18Z | B100: S1-RZV18Z
A101: OLS-2100-1 | B101: S1-OLS-2100-1
A102: RIBU1C | B102: S1-RIBU1C
A103: M9106-GGA-2 | B103: S1-M9106-GGA-2
A104: LC-BYP200-0 | B104: S1-LC-BYP200-0
A105: RZG06B | B105: S1-RZG06B
A106: RZG07B | B106: S1-RZG07B
A107: RZG08B | B107: S1-RZG08B
A108: RZG09B | B108: S1-RZG09B
A109: RZG10B | B109: S1-RZG10B
A110: RZG11B | B110: S1-RZG11B
A111: RZG12B | B111: S1-RZG12B
A112: RZG13B | B112: S1-RZG13B
A113: RZG14B | B113: S1-RZG14B
A114: RZG15B | B114: S1-RZG15B
A115: RZG16B | B115: S1-RZG16B
A116: RZG17B | B116: S1-RZG17B
A117: RZG18B | B117: S1-RZG18B
A118: RZV06Y | B118: S1-RZV06Y
A119: RZV07Y | B119: S1-RZV07Y
A120: RZV08Y | B120: S1-RZV08Y
A121: RZV09Y | B121: S1-RZV09Y
A122: RZV10Y | B122: S1-RZV10Y
A123: RZV11Y | B123: S1-RZV11Y
A124: RZV12Y | B124: S1-RZV12Y
A125: RZV13Y | B125: S1-RZV13Y
A126: RZV14Y | B126: S1-RZV14Y
A127: RZV15Y | B127: S1-RZV15Y
A128: RZV16Y | B128: S1-RZV16Y
A129: RZV17Y | B129: S1-RZV17Y
A130: RZV18Y | B130: S1-RZV18Y
A131: DPT2640-005D | B131: S1-DPT2640005D
A132: FTG18A-600R | B132: S1-FTG18A-600R
A133: Y65T42-0 | B133: S1-Y65T42-0
A134: M9106-GGA-2 | B134: S1-M9106-GGA-2
A135: TEC3610-00-000 | B135: S1-TEC3610-00
A136: TEC3611-00-000 | B136: S1-TEC3611-00
A137: TEC3612-00-000 | B137: S1-TEC3612-00
A138: TEC3613-00-000 | B138: S1-TEC3613-00
A139: TEC3620-00-000 | B139: S1-TEC3620-00
A140: TEC3621-00-000 | B140: S1-TEC3621-00
A141: TEC3622-00-000 | B141: S1-TEC3622-00
A142: TEC3623-00-000 | B142: S1-TEC3623-00
A143: TEC3610-01-000 | B143: S1-TEC3610-01
A144: TEC3611-01-000 | B144: S1-TEC3611-01
A145: TEC3612-01-000 | B145: S1-TEC3612-01
A146: TEC3613-01-000 | B146: S1-TEC3613-01
A147: TEC3620-01-000 | B147: S1-TEC3620-01
A148: TEC3621-01-000 | B148: S1-TEC3621-01
A149: TEC3622-01-000 | B149: S1-TEC3622-01
A150: TEC3623-01-000 | B150: S1-TEC3623-01
A151: TE-6311M-1 | B151: S1-TE-6311M-1
A152: TE-68NT-0N00S | B152: S1-TE68NT1N00S
A153: CSD-CF0A0-1 | B153: S1-CSD-CF0A0-1
A154: TEC-WALLPLT | B154: S1-TEC-WALLPLT
A155: LC-VAC1000-0 | B155: S1-LCVAC1000-0
A156: LC-VAC1001-0 | B156: S1-LCVAC1001-0
A157: LC-VAC1002-0 | B157: S1-LCVAC1002-0
A158: LC-VAC1100-0 | B158: S1-LCVAC1100-0
A159: LC-VAC3000-0 | B159: S1-LCVAC3000-0
A160: LC-VLP100-0 | B160: S1-LC-VLP100-0
A161: LC-VLP110-0 | B161: S1-LC-VLP110-0
A162: LC-VLP120-0 | B162: S1-LC-VLP120-0
A163: LC-IOP200-0 | B163: S1-LC-IOP200-0
A164: LC-SBH200-0 | B164: S1-LC-SBH200-0
A165: LC-ZFR1825-0 | B165: S1-LCZFR1825-0
A166: LC-ZFR1822-0 | B166: S1-LCZFR1822-0
A167: LC-ZFR1822-0B | B167: S1-LCZFR18220B
A168: LC-ZFR1821-0 | B168: S1-LCZFR1821-0
A169: LC-ZFR1821-0B | B169: S1-LCZFR18210B
A170: DPT2090-25G | B170: S1-DPT2090-25G
A171: TBG16A-600R | B171: S1-TBG16A-600R
A172: DPT2640-0R1B | B172: S1-DPT26400R1B
A173: DPT2640-R25D | B173: S1-DPT2640R25D
A174: A-306-K | B174: S1-A-306-K
A175: SD-01 | B175: S1-SD-01
A176: RPS | B176: S1-RPS
A177: RPS-W | B177: S1-RPS-W
A178: RLD-134A | B178: S1-RLD-134A
A179: WD-1B | B179: S1-WD-1B
A180: WD-2-T-10 | B180: S1-WD-2-T-10
A181: WD-2-T-25 | B181: S1-WD-2-T-25
A182: CSDSC-C50100L0 | B182: S1-CSDSCC50100L0
A183: CSDSC-C50100L1 | B183: S1-CSDSCC50100L1
A184: CSDECM-C35200L0 | B184: S1-CSDECMC35200L0
A185: CSDECM-C35200L1 | B185: S1-CSDECMC35200L1
A186: WRZ-7860-0 | B186: S1-WRZ-7860-0
A187: ZFR-CBLEXT-0 | B187: S1-ZFRCBLEXT-0
A188: WRZ-STR0000-0 | B188: S1-WRZSTR00000
A189: WRZ-RMT10K-0 | B189: S1-WRZRMT10K-0
A190: WRS-TTR0000-0 | B190: S1-WRSTTR00000
A191: WRZ-THN0000-0 | B191: S1-WRZTHN00000
A192: EMC-03N-03S-03 | B192: S1-EMC03N03S03 | H192: EMC-03N-03S-03 | I192: Energy Meter 3 phase 300 amp 3 ft leads 9in ring
A193: EMC-03N-08S-03 | B193: S1-EMC03N08S03 | H193: EMC-03N-08S-03 | I193: Energy Meter 3 phase 800 amp 3 ft leads 9in ring
A194: EMC-03N-08M-03 | B194: S1-EMC03N08M03 | H194: EMC-03N-08M-03 | I194: Energy Meter 3 phase 800 amp 3 ft leads 15in ring
A195: EMC-03N-15S-03 | B195: S1-EMC03N15S03 | H195: EMC-03N-15S-03 | I195: Energy Meter 3 phase 1500 amp 3 ft leads 9in ring
A196: EMC-03N-15M-03 | B196: S1-EMC03N15M03 | H196: EMC-03N-15M-03 | I196: Energy Meter 3 phase 1500 amp 3 ft leads 15in ring
A197: EMC-03N-24M-03 | B197: S1-EMC03N24M03 | H197: EMC-03N-24M-03 | I197: Energy Meter 3 phase 2400 amp 3 ft leads 15in ring
A198: EMC-03N-24M-03 | B198: S1-EMC03N24M03 | H198: EMC-03N-24M-03 | I198: Energy Meter 3 phase 2400 amp 3 ft leads 24in ring
A199: EMC-03N-60G-03 | B199: S1-EMC03N60G03 | H199: EMC-03N-60G-03 | I199: Energy Meter 3 phase 6000 amp 3 ft leads 36in ring
A200: EMC-02N-03S-03 | B200: S1-EMC02N03S03 | H200: EMC-02N-03S-03 | I200: Energy Meter 2 phase 300 amp 3 ft leads 9in ring
... 39 more rows
